Effective Date ,Department ,Supplier Name ,Payment Date,Amount,Purpose of Spend ,Merchant Category ,Card Transaction 
18/06/19 to 17/07/19,Adults and Communities,Aimuseums,04/07/2019,150.00,Consultants & Specialists-General,Membership Organizations-Not Elsewhere Classified,GPC
18/06/19 to 17/07/19,Adults and Communities,Airbnb * Hmak5f99fx,18/06/2019,-22.14,Other Expenditure-General,"Lodging-Hotels, Motels, Resorts",GPC
18/06/19 to 17/07/19,Adults and Communities,Aldi 101 772,03/07/2019,9.41,Client/Volunteers-General,"Grocery Stores, Supermarkets",GPC
18/06/19 to 17/07/19,Adults and Communities,Aldi 16 772,17/06/2019,7.92,Materials-General,"Grocery Stores, Supermarkets",GPC
18/06/19 to 17/07/19,Adults and Communities,Alex Clark Art Ltd,28/06/2019,146.10,Materials-General,Misc-Unknown,GPC
18/06/19 to 17/07/19,Adults and Communities,Amazon Prime*m65nr0r34,10/07/2019,6.66,Other Expenditure-General,Continuity/Subscription Merchants,GPC
18/06/19 to 17/07/19,Adults and Communities,Amazon Prime*m66ka4ku4,05/07/2019,6.66,Subscriptions-General,Continuity/Subscription Merchants,GPC
18/06/19 to 17/07/19,Adults and Communities,Amazon.Co.Uk*m60g98vj4,23/06/2019,17.30,Other Expenditure-General,Direct Marketers - Other,GPC
18/06/19 to 17/07/19,Adults and Communities,Amazon.Co.Uk*m60t61he4,28/06/2019,19.98,Books-General,Misc-Unknown,GPC
18/06/19 to 17/07/19,Adults and Communities,Amazon.Co.Uk*m62466k94 Am,04/07/2019,29.15,Other Equipment & Materials-General,Miscellaneous and Specialty Retail Stores,GPC
18/06/19 to 17/07/19,Adults and Communities,Amazon.Co.Uk*m62mf1kz4,04/07/2019,46.97,Other Expenditure-General,Direct Marketers - Other,GPC
18/06/19 to 17/07/19,Adults and Communities,Amazon.Co.Uk*m63028vs4,23/06/2019,26.82,Stationery-General,Misc-Unknown,GPC
18/06/19 to 17/07/19,Adults and Communities,Amazon.Co.Uk*m64as52s4,03/07/2019,32.10,Stationery-General,Direct Marketers - Other,GPC
18/06/19 to 17/07/19,Adults and Communities,Amazon.Co.Uk*m64gf9vy4,23/06/2019,23.07,Stationery-General,Misc-Unknown,GPC
18/06/19 to 17/07/19,Adults and Communities,Amazon.Co.Uk*m64ju8uu4 Am,08/07/2019,116.66,Display/Conservn/Exhibitions-Exhibitions,Miscellaneous and Specialty Retail Stores,GPC
18/06/19 to 17/07/19,Adults and Communities,Amazon.Co.Uk*m64ve7xt4,21/06/2019,8.33,Stationery-General,Direct Marketers - Other,GPC
18/06/19 to 17/07/19,Adults and Communities,Amazon.Co.Uk*m65hc1xr4 Am,22/06/2019,6.96,Stationery-General,Miscellaneous and Specialty Retail Stores,GPC
18/06/19 to 17/07/19,Adults and Communities,Amazon.Co.Uk*m66r86ph4 Am,19/06/2019,16.24,Stationery-General,Miscellaneous and Specialty Retail Stores,GPC
18/06/19 to 17/07/19,Adults and Communities,Amazon.Co.Uk*m66zs7xe4,23/06/2019,7.40,Stationery-General,Misc-Unknown,GPC
18/06/19 to 17/07/19,Adults and Communities,Amazon.Co.Uk*m69i18vt4 Am,23/06/2019,12.24,Stationery-General,Miscellaneous and Specialty Retail Stores,GPC
18/06/19 to 17/07/19,Adults and Communities,Amazon.Co.Uk*m69me0gv4,20/06/2019,18.30,Publicity/Marketing-General,Direct Marketers - Other,GPC
18/06/19 to 17/07/19,Adults and Communities,Amazon.Co.Uk*mh2ap3l64,16/07/2019,8.73,Other Expenditure-General,Direct Marketers - Other,GPC
18/06/19 to 17/07/19,Adults and Communities,Amzn Mktp Uk*m60rs92d4,04/07/2019,29.48,Books-General,Book Stores,GPC
18/06/19 to 17/07/19,Adults and Communities,Amznmktplace,24/06/2019,119.38,Display/Conservn/Exhibitions-Exhibitions,Miscellaneous and Specialty Retail Stores,GPC
18/06/19 to 17/07/19,Adults and Communities,Amznmktplace,25/06/2019,131.63,Display/Conservn/Exhibitions-Exhibitions,Misc-Unknown,GPC
18/06/19 to 17/07/19,Adults and Communities,Amznmktplace,02/07/2019,24.96,Display/Conservn/Exhibitions-Exhibitions,Miscellaneous and Specialty Retail Stores,GPC
18/06/19 to 17/07/19,Adults and Communities,Amznmktplace,02/07/2019,33.20,Display/Conservn/Exhibitions-Exhibitions,Miscellaneous and Specialty Retail Stores,GPC
18/06/19 to 17/07/19,Adults and Communities,Amznmktplace,27/06/2019,4.53,Display/Conservn/Exhibitions-General,Misc-Unknown,GPC
18/06/19 to 17/07/19,Adults and Communities,Amznmktplace,20/06/2019,3.94,General Equipment-General,Miscellaneous and Specialty Retail Stores,GPC
18/06/19 to 17/07/19,Adults and Communities,Amznmktplace,27/06/2019,20.40,General Equipment-General,Misc-Unknown,GPC
18/06/19 to 17/07/19,Adults and Communities,Amznmktplace,04/07/2019,63.47,General Equipment-General,Miscellaneous and Specialty Retail Stores,GPC
18/06/19 to 17/07/19,Adults and Communities,Amznmktplace,10/07/2019,24.48,General Equipment-General,Miscellaneous and Specialty Retail Stores,GPC
18/06/19 to 17/07/19,Adults and Communities,Amznmktplace,15/07/2019,58.32,General Equipment-General,Miscellaneous and Specialty Retail Stores,GPC
18/06/19 to 17/07/19,Adults and Communities,Amznmktplace,20/06/2019,43.91,IT Equipment-General,Miscellaneous and Specialty Retail Stores,GPC
18/06/19 to 17/07/19,Adults and Communities,Amznmktplace,28/06/2019,12.07,IT Equipment-General,Misc-Unknown,GPC
18/06/19 to 17/07/19,Adults and Communities,Amznmktplace,19/06/2019,11.95,Materials-General,Miscellaneous and Specialty Retail Stores,GPC
18/06/19 to 17/07/19,Adults and Communities,Amznmktplace,19/06/2019,16.65,Materials-General,Miscellaneous and Specialty Retail Stores,GPC
18/06/19 to 17/07/19,Adults and Communities,Amznmktplace,21/06/2019,4.25,Materials-General,Miscellaneous and Specialty Retail Stores,GPC
18/06/19 to 17/07/19,Adults and Communities,Amznmktplace,21/06/2019,14.16,Materials-General,Miscellaneous and Specialty Retail Stores,GPC
18/06/19 to 17/07/19,Adults and Communities,Amznmktplace,22/06/2019,6.79,Materials-General,Miscellaneous and Specialty Retail Stores,GPC
18/06/19 to 17/07/19,Adults and Communities,Amznmktplace,25/06/2019,9.48,Materials-General,Misc-Unknown,GPC
18/06/19 to 17/07/19,Adults and Communities,Amznmktplace,27/06/2019,54.42,Materials-General,Misc-Unknown,GPC
18/06/19 to 17/07/19,Adults and Communities,Amznmktplace,27/06/2019,54.42,Materials-General,Misc-Unknown,GPC
18/06/19 to 17/07/19,Adults and Communities,Amznmktplace,27/06/2019,-54.42,Materials-General,Misc-Unknown,GPC
18/06/19 to 17/07/19,Adults and Communities,Amznmktplace,27/06/2019,-54.42,Materials-General,Misc-Unknown,GPC
18/06/19 to 17/07/19,Adults and Communities,Amznmktplace,03/07/2019,37.35,Materials-General,Miscellaneous and Specialty Retail Stores,GPC
18/06/19 to 17/07/19,Adults and Communities,Amznmktplace,05/07/2019,16.90,Materials-General,Miscellaneous and Specialty Retail Stores,GPC
18/06/19 to 17/07/19,Adults and Communities,Amznmktplace,09/07/2019,22.50,Materials-General,Miscellaneous and Specialty Retail Stores,GPC
18/06/19 to 17/07/19,Adults and Communities,Amznmktplace,09/07/2019,11.82,Materials-General,Miscellaneous and Specialty Retail Stores,GPC
18/06/19 to 17/07/19,Adults and Communities,Amznmktplace,09/07/2019,25.58,Materials-General,Miscellaneous and Specialty Retail Stores,GPC
18/06/19 to 17/07/19,Adults and Communities,Amznmktplace,10/07/2019,39.87,Materials-General,Miscellaneous and Specialty Retail Stores,GPC
18/06/19 to 17/07/19,Adults and Communities,Amznmktplace,10/07/2019,33.72,Materials-General,Miscellaneous and Specialty Retail Stores,GPC
18/06/19 to 17/07/19,Adults and Communities,Amznmktplace,10/07/2019,13.69,Materials-General,Miscellaneous and Specialty Retail Stores,GPC
18/06/19 to 17/07/19,Adults and Communities,Amznmktplace,11/07/2019,33.24,Materials-General,Miscellaneous and Specialty Retail Stores,GPC
18/06/19 to 17/07/19,Adults and Communities,Amznmktplace,12/07/2019,12.22,Materials-General,Miscellaneous and Specialty Retail Stores,GPC
18/06/19 to 17/07/19,Adults and Communities,Amznmktplace,12/07/2019,20.82,Materials-General,Miscellaneous and Specialty Retail Stores,GPC
18/06/19 to 17/07/19,Adults and Communities,Amznmktplace,13/07/2019,9.08,Materials-General,Miscellaneous and Specialty Retail Stores,GPC
18/06/19 to 17/07/19,Adults and Communities,Amznmktplace,14/07/2019,23.48,Materials-General,Miscellaneous and Specialty Retail Stores,GPC
18/06/19 to 17/07/19,Adults and Communities,Amznmktplace,16/07/2019,20.82,Materials-General,Miscellaneous and Specialty Retail Stores,GPC
18/06/19 to 17/07/19,Adults and Communities,Amznmktplace,10/07/2019,58.57,Operational Equipment-DDA,Miscellaneous and Specialty Retail Stores,GPC
18/06/19 to 17/07/19,Adults and Communities,Amznmktplace,26/06/2019,19.99,Other Equipment & Materials-General,Misc-Unknown,GPC
18/06/19 to 17/07/19,Adults and Communities,Amznmktplace,12/07/2019,2.46,Other Equipment & Materials-General,Miscellaneous and Specialty Retail Stores,GPC
18/06/19 to 17/07/19,Adults and Communities,Amznmktplace,19/06/2019,23.95,Other Expenditure-General,Miscellaneous and Specialty Retail Stores,GPC
18/06/19 to 17/07/19,Adults and Communities,Amznmktplace,29/06/2019,24.98,Other Expenditure-General,Misc-Unknown,GPC
18/06/19 to 17/07/19,Adults and Communities,Amznmktplace,10/07/2019,11.98,Other Expenditure-General,Miscellaneous and Specialty Retail Stores,GPC
18/06/19 to 17/07/19,Adults and Communities,Amznmktplace,12/07/2019,21.59,Other Expenditure-General,Miscellaneous and Specialty Retail Stores,GPC
18/06/19 to 17/07/19,Adults and Communities,Amznmktplace,14/07/2019,20.77,Other Expenditure-General,Miscellaneous and Specialty Retail Stores,GPC
18/06/19 to 17/07/19,Adults and Communities,Amznmktplace,22/06/2019,4.49,Postal Services-General,Miscellaneous and Specialty Retail Stores,GPC
18/06/19 to 17/07/19,Adults and Communities,Amznmktplace,10/07/2019,16.48,Publicity/Marketing-General,Miscellaneous and Specialty Retail Stores,GPC
18/06/19 to 17/07/19,Adults and Communities,Amznmktplace,10/07/2019,87.50,Publicity/Marketing-General,Miscellaneous and Specialty Retail Stores,GPC
18/06/19 to 17/07/19,Adults and Communities,Amznmktplace,20/06/2019,23.33,Stationery-General,Miscellaneous and Specialty Retail Stores,GPC
18/06/19 to 17/07/19,Adults and Communities,Amznmktplace,20/06/2019,19.16,Stationery-General,Miscellaneous and Specialty Retail Stores,GPC
18/06/19 to 17/07/19,Adults and Communities,Amznmktplace,21/06/2019,53.66,Stationery-General,Miscellaneous and Specialty Retail Stores,GPC
18/06/19 to 17/07/19,Adults and Communities,Amznmktplace,21/06/2019,28.49,Stationery-General,Miscellaneous and Specialty Retail Stores,GPC
18/06/19 to 17/07/19,Adults and Communities,Amznmktplace,27/06/2019,6.88,Stationery-General,Misc-Unknown,GPC
18/06/19 to 17/07/19,Adults and Communities,Amznmktplace,02/07/2019,20.47,Stationery-General,Miscellaneous and Specialty Retail Stores,GPC
18/06/19 to 17/07/19,Adults and Communities,Amznmktplace,04/07/2019,5.24,Stationery-General,Miscellaneous and Specialty Retail Stores,GPC
18/06/19 to 17/07/19,Adults and Communities,Amznmktplace,09/07/2019,11.95,Stationery-General,Miscellaneous and Specialty Retail Stores,GPC
18/06/19 to 17/07/19,Adults and Communities,Amznmktplace,09/07/2019,8.76,Stationery-General,Miscellaneous and Specialty Retail Stores,GPC
18/06/19 to 17/07/19,Adults and Communities,Amznmktplace,09/07/2019,5.41,Stationery-General,Miscellaneous and Specialty Retail Stores,GPC
18/06/19 to 17/07/19,Adults and Communities,Amznmktplace,09/07/2019,6.80,Stationery-General,Miscellaneous and Specialty Retail Stores,GPC
18/06/19 to 17/07/19,Adults and Communities,Amznmktplace,11/07/2019,22.87,Stationery-General,Miscellaneous and Specialty Retail Stores,GPC
18/06/19 to 17/07/19,Adults and Communities,Amznmktplace,16/07/2019,3.32,Stationery-General,Miscellaneous and Specialty Retail Stores,GPC
18/06/19 to 17/07/19,Adults and Communities,Amznmktplace Amazon.Co.Uk,05/07/2019,39.00,Display/Conservn/Exhibitions-Exhibitions,Miscellaneous and Specialty Retail Stores,GPC
18/06/19 to 17/07/19,Adults and Communities,Amznmktplace Amazon.Co.Uk,20/06/2019,23.99,General Equipment-General,Miscellaneous and Specialty Retail Stores,GPC
18/06/19 to 17/07/19,Adults and Communities,Amznmktplace Amazon.Co.Uk,20/06/2019,17.48,General Equipment-General,Miscellaneous and Specialty Retail Stores,GPC
18/06/19 to 17/07/19,Adults and Communities,Amznmktplace Amazon.Co.Uk,03/07/2019,18.32,General Equipment-General,Miscellaneous and Specialty Retail Stores,GPC
18/06/19 to 17/07/19,Adults and Communities,Amznmktplace Amazon.Co.Uk,04/07/2019,16.32,General Equipment-General,Miscellaneous and Specialty Retail Stores,GPC
18/06/19 to 17/07/19,Adults and Communities,Amznmktplace Amazon.Co.Uk,25/06/2019,62.46,IT Equipment-General,Misc-Unknown,GPC
18/06/19 to 17/07/19,Adults and Communities,Amznmktplace Amazon.Co.Uk,25/06/2019,62.46,IT Equipment-General,Misc-Unknown,GPC
18/06/19 to 17/07/19,Adults and Communities,Amznmktplace Amazon.Co.Uk,26/06/2019,30.99,Materials-General,Misc-Unknown,GPC
18/06/19 to 17/07/19,Adults and Communities,Amznmktplace Amazon.Co.Uk,27/06/2019,42.48,Materials-General,Misc-Unknown,GPC
18/06/19 to 17/07/19,Adults and Communities,Amznmktplace Amazon.Co.Uk,01/07/2019,13.99,Materials-General,Miscellaneous and Specialty Retail Stores,GPC
18/06/19 to 17/07/19,Adults and Communities,Amznmktplace Amazon.Co.Uk,07/07/2019,9.48,Materials-General,Miscellaneous and Specialty Retail Stores,GPC
18/06/19 to 17/07/19,Adults and Communities,Amznmktplace Amazon.Co.Uk,08/07/2019,8.95,Materials-General,Miscellaneous and Specialty Retail Stores,GPC
18/06/19 to 17/07/19,Adults and Communities,Amznmktplace Amazon.Co.Uk,10/07/2019,15.55,Materials-General,Miscellaneous and Specialty Retail Stores,GPC
18/06/19 to 17/07/19,Adults and Communities,Amznmktplace Amazon.Co.Uk,11/07/2019,83.32,Materials-General,Miscellaneous and Specialty Retail Stores,GPC
18/06/19 to 17/07/19,Adults and Communities,Amznmktplace Amazon.Co.Uk,12/07/2019,15.22,Materials-General,Miscellaneous and Specialty Retail Stores,GPC
18/06/19 to 17/07/19,Adults and Communities,Amznmktplace Amazon.Co.Uk,22/06/2019,47.99,Other Equipment & Materials-General,Miscellaneous and Specialty Retail Stores,GPC
18/06/19 to 17/07/19,Adults and Communities,Amznmktplace Amazon.Co.Uk,16/07/2019,9.98,Other Equipment & Materials-General,Miscellaneous and Specialty Retail Stores,GPC
18/06/19 to 17/07/19,Adults and Communities,Amznmktplace Amazon.Co.Uk,16/07/2019,10.82,Other Equipment & Materials-General,Miscellaneous and Specialty Retail Stores,GPC
18/06/19 to 17/07/19,Adults and Communities,Amznmktplace Amazon.Co.Uk,16/07/2019,4.16,Other Equipment & Materials-General,Miscellaneous and Specialty Retail Stores,GPC
18/06/19 to 17/07/19,Adults and Communities,Amznmktplace Amazon.Co.Uk,16/07/2019,11.58,Other Equipment & Materials-General,Miscellaneous and Specialty Retail Stores,GPC
18/06/19 to 17/07/19,Adults and Communities,Amznmktplace Amazon.Co.Uk,21/06/2019,109.98,Other Expenditure-General,Miscellaneous and Specialty Retail Stores,GPC
18/06/19 to 17/07/19,Adults and Communities,Amznmktplace Amazon.Co.Uk,11/07/2019,3.42,Other Expenditure-General,Miscellaneous and Specialty Retail Stores,GPC
18/06/19 to 17/07/19,Adults and Communities,Amznmktplace Amazon.Co.Uk,11/07/2019,25.98,Other Expenditure-General,Miscellaneous and Specialty Retail Stores,GPC
18/06/19 to 17/07/19,Adults and Communities,Amznmktplace Amazon.Co.Uk,20/06/2019,26.65,Stationery-General,Miscellaneous and Specialty Retail Stores,GPC
18/06/19 to 17/07/19,Adults and Communities,Amznmktplace Amazon.Co.Uk,20/06/2019,15.42,Stationery-General,Miscellaneous and Specialty Retail Stores,GPC
18/06/19 to 17/07/19,Adults and Communities,Amznmktplace Amazon.Co.Uk,21/06/2019,3.99,Stationery-General,Miscellaneous and Specialty Retail Stores,GPC
18/06/19 to 17/07/19,Adults and Communities,Amznmktplace Amazon.Co.Uk,21/06/2019,24.16,Stationery-General,Miscellaneous and Specialty Retail Stores,GPC
18/06/19 to 17/07/19,Adults and Communities,Amznmktplace Amazon.Co.Uk,05/07/2019,36.05,Stationery-General,Miscellaneous and Specialty Retail Stores,GPC
18/06/19 to 17/07/19,Adults and Communities,Amznmktplace Amazon.Co.Uk,11/07/2019,13.10,Stationery-General,Miscellaneous and Specialty Retail Stores,GPC
18/06/19 to 17/07/19,Adults and Communities,Amznmktplace Amazon.Co.Uk,11/07/2019,28.13,Stationery-General,Miscellaneous and Specialty Retail Stores,GPC
18/06/19 to 17/07/19,Adults and Communities,Appliancedirect Co,18/06/2019,614.99,Cleaning Materials-General,Computer Software Stores,GPC
18/06/19 to 17/07/19,Adults and Communities,Argos Wigston,12/07/2019,29.99,Operational Equipment-General,Discount Stores,GPC
18/06/19 to 17/07/19,Adults and Communities,Asda Superstore,24/06/2019,14.90,Materials-General,Misc-Unknown,GPC
18/06/19 to 17/07/19,Adults and Communities,Asda Superstore,01/07/2019,11.16,Materials-General,"Grocery Stores, Supermarkets",GPC
18/06/19 to 17/07/19,Adults and Communities,Asda Superstore,02/07/2019,5.68,Materials-General,"Grocery Stores, Supermarkets",GPC
18/06/19 to 17/07/19,Adults and Communities,Asda Superstore,09/07/2019,4.38,Materials-General,"Grocery Stores, Supermarkets",GPC
18/06/19 to 17/07/19,Adults and Communities,Asda Superstore,21/06/2019,159.50,Provisions-General,Misc-Unknown,GPC
18/06/19 to 17/07/19,Adults and Communities,Asda Superstore,04/07/2019,161.64,Provisions-General,"Grocery Stores, Supermarkets",GPC
18/06/19 to 17/07/19,Adults and Communities,B&m Retail Ltd,27/06/2019,11.95,Other Expenditure-General,Misc-Unknown,GPC
18/06/19 to 17/07/19,Adults and Communities,B&m Retail Ltd,13/07/2019,9.13,Other Expenditure-General,Discount Stores,GPC
18/06/19 to 17/07/19,Adults and Communities,B&m Retail Ltd,27/06/2019,35.94,Provisions-General,Misc-Unknown,GPC
18/06/19 to 17/07/19,Adults and Communities,Baker Ross,02/07/2019,24.71,Publicity/Marketing-General,"Artist Supply Stores, Craft Shops",GPC
18/06/19 to 17/07/19,Adults and Communities,Bc.Basecamp 2 2997305,04/07/2019,15.94,Other Services-General,Membership Organizations-Not Elsewhere Classified,GPC
18/06/19 to 17/07/19,Adults and Communities,Beaumont Cross Hotel,20/06/2019,75.42,Casual/Essential-General,"Lodging-Hotels, Motels, Resorts",GPC
18/06/19 to 17/07/19,Adults and Communities,Beaumont Cross Hotel,20/06/2019,67.08,Casual/Essential-General,"Lodging-Hotels, Motels, Resorts",GPC
18/06/19 to 17/07/19,Adults and Communities,British Red Cross,10/07/2019,45.00,Training Expenses-General,Charitable and Social Service Organizations,GPC
18/06/19 to 17/07/19,Adults and Communities,Cartridge Save,15/07/2019,111.69,Stationery-General,"Stationary, Office Supplies, Printing and Writing",GPC
18/06/19 to 17/07/19,Adults and Communities,Catering Academy,09/07/2019,2.40,Subsistence-General,"Eating Places, Restaurants",GPC
18/06/19 to 17/07/19,Adults and Communities,Central Eng Coop,14/07/2019,7.95,Materials-General,Department Stores,GPC
18/06/19 to 17/07/19,Adults and Communities,Charnwood Borough Council,16/07/2019,6.00,Casual/Essential-General,Automobile Parking Lots and Garages,GPC
18/06/19 to 17/07/19,Adults and Communities,Charnwood Borough Council,25/06/2019,5.00,Client/Volunteers-General,Automobile Parking Lots and Garages,GPC
18/06/19 to 17/07/19,Adults and Communities,Charnwood Borough Council,27/06/2019,2.67,Client/Volunteers-General,Misc-Unknown,GPC
18/06/19 to 17/07/19,Adults and Communities,Charnwood Borough Council,27/06/2019,4.08,Client/Volunteers-General,Misc-Unknown,GPC
18/06/19 to 17/07/19,Adults and Communities,Charnwood Borough Council,02/07/2019,4.08,Client/Volunteers-General,Automobile Parking Lots and Garages,GPC
18/06/19 to 17/07/19,Adults and Communities,Charnwood Borough Council,02/07/2019,4.08,Client/Volunteers-General,Automobile Parking Lots and Garages,GPC
18/06/19 to 17/07/19,Adults and Communities,Charnwood Borough Council,04/07/2019,3.20,Other Transport Costs-General,Automobile Parking Lots and Garages,GPC
18/06/19 to 17/07/19,Adults and Communities,Chaters Motoring Booksell,03/07/2019,85.00,Books-General,Book Stores,GPC
18/06/19 to 17/07/19,Adults and Communities,Civil War/palace,19/06/2019,124.00,Training Expenses-General,Tourist Attractions and Exhibits,GPC
18/06/19 to 17/07/19,Adults and Communities,Cn Promotions,24/06/2019,372.00,Publicity/Marketing-General,Misc-Unknown,GPC
18/06/19 to 17/07/19,Adults and Communities,Colemans Of Stamford,17/06/2019,36.46,Stationery-General,"Stationery, Office, and School Supply Stores",GPC
18/06/19 to 17/07/19,Adults and Communities,Communicate-Ed,04/07/2019,135.00,Training Expenses-General,Schools and Educational Services-Not Elsewhere Cla,GPC
18/06/19 to 17/07/19,Adults and Communities,Communicate-Ed,04/07/2019,135.00,Training Expenses-General,Schools and Educational Services-Not Elsewhere Cla,GPC
18/06/19 to 17/07/19,Adults and Communities,Costa Coffee,30/06/2019,4.92,Subsistence-General,Misc-Unknown,GPC
18/06/19 to 17/07/19,Adults and Communities,Cross Country Trains,01/07/2019,23.05,Public Transport -  Staff-General,Passenger Railways,GPC
18/06/19 to 17/07/19,Adults and Communities,Demco Europe,28/06/2019,71.99,Stationery-General,Misc-Unknown,GPC
18/06/19 to 17/07/19,Adults and Communities,Dominos Pizza UK & Irelan,11/07/2019,47.92,Display/Conservn/Exhibitions-Exhibitions,"Eating Places, Restaurants",GPC
18/06/19 to 17/07/19,Adults and Communities,East Midlands Trai,04/07/2019,9.80,Public Transport -  Staff-General,Passenger Railways,GPC
18/06/19 to 17/07/19,Adults and Communities,East Midlands Trains,28/06/2019,98.50,Other Expenditure-General,Misc-Unknown,GPC
18/06/19 to 17/07/19,Adults and Communities,East Midlands Trains,20/06/2019,49.58,Public Transport -  Staff-General,Misc-Unknown,GPC
18/06/19 to 17/07/19,Adults and Communities,East Midlands Trains,27/06/2019,81.50,Public Transport -  Staff-General,Misc-Unknown,GPC
18/06/19 to 17/07/19,Adults and Communities,East Midlands Trains,08/07/2019,20.55,Public Transport -  Staff-General,Passenger Railways,GPC
18/06/19 to 17/07/19,Adults and Communities,East Midlands Trains Ltd,09/07/2019,12.00,Casual/Essential-General,Automobile Parking Lots and Garages,GPC
18/06/19 to 17/07/19,Adults and Communities,Eb *enhanced Health An,17/06/2019,200.00,Conference-General,Business Services-Not Elsewhere Classified,GPC
18/06/19 to 17/07/19,Adults and Communities,Emerson And Wests Of Mar,08/07/2019,87.50,Display/Conservn/Exhibitions-Exhibitions,"Eating Places, Restaurants",GPC
18/06/19 to 17/07/19,Adults and Communities,Espo,09/07/2019,48.99,Stationery-General,Government Services-Not Elsewhere Classified,GPC
18/06/19 to 17/07/19,Adults and Communities,Espo,15/07/2019,15.25,Stationery-General,Government Services-Not Elsewhere Classified,GPC
18/06/19 to 17/07/19,Adults and Communities,Facebk *353usm68r2,02/07/2019,2.32,Publicity/Marketing-General,Advertising Services,GPC
18/06/19 to 17/07/19,Adults and Communities,Facebk *g38eslnjf2,30/06/2019,6.60,Publicity/Marketing-General,Misc-Unknown,GPC
18/06/19 to 17/07/19,Adults and Communities,Fast Key Services Limi,26/06/2019,6.05,General Equipment-General,Misc-Unknown,GPC
18/06/19 to 17/07/19,Adults and Communities,Fast Key Services Limi,26/06/2019,6.05,General Equipment-General,Misc-Unknown,GPC
18/06/19 to 17/07/19,Adults and Communities,Fast Key Services Limi,27/06/2019,6.05,General Equipment-General,Misc-Unknown,GPC
18/06/19 to 17/07/19,Adults and Communities,Fast Key Services Limi,04/07/2019,11.03,General Equipment-General,Business Services-Not Elsewhere Classified,GPC
18/06/19 to 17/07/19,Adults and Communities,Fast Key Services Limi,12/07/2019,26.19,Other Equipment & Materials-General,Business Services-Not Elsewhere Classified,GPC
18/06/19 to 17/07/19,Adults and Communities,Gen Register Office,20/06/2019,14.00,Other Expenditure-General,Government Services-Not Elsewhere Classified,GPC
18/06/19 to 17/07/19,Adults and Communities,Grays Coffee Shop And K,04/07/2019,9.50,Subsistence-General,"Eating Places, Restaurants",GPC
18/06/19 to 17/07/19,Adults and Communities,Harlow Bros Ltd,12/07/2019,73.66,Other Expenditure-General,"Building Materials, Lumber Stores",GPC
18/06/19 to 17/07/19,Adults and Communities,Home Bargains Coalvill,04/07/2019,1.24,Materials-General,Hardware Stores,GPC
18/06/19 to 17/07/19,Adults and Communities,Homebase Ltd,18/06/2019,36.80,Other Expenditure-General,"Building Materials, Lumber Stores",GPC
18/06/19 to 17/07/19,Adults and Communities,Iceland,14/07/2019,6.00,Materials-General,"Grocery Stores, Supermarkets",GPC
18/06/19 to 17/07/19,Adults and Communities,Iz *stage 2 Coffee House,27/06/2019,62.00,Other Expenditure-General,Misc-Unknown,GPC
18/06/19 to 17/07/19,Adults and Communities,Lace Market Car Park U,17/06/2019,8.33,Other Transport Costs-General,Automobile Parking Lots and Garages,GPC
18/06/19 to 17/07/19,Adults and Communities,Lcc Catering Services,12/07/2019,10.00,Other Expenditure-General,Government Services-Not Elsewhere Classified,GPC
18/06/19 to 17/07/19,Adults and Communities,Lcc Heritage Services,02/07/2019,2.85,Other Expenditure-General,Government Services-Not Elsewhere Classified,GPC
18/06/19 to 17/07/19,Adults and Communities,Lcc Npu 1,27/06/2019,25.00,Public Transport -  Staff-General,Government Services-Not Elsewhere Classified,GPC
18/06/19 to 17/07/19,Adults and Communities,Lidl Gb South Wigston,25/06/2019,24.97,Catering Equipment-General,Misc-Unknown,GPC
18/06/19 to 17/07/19,Adults and Communities,Marks&spencer Plc,03/07/2019,74.70,Training Expenses-General,"Grocery Stores, Supermarkets",GPC
18/06/19 to 17/07/19,Adults and Communities,Medisave,02/07/2019,14.86,Stationery-General,Laboratory/Medical/Dental/Ophthalmic Hospital Equi,GPC
18/06/19 to 17/07/19,Adults and Communities,Mercury News 63933,15/07/2019,97.05,Books-General,"Grocery Stores, Supermarkets",GPC
18/06/19 to 17/07/19,Adults and Communities,Ncp Ipswich Tower Ramp,17/06/2019,15.00,Client/Volunteers-General,Automobile Parking Lots and Garages,GPC
18/06/19 to 17/07/19,Adults and Communities,Ncp Limited,19/06/2019,5.17,Casual/Essential-General,Automobile Parking Lots and Garages,GPC
18/06/19 to 17/07/19,Adults and Communities,Ncp Limited,04/07/2019,5.17,Casual/Essential-General,Automobile Parking Lots and Garages,GPC
18/06/19 to 17/07/19,Adults and Communities,Ncp Limited,09/07/2019,5.20,Casual/Essential-General,Automobile Parking Lots and Garages,GPC
18/06/19 to 17/07/19,Adults and Communities,Ncp Limited,20/06/2019,4.90,Public Transport -  Staff-General,Automobile Parking Lots and Garages,GPC
18/06/19 to 17/07/19,Adults and Communities,Oakhouse Foods Ltd,02/07/2019,76.25,Provisions-General,"Miscellaneous Food Stores-Convenience Stores, Mark",GPC
18/06/19 to 17/07/19,Adults and Communities,Ocado,17/06/2019,228.52,Materials-General,"Grocery Stores, Supermarkets",GPC
18/06/19 to 17/07/19,Adults and Communities,Ocado,17/06/2019,120.47,Materials-General,"Grocery Stores, Supermarkets",GPC
18/06/19 to 17/07/19,Adults and Communities,Ocado,24/06/2019,167.61,Materials-General,Misc-Unknown,GPC
18/06/19 to 17/07/19,Adults and Communities,Ocado,28/06/2019,166.87,Materials-General,Misc-Unknown,GPC
18/06/19 to 17/07/19,Adults and Communities,Ocado,05/07/2019,250.72,Materials-General,"Grocery Stores, Supermarkets",GPC
18/06/19 to 17/07/19,Adults and Communities,Ocado Ltd.,01/07/2019,200.00,Provisions-General,"Miscellaneous Food Stores-Convenience Stores, Mark",GPC
18/06/19 to 17/07/19,Adults and Communities,Ocado Ltd.,05/07/2019,9.99,Provisions-General,"Miscellaneous Food Stores-Convenience Stores, Mark",GPC
18/06/19 to 17/07/19,Adults and Communities,Ocado Ltd.,12/07/2019,94.91,Provisions-General,"Miscellaneous Food Stores-Convenience Stores, Mark",GPC
18/06/19 to 17/07/19,Adults and Communities,Ocado Ltd.,15/07/2019,162.11,Provisions-General,"Miscellaneous Food Stores-Convenience Stores, Mark",GPC
18/06/19 to 17/07/19,Adults and Communities,Ocado Retail Limit,21/06/2019,176.92,Materials-General,Misc-Unknown,GPC
18/06/19 to 17/07/19,Adults and Communities,Ocado Retail Limit,08/07/2019,212.69,Materials-General,"Grocery Stores, Supermarkets",GPC
18/06/19 to 17/07/19,Adults and Communities,Online Shop,15/07/2019,70.00,Training Expenses-General,"Colleges, Universities, Professional Schools, and",GPC
18/06/19 to 17/07/19,Adults and Communities,Paypal *cambridgeho,28/06/2019,11.53,Operational Equipment-DDA,Misc-Unknown,GPC
18/06/19 to 17/07/19,Adults and Communities,Paypal *dyson Ltd,09/07/2019,124.99,Display/Conservn/Exhibitions-General,Hardware Stores,GPC
18/06/19 to 17/07/19,Adults and Communities,Paypal *oldcuriosit,18/06/2019,14.99,Other Equipment & Materials-General,Stamp and Coin Stores-Philatelic and Numismatic Su,GPC
18/06/19 to 17/07/19,Adults and Communities,Paypal *party Packs,16/07/2019,183.81,Display/Conservn/Exhibitions-Exhibitions,Business Services-Not Elsewhere Classified,GPC
18/06/19 to 17/07/19,Adults and Communities,Paypal *pendulummed,02/07/2019,795.00,Subsistence-General,Advertising Services,GPC
18/06/19 to 17/07/19,Adults and Communities,Paypal *props4shows,28/06/2019,9.92,Other Equipment & Materials-General,Misc-Unknown,GPC
18/06/19 to 17/07/19,Adults and Communities,Pear Tree Yard,13/07/2019,5.17,Other Expenditure-General,"Gift, Card, Novelty, and Souvenir Shops",GPC
18/06/19 to 17/07/19,Adults and Communities,Physical Sports Limite,24/06/2019,19.62,Cleaning Materials-General,Misc-Unknown,GPC
18/06/19 to 17/07/19,Adults and Communities,Post Office Counter,20/06/2019,16.22,Postal Services-General,Postage Stamps,GPC
18/06/19 to 17/07/19,Adults and Communities,Post Office Counter,08/07/2019,13.50,Postal Services-General,Postage Stamps,GPC
18/06/19 to 17/07/19,Adults and Communities,Posturite Ltd,17/06/2019,124.91,IT Equipment-General,Business Services-Not Elsewhere Classified,GPC
18/06/19 to 17/07/19,Adults and Communities,Premier Inn44025570,24/06/2019,174.17,Display/Conservn/Exhibitions-General,Misc-Unknown,GPC
18/06/19 to 17/07/19,Adults and Communities,Premier Inn44528885,04/07/2019,273.75,Subsistence-General,PREMIER TRAVEL,GPC
18/06/19 to 17/07/19,Adults and Communities,Royal Mail Online Shop,27/06/2019,83.00,Postal Services-General,Postage Stamps,GPC
18/06/19 to 17/07/19,Adults and Communities,Sainsburys Local,18/06/2019,17.10,Materials-General,"Grocery Stores, Supermarkets",GPC
18/06/19 to 17/07/19,Adults and Communities,Sainsburys S/mkt,05/07/2019,10.50,Books-General,"Grocery Stores, Supermarkets",GPC
18/06/19 to 17/07/19,Adults and Communities,Sainsburys S/mkt,17/06/2019,29.75,Materials-General,"Grocery Stores, Supermarkets",GPC
18/06/19 to 17/07/19,Adults and Communities,Sainsburys S/mkt,01/07/2019,9.65,Provisions-General,"Grocery Stores, Supermarkets",GPC
18/06/19 to 17/07/19,Adults and Communities,Sainsburys S/mkt,07/07/2019,19.75,Provisions-General,"Grocery Stores, Supermarkets",GPC
18/06/19 to 17/07/19,Adults and Communities,Sainsburys S/mkt,15/07/2019,16.35,Provisions-General,"Grocery Stores, Supermarkets",GPC
18/06/19 to 17/07/19,Adults and Communities,Sainsburys S/mkts,27/06/2019,13.48,Client/Volunteers-General,Misc-Unknown,GPC
18/06/19 to 17/07/19,Adults and Communities,Sainsburys S/mkts,18/06/2019,20.25,Materials-General,"Grocery Stores, Supermarkets",GPC
18/06/19 to 17/07/19,Adults and Communities,Sainsburys S/mkts,19/06/2019,64.00,Materials-General,"Grocery Stores, Supermarkets",GPC
18/06/19 to 17/07/19,Adults and Communities,Sainsburys S/mkts,26/06/2019,31.25,Materials-General,Misc-Unknown,GPC
18/06/19 to 17/07/19,Adults and Communities,Sainsburys S/mkts,18/06/2019,26.80,Other Expenditure-General,"Grocery Stores, Supermarkets",GPC
18/06/19 to 17/07/19,Adults and Communities,Sainsburys S/mkts,09/07/2019,3.60,Provisions-General,"Grocery Stores, Supermarkets",GPC
18/06/19 to 17/07/19,Adults and Communities,Sainsburys S/mkts,11/07/2019,6.05,Provisions-General,"Grocery Stores, Supermarkets",GPC
18/06/19 to 17/07/19,Adults and Communities,Sainsburys S/mkts,16/07/2019,10.15,Provisions-General,"Grocery Stores, Supermarkets",GPC
18/06/19 to 17/07/19,Adults and Communities,Sainsburys Smkts,26/06/2019,13.30,Other Expenditure-General,Misc-Unknown,GPC
18/06/19 to 17/07/19,Adults and Communities,Sds (London) Ltd,12/07/2019,33.25,Display/Conservn/Exhibitions-Exhibitions,"Furniture, Home Furnishings and Equipment Stores,",GPC
18/06/19 to 17/07/19,Adults and Communities,Signature Living Coal Ex,19/06/2019,10.00,Training Expenses-General,"Lodging-Hotels, Motels, Resorts",GPC
18/06/19 to 17/07/19,Adults and Communities,Tankservices,17/06/2019,243.50,Display/Conservn/Exhibitions-Exhibitions,"Cleaning and Maintenance, Janitorial Services",GPC
18/06/19 to 17/07/19,Adults and Communities,Tesco Store 2846,20/06/2019,79.99,Provisions-General,"Grocery Stores, Supermarkets",GPC
18/06/19 to 17/07/19,Adults and Communities,Tesco Store 2846,22/06/2019,184.72,Provisions-General,Misc-Unknown,GPC
18/06/19 to 17/07/19,Adults and Communities,Tesco Store 2846,27/06/2019,126.01,Provisions-General,Misc-Unknown,GPC
18/06/19 to 17/07/19,Adults and Communities,Tesco Store 2846,05/07/2019,159.19,Provisions-General,"Grocery Stores, Supermarkets",GPC
18/06/19 to 17/07/19,Adults and Communities,Tesco Store 2846,11/07/2019,244.00,Provisions-General,"Grocery Stores, Supermarkets",GPC
18/06/19 to 17/07/19,Adults and Communities,Tesco Stores 2044,13/07/2019,25.68,Materials-General,"Grocery Stores, Supermarkets",GPC
18/06/19 to 17/07/19,Adults and Communities,Tesco Stores 5182,24/06/2019,88.90,Operational Equipment-General,Misc-Unknown,GPC
18/06/19 to 17/07/19,Adults and Communities,Tesco Stores 5182,18/06/2019,87.49,Provisions-General,"Grocery Stores, Supermarkets",GPC
18/06/19 to 17/07/19,Adults and Communities,Tesco Stores 5182,22/06/2019,27.86,Provisions-General,Misc-Unknown,GPC
18/06/19 to 17/07/19,Adults and Communities,Tesco Stores 5182,24/06/2019,124.83,Provisions-General,Misc-Unknown,GPC
18/06/19 to 17/07/19,Adults and Communities,Tesco Stores 5182,28/06/2019,146.11,Provisions-General,Misc-Unknown,GPC
18/06/19 to 17/07/19,Adults and Communities,Tesco Stores 5182,29/06/2019,37.97,Provisions-General,Misc-Unknown,GPC
18/06/19 to 17/07/19,Adults and Communities,Tesco Stores 5182,03/07/2019,160.29,Provisions-General,"Grocery Stores, Supermarkets",GPC
18/06/19 to 17/07/19,Adults and Communities,Tesco Stores 5182,09/07/2019,111.75,Provisions-General,"Grocery Stores, Supermarkets",GPC
18/06/19 to 17/07/19,Adults and Communities,Tesco Stores 5182,12/07/2019,138.17,Provisions-General,"Grocery Stores, Supermarkets",GPC
18/06/19 to 17/07/19,Adults and Communities,Tesco Stores 5292,29/06/2019,7.40,Subsistence-General,Misc-Unknown,GPC
18/06/19 to 17/07/19,Adults and Communities,The Book People,09/07/2019,111.51,Materials-General,Book Stores,GPC
18/06/19 to 17/07/19,Adults and Communities,The Lord Nelson,17/06/2019,19.95,Other Expenditure-General,"Drinking Places (Alcoholic Beverages)-Bars, Tavern",GPC
18/06/19 to 17/07/19,Adults and Communities,The Post Office,20/06/2019,34.75,Postal Services-General,Postage Stamps,GPC
18/06/19 to 17/07/19,Adults and Communities,The Pot Shop,15/07/2019,27.50,Other Equipment & Materials-General,Miscellaneous House Furnishing Specialty Shops,GPC
18/06/19 to 17/07/19,Adults and Communities,The Prince Rupert,19/06/2019,13.70,Other Expenditure-General,"Drinking Places (Alcoholic Beverages)-Bars, Tavern",GPC
18/06/19 to 17/07/19,Adults and Communities,Theworks.Co.Uk,03/07/2019,2.50,Stationery-General,"Furniture, Home Furnishings and Equipment Stores,",GPC
18/06/19 to 17/07/19,Adults and Communities,Trainline,20/06/2019,112.38,Casual/Essential-General,Misc-Unknown,GPC
18/06/19 to 17/07/19,Adults and Communities,Trainline,20/06/2019,99.67,Casual/Essential-General,Misc-Unknown,GPC
18/06/19 to 17/07/19,Adults and Communities,Trainline,02/07/2019,90.51,Casual/Essential-General,Passenger Railways,GPC
18/06/19 to 17/07/19,Adults and Communities,Trainline.Com,19/06/2019,95.60,Casual/Essential-General,Passenger Railways,GPC
18/06/19 to 17/07/19,Adults and Communities,Trainline.Com,20/06/2019,210.52,Public Transport -  Staff-General,Misc-Unknown,GPC
18/06/19 to 17/07/19,Adults and Communities,Trainline.Com,20/06/2019,22.73,Public Transport -  Staff-General,Misc-Unknown,GPC
18/06/19 to 17/07/19,Adults and Communities,Transparent Communicat,18/06/2019,116.50,Stationery-General,"RADIO, TELEVISION, AND STEREO STORES (ELECTRONIC STORES)",GPC
18/06/19 to 17/07/19,Adults and Communities,Tvlicensing.Co.Uk,03/07/2019,154.50,Other Expenditure-General,"Management, Consulting and Public Relations Servic",GPC
18/06/19 to 17/07/19,Adults and Communities,Villiers Refectory,08/07/2019,100.00,Display/Conservn/Exhibitions-Exhibitions,Schools and Educational Services-Not Elsewhere Cla,GPC
18/06/19 to 17/07/19,Adults and Communities,Visitbritain Shop Gb,19/06/2019,28.70,Public Transport -  Staff-General,Tourist Attractions and Exhibits,GPC
18/06/19 to 17/07/19,Adults and Communities,Visitbritain Shop Gb,20/06/2019,54.90,Public Transport -  Staff-General,Tourist Attractions and Exhibits,GPC
18/06/19 to 17/07/19,Adults and Communities,Vistaprint,21/06/2019,48.98,Publicity/Marketing-General,Misc-Unknown,GPC
18/06/19 to 17/07/19,Adults and Communities,Wagamama Mermaid Quay,18/06/2019,8.95,Training Expenses-General,"Eating Places, Restaurants",GPC
18/06/19 to 17/07/19,Adults and Communities,Wagamama Mermaid Quay,18/06/2019,5.95,Training Expenses-General,"Eating Places, Restaurants",GPC
18/06/19 to 17/07/19,Adults and Communities,Waitrose 484,27/06/2019,0.89,Other Expenditure-General,Misc-Unknown,GPC
18/06/19 to 17/07/19,Adults and Communities,Wickes Ashby De La Zouch,13/07/2019,26.88,Other Expenditure-General,"Building Materials, Lumber Stores",GPC
18/06/19 to 17/07/19,Adults and Communities,Wilko Retail Limit,09/07/2019,16.00,Materials-General,Household Appliance Stores,GPC
18/06/19 to 17/07/19,Adults and Communities,Wilko Retail Limit,20/06/2019,4.00,Operational Equipment-General,Household Appliance Stores,GPC
18/06/19 to 17/07/19,Adults and Communities,Wilko.Com,17/06/2019,36.67,Stationery-General,Miscellaneous General Merchandise Stores,GPC
18/06/19 to 17/07/19,Adults and Communities,Wm Morrisons Store,20/06/2019,17.95,Materials-General,"Grocery Stores, Supermarkets",GPC
18/06/19 to 17/07/19,Adults and Communities,Wm Morrisons Store,21/06/2019,8.30,Materials-General,Misc-Unknown,GPC
18/06/19 to 17/07/19,Adults and Communities,Wm Morrisons Store,22/06/2019,4.50,Materials-General,Misc-Unknown,GPC
18/06/19 to 17/07/19,Adults and Communities,Wm Morrisons Store,27/06/2019,14.17,Materials-General,Misc-Unknown,GPC
18/06/19 to 17/07/19,Adults and Communities,Wm Morrisons Store,28/06/2019,51.58,Materials-General,Misc-Unknown,GPC
18/06/19 to 17/07/19,Adults and Communities,Wm Morrisons Store,03/07/2019,15.03,Materials-General,"Grocery Stores, Supermarkets",GPC
18/06/19 to 17/07/19,Adults and Communities,Wm Morrisons Store,05/07/2019,6.60,Materials-General,"Grocery Stores, Supermarkets",GPC
18/06/19 to 17/07/19,Adults and Communities,Wm Morrisons Store,06/07/2019,33.32,Materials-General,"Grocery Stores, Supermarkets",GPC
18/06/19 to 17/07/19,Adults and Communities,Wm Morrisons Store,10/07/2019,21.95,Materials-General,"Grocery Stores, Supermarkets",GPC
18/06/19 to 17/07/19,Adults and Communities,Wm Morrisons Store,11/07/2019,15.65,Materials-General,"Grocery Stores, Supermarkets",GPC
18/06/19 to 17/07/19,Adults and Communities,Wm Morrisons Store,12/07/2019,25.69,Materials-General,"Grocery Stores, Supermarkets",GPC
18/06/19 to 17/07/19,Adults and Communities,Wm Morrisons Store,28/06/2019,2.08,Other Expenditure-General,Misc-Unknown,GPC
18/06/19 to 17/07/19,Adults and Communities,Wm Morrisons Store,11/07/2019,6.46,Other Expenditure-General,"Grocery Stores, Supermarkets",GPC
18/06/19 to 17/07/19,Adults and Communities,Wm Morrisons Store,12/07/2019,3.33,Other Expenditure-General,"Grocery Stores, Supermarkets",GPC
18/06/19 to 17/07/19,Adults and Communities,Www.Alzproducts.Co.Uk,18/06/2019,45.26,Other Equipment & Materials-General,Orthopedic Goods-Artificial Limb Stores,GPC
18/06/19 to 17/07/19,Adults and Communities,Www.Argos.Co.Uk,02/07/2019,63.95,General Equipment-General,Discount Stores,GPC
18/06/19 to 17/07/19,Adults and Communities,Www.Ecsbrokers.Com,21/06/2019,187.02,Other Expenditure-General,Insurance-Sales and Underwriting,GPC
18/06/19 to 17/07/19,Adults and Communities,Www.Gear4music.Com,18/06/2019,72.13,IT Equipment-General,"Music Stores-Musical Instruments, Pianos, Sheet Mu",GPC
18/06/19 to 17/07/19,Adults and Communities,Www.Leicestershire.Gov,04/07/2019,18.00,Other Expenditure-General,Government Services-Not Elsewhere Classified,GPC
18/06/19 to 17/07/19,Adults and Communities,Www.Leicestershire.Gov,05/07/2019,18.00,Other Expenditure-General,Government Services-Not Elsewhere Classified,GPC
18/06/19 to 17/07/19,Adults and Communities,Www.Leicestershire.Gov,05/07/2019,18.00,Other Expenditure-General,Government Services-Not Elsewhere Classified,GPC
18/06/19 to 17/07/19,Adults and Communities,Www.Leicestershire.Gov,10/07/2019,-18.00,Other Expenditure-General,Government Services-Not Elsewhere Classified,GPC
18/06/19 to 17/07/19,Adults and Communities,Www.Prisons.Org.Uk,09/07/2019,116.38,Books-General,Book Stores,GPC
18/06/19 to 17/07/19,Adults and Communities,Www.Quantumjobs.Com,27/06/2019,598.00,Training Expenses-General,Misc-Unknown,GPC
18/06/19 to 17/07/19,Adults and Communities,Www.Quantumjobs.Com,03/07/2019,299.00,Training Expenses-General,Schools and Educational Services-Not Elsewhere Cla,GPC
18/06/19 to 17/07/19,Adults and Communities,Www.Ryman.Co.Uk,02/07/2019,7.99,Stationery-General,"Stationery, Office, and School Supply Stores",GPC
18/06/19 to 17/07/19,Adults and Communities,Www.Talktalkbusiness.C,25/06/2019,30.55,Telephones-General,Misc-Unknown,GPC
18/06/19 to 17/07/19,Adults and Communities,Www.Tes.Com,10/07/2019,1.67,Display/Conservn/Exhibitions-General,"Colleges, Universities, Professional Schools, and",GPC
18/06/19 to 17/07/19,Adults and Communities,Www.Towsure.Com,17/06/2019,37.42,Display/Conservn/Exhibitions-Exhibitions,"Automotive Parts, Accessories Stores",GPC
18/06/19 to 17/07/19,Adults and Communities,Www.Wbc.Co.Uk,09/07/2019,40.10,Other Expenditure-General,Commercial Equipment Not Elsewhere Classified,GPC
18/06/19 to 17/07/19,Adults and Communities,Www.Zen.Co.Uk,04/07/2019,34.76,Telephones-General,Computer Network/Information Services,GPC
18/06/19 to 17/07/19,Adults and Communities,,05/07/2019,0.44,Other Services-General,Misc-Unknown,GPC
18/06/19 to 17/07/19,C&YPS-Non Delegated,2maa010423003 Td E-Pmt,01/07/2019,75.00,Other Expenditure-General,Government Services-Not Elsewhere Classified,GPC
18/06/19 to 17/07/19,C&YPS-Non Delegated,Airport Parking,16/07/2019,29.16,Public Transport -  Staff-General,"Airports, Airport Terminals, Flying Fields",GPC
18/06/19 to 17/07/19,C&YPS-Non Delegated,Aldi 101 772,06/07/2019,3.85,Other Expenditure-Assist/Conts to Schemes,"Grocery Stores, Supermarkets",GPC
18/06/19 to 17/07/19,C&YPS-Non Delegated,Aldi 110 772,01/07/2019,2.49,Materials-General,"Grocery Stores, Supermarkets",GPC
18/06/19 to 17/07/19,C&YPS-Non Delegated,Aldi 110 772,01/07/2019,26.88,Materials-General,"Grocery Stores, Supermarkets",GPC
18/06/19 to 17/07/19,C&YPS-Non Delegated,Aldi 21 772,24/06/2019,24.98,Other Expenditure-General,Misc-Unknown,GPC
18/06/19 to 17/07/19,C&YPS-Non Delegated,Aldi 24 772,24/06/2019,12.27,Other Expenditure-General,Misc-Unknown,GPC
18/06/19 to 17/07/19,C&YPS-Non Delegated,Aldi 24 772,27/06/2019,9.56,Other Expenditure-General,Misc-Unknown,GPC
18/06/19 to 17/07/19,C&YPS-Non Delegated,Aldi 27 772,03/07/2019,12.06,Other Transfer Payments-Section 24,"Grocery Stores, Supermarkets",GPC
18/06/19 to 17/07/19,C&YPS-Non Delegated,Aldi 27 772,08/07/2019,16.94,Other Transfer Payments-Section 24,"Grocery Stores, Supermarkets",GPC
18/06/19 to 17/07/19,C&YPS-Non Delegated,Aldi 33 772,02/07/2019,6.84,Other Transfer Payments-Leaving Care Grants,"Grocery Stores, Supermarkets",GPC
18/06/19 to 17/07/19,C&YPS-Non Delegated,Aldi 4 772,16/07/2019,19.71,Provisions-General,"Grocery Stores, Supermarkets",GPC
18/06/19 to 17/07/19,C&YPS-Non Delegated,Aldi 47 772,05/07/2019,5.66,Other Equipment & Materials-General,"Grocery Stores, Supermarkets",GPC
18/06/19 to 17/07/19,C&YPS-Non Delegated,Aldi 47 772,09/07/2019,20.07,Other Equipment & Materials-General,"Grocery Stores, Supermarkets",GPC
18/06/19 to 17/07/19,C&YPS-Non Delegated,Aldi 54 772,03/07/2019,5.45,Other Expenditure-General,"Grocery Stores, Supermarkets",GPC
18/06/19 to 17/07/19,C&YPS-Non Delegated,Aleyahs Blinds,27/06/2019,100.00,Other Transfer Payments-Leaving Care Grants,Misc-Unknown,GPC
18/06/19 to 17/07/19,C&YPS-Non Delegated,Allpay *emh Homes,15/07/2019,320.79,Other Transfer Payments-General,Charitable and Social Service Organizations,GPC
18/06/19 to 17/07/19,C&YPS-Non Delegated,Allpay *platform Housing,05/07/2019,307.25,Other Transfer Payments-Leaving Care Grants,Charitable and Social Service Organizations,GPC
18/06/19 to 17/07/19,C&YPS-Non Delegated,Allpay *stonewater Limite,26/06/2019,187.64,Other Transfer Payments-General,Charitable and Social Service Organizations,GPC
18/06/19 to 17/07/19,C&YPS-Non Delegated,Amazon Prime*m61yk5i74 Am,09/07/2019,6.66,Other Expenditure-General,Continuity/Subscription Merchants,GPC
18/06/19 to 17/07/19,C&YPS-Non Delegated,Amazon Prime*mh3mk7ch4,13/07/2019,6.66,Recruitment Advertising-General,Continuity/Subscription Merchants,GPC
18/06/19 to 17/07/19,C&YPS-Non Delegated,Amazon.Co.Uk Amazon.Co.Uk,15/07/2019,-23.98,Materials-General,Miscellaneous and Specialty Retail Stores,GPC
18/06/19 to 17/07/19,C&YPS-Non Delegated,Amazon.Co.Uk*m60hq1un4 Am,08/07/2019,30.00,Other Equipment & Materials-General,Miscellaneous and Specialty Retail Stores,GPC
18/06/19 to 17/07/19,C&YPS-Non Delegated,Amazon.Co.Uk*m60nd67f4 Am,05/07/2019,8.99,Materials-General,Miscellaneous and Specialty Retail Stores,GPC
18/06/19 to 17/07/19,C&YPS-Non Delegated,Amazon.Co.Uk*m60yc9kf4 Am,04/07/2019,23.98,Materials-General,Miscellaneous and Specialty Retail Stores,GPC
18/06/19 to 17/07/19,C&YPS-Non Delegated,Amazon.Co.Uk*m60zu9884 Am,28/06/2019,11.64,Other Transfer Payments-Leaving Care Grants,Misc-Unknown,GPC
18/06/19 to 17/07/19,C&YPS-Non Delegated,Amazon.Co.Uk*m60zy3q84 Am,29/06/2019,26.24,Other Transfer Payments-Leaving Care Grants,Misc-Unknown,GPC
18/06/19 to 17/07/19,C&YPS-Non Delegated,Amazon.Co.Uk*m61hu7gl4 Am,21/06/2019,2.49,Stationery-General,Miscellaneous and Specialty Retail Stores,GPC
18/06/19 to 17/07/19,C&YPS-Non Delegated,Amazon.Co.Uk*m63aa3wh4 Am,11/07/2019,24.14,IT Equipment-General,Miscellaneous and Specialty Retail Stores,GPC
18/06/19 to 17/07/19,C&YPS-Non Delegated,Amazon.Co.Uk*m63e25wz4,12/07/2019,29.05,Other Transfer Payments-General,Direct Marketers - Other,GPC
18/06/19 to 17/07/19,C&YPS-Non Delegated,Amazon.Co.Uk*m63lh7ww4,11/07/2019,12.00,Other Transfer Payments-Section 23 Grants,Direct Marketers - Other,GPC
18/06/19 to 17/07/19,C&YPS-Non Delegated,Amazon.Co.Uk*m63yc2u04 Am,07/07/2019,31.91,Materials-General,Miscellaneous and Specialty Retail Stores,GPC
18/06/19 to 17/07/19,C&YPS-Non Delegated,Amazon.Co.Uk*m65v33804 Am,28/06/2019,13.46,Other Transfer Payments-Leaving Care Grants,Misc-Unknown,GPC
18/06/19 to 17/07/19,C&YPS-Non Delegated,Amazon.Co.Uk*m661g5634 Am,30/06/2019,205.77,IT Equipment-General,Misc-Unknown,GPC
18/06/19 to 17/07/19,C&YPS-Non Delegated,Amazon.Co.Uk*m66494g54 Am,21/06/2019,12.46,Other Transfer Payments-Section 23 Grants,Miscellaneous and Specialty Retail Stores,GPC
18/06/19 to 17/07/19,C&YPS-Non Delegated,Amazon.Co.Uk*m66ni4204 Am,03/07/2019,69.26,Stationery-General,Miscellaneous and Specialty Retail Stores,GPC
18/06/19 to 17/07/19,C&YPS-Non Delegated,Amazon.Co.Uk*m66v269a4,07/07/2019,12.87,Other Expenditure-General,Direct Marketers - Other,GPC
18/06/19 to 17/07/19,C&YPS-Non Delegated,Amazon.Co.Uk*m67by5kx4,05/07/2019,17.98,IT Equipment-General,Direct Marketers - Other,GPC
18/06/19 to 17/07/19,C&YPS-Non Delegated,Amazon.Co.Uk*m67dw40m4,18/06/2019,83.00,Other Equipment & Materials-General,Direct Marketers - Other,GPC
18/06/19 to 17/07/19,C&YPS-Non Delegated,Amazon.Co.Uk*m67j79ro4 Am,10/07/2019,9.99,Materials-General,Miscellaneous and Specialty Retail Stores,GPC
18/06/19 to 17/07/19,C&YPS-Non Delegated,Amazon.Co.Uk*m67l959d4 Am,06/07/2019,8.99,Materials-General,Miscellaneous and Specialty Retail Stores,GPC
18/06/19 to 17/07/19,C&YPS-Non Delegated,Amazon.Co.Uk*m67s82ey4 Am,16/06/2019,41.66,Stationery-General,Miscellaneous and Specialty Retail Stores,GPC
18/06/19 to 17/07/19,C&YPS-Non Delegated,Amazon.Co.Uk*m689g7yw4,11/07/2019,14.60,Other Equipment & Materials-General,Direct Marketers - Other,GPC
18/06/19 to 17/07/19,C&YPS-Non Delegated,Amazon.Co.Uk*m68ln8tj4 Am,16/06/2019,27.00,Hospitality-General,Miscellaneous and Specialty Retail Stores,GPC
18/06/19 to 17/07/19,C&YPS-Non Delegated,Amazon.Co.Uk*m68y04s64,02/07/2019,10.72,Other Transfer Payments-General,Direct Marketers - Other,GPC
18/06/19 to 17/07/19,C&YPS-Non Delegated,Amazon.Co.Uk*m69g24xi4 Am,23/06/2019,19.47,Other Expenditure-Assist/Conts to Schemes,Miscellaneous and Specialty Retail Stores,GPC
18/06/19 to 17/07/19,C&YPS-Non Delegated,Amazon.Co.Uk*m69h812h4 Am,03/07/2019,85.82,Materials-General,Miscellaneous and Specialty Retail Stores,GPC
18/06/19 to 17/07/19,C&YPS-Non Delegated,Amzn Mktp UK Amazon.Co.Uk,02/07/2019,-3.37,Books-General,Book Stores,GPC
18/06/19 to 17/07/19,C&YPS-Non Delegated,Amznmktplace,08/07/2019,70.60,Books-General,Miscellaneous and Specialty Retail Stores,GPC
18/06/19 to 17/07/19,C&YPS-Non Delegated,Amznmktplace,25/06/2019,9.99,IT Equipment-General,Misc-Unknown,GPC
18/06/19 to 17/07/19,C&YPS-Non Delegated,Amznmktplace,06/07/2019,18.46,IT Equipment-Purchase - Hardware,Miscellaneous and Specialty Retail Stores,GPC
18/06/19 to 17/07/19,C&YPS-Non Delegated,Amznmktplace,17/06/2019,43.30,Materials-General,Miscellaneous and Specialty Retail Stores,GPC
18/06/19 to 17/07/19,C&YPS-Non Delegated,Amznmktplace,20/06/2019,4.11,Materials-General,Miscellaneous and Specialty Retail Stores,GPC
18/06/19 to 17/07/19,C&YPS-Non Delegated,Amznmktplace,20/06/2019,44.98,Materials-General,Miscellaneous and Specialty Retail Stores,GPC
18/06/19 to 17/07/19,C&YPS-Non Delegated,Amznmktplace,25/06/2019,21.78,Materials-General,Misc-Unknown,GPC
18/06/19 to 17/07/19,C&YPS-Non Delegated,Amznmktplace,03/07/2019,12.00,Materials-General,Miscellaneous and Specialty Retail Stores,GPC
18/06/19 to 17/07/19,C&YPS-Non Delegated,Amznmktplace,03/07/2019,7.55,Materials-General,Miscellaneous and Specialty Retail Stores,GPC
18/06/19 to 17/07/19,C&YPS-Non Delegated,Amznmktplace,03/07/2019,14.14,Materials-General,Miscellaneous and Specialty Retail Stores,GPC
18/06/19 to 17/07/19,C&YPS-Non Delegated,Amznmktplace,04/07/2019,29.19,Materials-General,Miscellaneous and Specialty Retail Stores,GPC
18/06/19 to 17/07/19,C&YPS-Non Delegated,Amznmktplace,04/07/2019,4.28,Materials-General,Miscellaneous and Specialty Retail Stores,GPC
18/06/19 to 17/07/19,C&YPS-Non Delegated,Amznmktplace,04/07/2019,4.29,Materials-General,Miscellaneous and Specialty Retail Stores,GPC
18/06/19 to 17/07/19,C&YPS-Non Delegated,Amznmktplace,05/07/2019,21.03,Materials-General,Miscellaneous and Specialty Retail Stores,GPC
18/06/19 to 17/07/19,C&YPS-Non Delegated,Amznmktplace,05/07/2019,15.50,Materials-General,Miscellaneous and Specialty Retail Stores,GPC
18/06/19 to 17/07/19,C&YPS-Non Delegated,Amznmktplace,21/06/2019,5.79,Other Equipment & Materials-General,Miscellaneous and Specialty Retail Stores,GPC
18/06/19 to 17/07/19,C&YPS-Non Delegated,Amznmktplace,25/06/2019,15.83,Other Equipment & Materials-General,Misc-Unknown,GPC
18/06/19 to 17/07/19,C&YPS-Non Delegated,Amznmktplace,26/06/2019,81.33,Other Equipment & Materials-General,Misc-Unknown,GPC
18/06/19 to 17/07/19,C&YPS-Non Delegated,Amznmktplace,05/07/2019,44.16,Other Equipment & Materials-General,Miscellaneous and Specialty Retail Stores,GPC
18/06/19 to 17/07/19,C&YPS-Non Delegated,Amznmktplace,11/07/2019,9.95,Other Equipment & Materials-General,Miscellaneous and Specialty Retail Stores,GPC
18/06/19 to 17/07/19,C&YPS-Non Delegated,Amznmktplace,11/07/2019,16.66,Other Equipment & Materials-General,Miscellaneous and Specialty Retail Stores,GPC
18/06/19 to 17/07/19,C&YPS-Non Delegated,Amznmktplace,12/07/2019,21.47,Other Equipment & Materials-General,Miscellaneous and Specialty Retail Stores,GPC
18/06/19 to 17/07/19,C&YPS-Non Delegated,Amznmktplace,16/07/2019,23.59,Other Equipment & Materials-General,Miscellaneous and Specialty Retail Stores,GPC
18/06/19 to 17/07/19,C&YPS-Non Delegated,Amznmktplace,16/07/2019,10.82,Other Equipment & Materials-General,Miscellaneous and Specialty Retail Stores,GPC
18/06/19 to 17/07/19,C&YPS-Non Delegated,Amznmktplace,24/06/2019,40.40,Other Expenditure-General,Misc-Unknown,GPC
18/06/19 to 17/07/19,C&YPS-Non Delegated,Amznmktplace,05/07/2019,20.00,Other Transfer Payments-General,Miscellaneous and Specialty Retail Stores,GPC
18/06/19 to 17/07/19,C&YPS-Non Delegated,Amznmktplace,12/07/2019,2.33,Other Transfer Payments-General,Miscellaneous and Specialty Retail Stores,GPC
18/06/19 to 17/07/19,C&YPS-Non Delegated,Amznmktplace,25/06/2019,187.49,Other Transfer Payments-Leaving Care Grants,Misc-Unknown,GPC
18/06/19 to 17/07/19,C&YPS-Non Delegated,Amznmktplace,24/06/2019,16.67,Other Transfer Payments-Section 23 Grants,Misc-Unknown,GPC
18/06/19 to 17/07/19,C&YPS-Non Delegated,Amznmktplace,01/07/2019,7.58,Stationery-General,Miscellaneous and Specialty Retail Stores,GPC
18/06/19 to 17/07/19,C&YPS-Non Delegated,Amznmktplace,05/07/2019,27.98,Stationery-General,Miscellaneous and Specialty Retail Stores,GPC
18/06/19 to 17/07/19,C&YPS-Non Delegated,Amznmktplace Amazon.Co.Uk,25/06/2019,8.28,IT Equipment-General,Misc-Unknown,GPC
18/06/19 to 17/07/19,C&YPS-Non Delegated,Amznmktplace Amazon.Co.Uk,19/06/2019,7.47,Materials-General,Miscellaneous and Specialty Retail Stores,GPC
18/06/19 to 17/07/19,C&YPS-Non Delegated,Amznmktplace Amazon.Co.Uk,19/06/2019,12.92,Materials-General,Miscellaneous and Specialty Retail Stores,GPC
18/06/19 to 17/07/19,C&YPS-Non Delegated,Amznmktplace Amazon.Co.Uk,23/06/2019,7.99,Materials-General,Miscellaneous and Specialty Retail Stores,GPC
18/06/19 to 17/07/19,C&YPS-Non Delegated,Amznmktplace Amazon.Co.Uk,02/07/2019,89.96,Materials-General,Miscellaneous and Specialty Retail Stores,GPC
18/06/19 to 17/07/19,C&YPS-Non Delegated,Amznmktplace Amazon.Co.Uk,03/07/2019,15.41,Materials-General,Miscellaneous and Specialty Retail Stores,GPC
18/06/19 to 17/07/19,C&YPS-Non Delegated,Amznmktplace Amazon.Co.Uk,03/07/2019,16.18,Materials-General,Miscellaneous and Specialty Retail Stores,GPC
18/06/19 to 17/07/19,C&YPS-Non Delegated,Amznmktplace Amazon.Co.Uk,05/07/2019,11.08,Materials-General,Miscellaneous and Specialty Retail Stores,GPC
18/06/19 to 17/07/19,C&YPS-Non Delegated,Amznmktplace Amazon.Co.Uk,05/07/2019,4.02,Materials-General,Miscellaneous and Specialty Retail Stores,GPC
18/06/19 to 17/07/19,C&YPS-Non Delegated,Amznmktplace Amazon.Co.Uk,08/07/2019,9.17,Materials-General,Miscellaneous and Specialty Retail Stores,GPC
18/06/19 to 17/07/19,C&YPS-Non Delegated,Amznmktplace Amazon.Co.Uk,08/07/2019,2.41,Materials-General,Miscellaneous and Specialty Retail Stores,GPC
18/06/19 to 17/07/19,C&YPS-Non Delegated,Amznmktplace Amazon.Co.Uk,12/07/2019,48.97,Other Equipment & Materials-General,Miscellaneous and Specialty Retail Stores,GPC
18/06/19 to 17/07/19,C&YPS-Non Delegated,Amznmktplace Amazon.Co.Uk,04/07/2019,1.95,Other Transfer Payments-General,Miscellaneous and Specialty Retail Stores,GPC
18/06/19 to 17/07/19,C&YPS-Non Delegated,Amznmktplace Amazon.Co.Uk,27/06/2019,191.66,Other Transfer Payments-Leaving Care Grants,Misc-Unknown,GPC
18/06/19 to 17/07/19,C&YPS-Non Delegated,Amznmktplace Amazon.Co.Uk,09/07/2019,16.67,Other Transfer Payments-Section 23 Grants,Miscellaneous and Specialty Retail Stores,GPC
18/06/19 to 17/07/19,C&YPS-Non Delegated,Amznmktplace Amazon.Co.Uk,20/06/2019,6.66,Stationery-General,Miscellaneous and Specialty Retail Stores,GPC
18/06/19 to 17/07/19,C&YPS-Non Delegated,Amznmktplace Amazon.Co.Uk,21/06/2019,6.17,Stationery-General,Miscellaneous and Specialty Retail Stores,GPC
18/06/19 to 17/07/19,C&YPS-Non Delegated,Amznmktplace Amazon.Co.Uk,24/06/2019,4.91,Stationery-General,Misc-Unknown,GPC
18/06/19 to 17/07/19,C&YPS-Non Delegated,Amznmktplace Amazon.Co.Uk,26/06/2019,6.66,Stationery-General,Misc-Unknown,GPC
18/06/19 to 17/07/19,C&YPS-Non Delegated,Amznmktplace Amazon.Co.Uk,27/06/2019,4.96,Stationery-General,Misc-Unknown,GPC
18/06/19 to 17/07/19,C&YPS-Non Delegated,Amznmktplace Amazon.Co.Uk,27/06/2019,4.96,Stationery-General,Misc-Unknown,GPC
18/06/19 to 17/07/19,C&YPS-Non Delegated,Ao Retail Limited,20/06/2019,204.17,General Equipment-General,Household Appliance Stores,GPC
18/06/19 to 17/07/19,C&YPS-Non Delegated,Ao Retail Limited,18/06/2019,207.50,Other Premises Expenses-General,Household Appliance Stores,GPC
18/06/19 to 17/07/19,C&YPS-Non Delegated,Ao Retail Limited,10/07/2019,207.50,Other Transfer Payments-Leaving Care Grants,Household Appliance Stores,GPC
18/06/19 to 17/07/19,C&YPS-Non Delegated,Ao Retail Limited,16/07/2019,161.67,Other Transfer Payments-Leaving Care Grants,Household Appliance Stores,GPC
18/06/19 to 17/07/19,C&YPS-Non Delegated,Argofield Ltd,04/07/2019,104.99,Other Transfer Payments-Leaving Care Grants,"Furniture, Home Furnishings and Equipment Stores,",GPC
18/06/19 to 17/07/19,C&YPS-Non Delegated,Argos Hinckley Ins,08/07/2019,207.95,Other Transfer Payments-Leaving Care Grants,Discount Stores,GPC
18/06/19 to 17/07/19,C&YPS-Non Delegated,Argos Ltd,18/06/2019,4.99,Other Equipment & Materials-General,Discount Stores,GPC
18/06/19 to 17/07/19,C&YPS-Non Delegated,Argos Ltd,03/07/2019,15.00,Other Equipment & Materials-General,Discount Stores,GPC
18/06/19 to 17/07/19,C&YPS-Non Delegated,Argos Ltd,08/07/2019,21.65,Other Equipment & Materials-General,Discount Stores,GPC
18/06/19 to 17/07/19,C&YPS-Non Delegated,Argos Ltd,04/07/2019,14.99,Other Expenditure-General,Discount Stores,GPC
18/06/19 to 17/07/19,C&YPS-Non Delegated,Argos Ltd,15/07/2019,155.44,Other Transfer Payments-Leaving Care Grants,Discount Stores,GPC
18/06/19 to 17/07/19,C&YPS-Non Delegated,Argos Ltd,02/07/2019,21.99,Provisions-General,Discount Stores,GPC
18/06/19 to 17/07/19,C&YPS-Non Delegated,Argos Ltd,08/07/2019,13.33,Provisions-General,Discount Stores,GPC
18/06/19 to 17/07/19,C&YPS-Non Delegated,Argos Retail Group,17/06/2019,179.00,Other Transfer Payments-Leaving Care Grants,Discount Stores,GPC
18/06/19 to 17/07/19,C&YPS-Non Delegated,Argos Retail Group,21/06/2019,19.99,Other Transfer Payments-Section 23 Grants,Misc-Unknown,GPC
18/06/19 to 17/07/19,C&YPS-Non Delegated,Argos Retail Group,11/07/2019,29.98,Other Transfer Payments-Section 23 Grants,Discount Stores,GPC
18/06/19 to 17/07/19,C&YPS-Non Delegated,Argos Retail Group,24/06/2019,57.98,Provisions-General,Misc-Unknown,GPC
18/06/19 to 17/07/19,C&YPS-Non Delegated,Arriva Mid Travel,04/07/2019,73.00,Other Transfer Payments-Education Costs,"Bus Lines, Charters, Tour Buses",GPC
18/06/19 to 17/07/19,C&YPS-Non Delegated,Arriva Mid Travel,10/07/2019,50.40,Other Transfer Payments-General,"Bus Lines, Charters, Tour Buses",GPC
18/06/19 to 17/07/19,C&YPS-Non Delegated,Arriva Passenger S,03/07/2019,60.00,Other Transfer Payments-Section 24,Automotive Repair Shops (non-dealer),GPC
18/06/19 to 17/07/19,C&YPS-Non Delegated,Asda George Com Leeds,18/06/2019,47.95,Other Transfer Payments-Leaving Care Grants,"Grocery Stores, Supermarkets",GPC
18/06/19 to 17/07/19,C&YPS-Non Delegated,Asda George Com Leeds,27/06/2019,141.50,Other Transfer Payments-Leaving Care Grants,Misc-Unknown,GPC
18/06/19 to 17/07/19,C&YPS-Non Delegated,Asda George Com Leeds,12/07/2019,-41.00,Other Transfer Payments-Leaving Care Grants,"Grocery Stores, Supermarkets",GPC
18/06/19 to 17/07/19,C&YPS-Non Delegated,Asda Superstore,26/06/2019,15.15,Other Expenditure-General,Misc-Unknown,GPC
18/06/19 to 17/07/19,C&YPS-Non Delegated,Asda Superstore,10/07/2019,14.34,Other Expenditure-General,"Grocery Stores, Supermarkets",GPC
18/06/19 to 17/07/19,C&YPS-Non Delegated,Asda Superstore,12/07/2019,4.16,Other Expenditure-General,"Grocery Stores, Supermarkets",GPC
18/06/19 to 17/07/19,C&YPS-Non Delegated,Asda Superstore,27/06/2019,14.00,Other Transfer Payments-Leaving Care Grants,Misc-Unknown,GPC
18/06/19 to 17/07/19,C&YPS-Non Delegated,Asda Superstore,27/06/2019,336.65,Other Transfer Payments-Leaving Care Grants,Misc-Unknown,GPC
18/06/19 to 17/07/19,C&YPS-Non Delegated,B & Q 1012,17/06/2019,22.36,Other Transfer Payments-Leaving Care Grants,"Building Materials, Lumber Stores",GPC
18/06/19 to 17/07/19,C&YPS-Non Delegated,B&m Retail,27/06/2019,281.85,Materials-General,Misc-Unknown,GPC
18/06/19 to 17/07/19,C&YPS-Non Delegated,B&m Retail,27/06/2019,41.96,Other Transfer Payments-Leaving Care Grants,Misc-Unknown,GPC
18/06/19 to 17/07/19,C&YPS-Non Delegated,B&m Retail Ltd,08/07/2019,88.42,Other Transfer Payments-Leaving Care Grants,Discount Stores,GPC
18/06/19 to 17/07/19,C&YPS-Non Delegated,B.Com 326699-Xghf7 Balham,17/06/2019,87.30,Subsistence-General,"Lodging-Hotels, Motels, Resorts",GPC
18/06/19 to 17/07/19,C&YPS-Non Delegated,Bbcn Leicester Countes,01/07/2019,332.00,Other Transfer Payments-Section 23 Grants,Child Care Services,GPC
18/06/19 to 17/07/19,C&YPS-Non Delegated,Bella Vista Lodge,04/07/2019,55.00,Training Expenses-General,"Lodging-Hotels, Motels, Resorts",GPC
18/06/19 to 17/07/19,C&YPS-Non Delegated,Blaby Fitness Ltd,20/06/2019,10.00,Subscriptions-General,"Membership Clubs (Sports, Recreation, Athletic), C",GPC
18/06/19 to 17/07/19,C&YPS-Non Delegated,Blaby Fitness Ltd,04/07/2019,10.00,Subscriptions-General,"Membership Clubs (Sports, Recreation, Athletic), C",GPC
18/06/19 to 17/07/19,C&YPS-Non Delegated,Blaby Golf Centre,04/07/2019,10.00,Other Transfer Payments-General,Golf Courses-Public,GPC
18/06/19 to 17/07/19,C&YPS-Non Delegated,Boohoo.Com,18/06/2019,95.79,Other Transfer Payments-General,Men's And Women's Clothing Stores,GPC
18/06/19 to 17/07/19,C&YPS-Non Delegated,Boots 585,22/06/2019,11.04,Other Expenditure-General,Misc-Unknown,GPC
18/06/19 to 17/07/19,C&YPS-Non Delegated,British Heart Foundati,10/07/2019,75.00,Other Transfer Payments-Leaving Care Grants,Charitable and Social Service Organizations,GPC
18/06/19 to 17/07/19,C&YPS-Non Delegated,Bt Bill Payment 2,21/06/2019,96.30,IT Equipment-Rental,Misc-Unknown,GPC
18/06/19 to 17/07/19,C&YPS-Non Delegated,Bt Bill Payment 2,17/06/2019,152.70,Operational Equipment-General,Telecommunication Equipment Including Telephone Sa,GPC
18/06/19 to 17/07/19,C&YPS-Non Delegated,Bt Bill Payment 2,18/06/2019,80.90,Operational Equipment-General,Telecommunication Equipment Including Telephone Sa,GPC
18/06/19 to 17/07/19,C&YPS-Non Delegated,Bt Bill Payment 2,17/06/2019,55.89,Telephones-General,Telecommunication Equipment Including Telephone Sa,GPC
18/06/19 to 17/07/19,C&YPS-Non Delegated,Bt Bill Payment 2,17/06/2019,55.89,Telephones-General,Telecommunication Equipment Including Telephone Sa,GPC
18/06/19 to 17/07/19,C&YPS-Non Delegated,Bt Bill Payment 2,08/07/2019,76.80,Telephones-General,Telecommunication Equipment Including Telephone Sa,GPC
18/06/19 to 17/07/19,C&YPS-Non Delegated,Bt Bill Payment 2,10/07/2019,57.33,Telephones-General,Telecommunication Equipment Including Telephone Sa,GPC
18/06/19 to 17/07/19,C&YPS-Non Delegated,Bt Bill Payment 2,10/07/2019,47.91,Telephones-General,Telecommunication Equipment Including Telephone Sa,GPC
18/06/19 to 17/07/19,C&YPS-Non Delegated,Bt Bill Payment 2,10/07/2019,55.89,Telephones-General,Telecommunication Equipment Including Telephone Sa,GPC
18/06/19 to 17/07/19,C&YPS-Non Delegated,Bt Bill Payment 2,16/07/2019,55.89,Telephones-General,Telecommunication Equipment Including Telephone Sa,GPC
18/06/19 to 17/07/19,C&YPS-Non Delegated,Bulls Head,27/06/2019,4.42,Other Transfer Payments-General,Misc-Unknown,GPC
18/06/19 to 17/07/19,C&YPS-Non Delegated,Caffe Nero Portsmouth Gun,08/07/2019,2.75,Other Expenditure-Assist/Conts to Schemes,"Eating Places, Restaurants",GPC
18/06/19 to 17/07/19,C&YPS-Non Delegated,Campanile Hotels,24/06/2019,43.33,Other Transfer Payments-Sector 17- Other,Misc-Unknown,GPC
18/06/19 to 17/07/19,C&YPS-Non Delegated,Central Eng Coop,19/06/2019,14.65,Materials-General,Department Stores,GPC
18/06/19 to 17/07/19,C&YPS-Non Delegated,Central Eng Coop,03/07/2019,6.65,Materials-General,Department Stores,GPC
18/06/19 to 17/07/19,C&YPS-Non Delegated,Central Eng Coop,12/07/2019,3.20,Materials-General,Department Stores,GPC
18/06/19 to 17/07/19,C&YPS-Non Delegated,Central Eng Coop,24/06/2019,9.79,Other Equipment & Materials-General,Misc-Unknown,GPC
18/06/19 to 17/07/19,C&YPS-Non Delegated,Central Eng Coop,19/06/2019,2.42,Other Expenditure-General,Department Stores,GPC
18/06/19 to 17/07/19,C&YPS-Non Delegated,Central Eng Coop,25/06/2019,10.05,Other Expenditure-General,Misc-Unknown,GPC
18/06/19 to 17/07/19,C&YPS-Non Delegated,Central Eng Coop,28/06/2019,5.33,Other Expenditure-General,Misc-Unknown,GPC
18/06/19 to 17/07/19,C&YPS-Non Delegated,Central Eng Coop,01/07/2019,5.10,Other Expenditure-General,Department Stores,GPC
18/06/19 to 17/07/19,C&YPS-Non Delegated,Central Eng Coop,08/07/2019,7.47,Other Expenditure-General,Department Stores,GPC
18/06/19 to 17/07/19,C&YPS-Non Delegated,Central Eng Coop,10/07/2019,3.50,Other Transfer Payments-General,Department Stores,GPC
18/06/19 to 17/07/19,C&YPS-Non Delegated,Central Eng Coop,21/06/2019,12.23,Other Transfer Payments-Section 24,Misc-Unknown,GPC
18/06/19 to 17/07/19,C&YPS-Non Delegated,Cherry Lane - Glebe,17/06/2019,16.99,Other Expenditure-General,Discount Stores,GPC
18/06/19 to 17/07/19,C&YPS-Non Delegated,Costa Coalville,18/06/2019,6.40,Other Expenditure-General,Fast-Food Restaurants (Quick Payment Service Pilot,GPC
18/06/19 to 17/07/19,C&YPS-Non Delegated,Costa Coalville,05/07/2019,6.05,Other Transfer Payments-Section 24,Fast-Food Restaurants (Quick Payment Service Pilot,GPC
18/06/19 to 17/07/19,C&YPS-Non Delegated,Costa Coffee,19/06/2019,6.50,Other Transfer Payments-General,Fast-Food Restaurants (Quick Payment Service Pilot,GPC
18/06/19 to 17/07/19,C&YPS-Non Delegated,Costa Coffee,10/07/2019,3.95,Subsistence-General,Fast-Food Restaurants (Quick Payment Service Pilot,GPC
18/06/19 to 17/07/19,C&YPS-Non Delegated,Costa Syston,27/06/2019,5.35,Other Transfer Payments-Section 24,Misc-Unknown,GPC
18/06/19 to 17/07/19,C&YPS-Non Delegated,Countesthorpe Born And Br,26/06/2019,45.00,Provisions-General,Misc-Unknown,GPC
18/06/19 to 17/07/19,C&YPS-Non Delegated,Crazypricebeds,05/07/2019,283.32,Other Transfer Payments-Leaving Care Grants,"Furniture, Home Furnishings and Equipment Stores,",GPC
18/06/19 to 17/07/19,C&YPS-Non Delegated,Currys Online,28/06/2019,270.00,Other Transfer Payments-Leaving Care Grants,Misc-Unknown,GPC
18/06/19 to 17/07/19,C&YPS-Non Delegated,Currys Online,28/06/2019,331.67,Other Transfer Payments-Leaving Care Grants,Misc-Unknown,GPC
18/06/19 to 17/07/19,C&YPS-Non Delegated,Currys Online,04/07/2019,350.00,Other Transfer Payments-Leaving Care Grants,"RADIO, TELEVISION, AND STEREO STORES (ELECTRONIC STORES)",GPC
18/06/19 to 17/07/19,C&YPS-Non Delegated,Currys S/s,10/07/2019,207.59,Other Transfer Payments-Leaving Care Grants,Household Appliance Stores,GPC
18/06/19 to 17/07/19,C&YPS-Non Delegated,Derwentlasercrafts,18/06/2019,91.00,Other Expenditure-General,"Gift, Card, Novelty, and Souvenir Shops",GPC
18/06/19 to 17/07/19,C&YPS-Non Delegated,Direct Carpet Supplies,03/07/2019,350.00,Other Transfer Payments-Leaving Care Grants,Floor Coverings   Stores,GPC
18/06/19 to 17/07/19,C&YPS-Non Delegated,Direct Carpet Supplies,03/07/2019,300.00,Other Transfer Payments-Leaving Care Grants,Floor Coverings   Stores,GPC
18/06/19 to 17/07/19,C&YPS-Non Delegated,Dodds Solicitors Llp,26/06/2019,84.00,Consultants & Specialists-General,"Legal Services, Attorneys",GPC
18/06/19 to 17/07/19,C&YPS-Non Delegated,Drayton Manor Park Limite,05/07/2019,5.00,Other Expenditure-General,Automobile Parking Lots and Garages,GPC
18/06/19 to 17/07/19,C&YPS-Non Delegated,Drayton Manor Pk Catering,05/07/2019,25.00,Other Expenditure-General,"Eating Places, Restaurants",GPC
18/06/19 to 17/07/19,C&YPS-Non Delegated,Drayton Manor Theme Park,04/07/2019,56.00,Other Expenditure-General,RECREATION SERVICES--NOT ELSEWHERE CLASSIFIED,GPC
18/06/19 to 17/07/19,C&YPS-Non Delegated,Drayton Manor Tickets,05/07/2019,32.50,Other Transfer Payments-Section 23 Grants,RECREATION SERVICES--NOT ELSEWHERE CLASSIFIED,GPC
18/06/19 to 17/07/19,C&YPS-Non Delegated,Dudleyarms Pub Company Lt,01/07/2019,6.05,Other Transfer Payments-General,"Drinking Places (Alcoholic Beverages)-Bars, Tavern",GPC
18/06/19 to 17/07/19,C&YPS-Non Delegated,Dvla Driver Online,01/07/2019,34.00,Other Transfer Payments-General,Government Services-Not Elsewhere Classified,GPC
18/06/19 to 17/07/19,C&YPS-Non Delegated,Dvla Driver Online,09/07/2019,34.00,Other Transfer Payments-Section 24,Government Services-Not Elsewhere Classified,GPC
18/06/19 to 17/07/19,C&YPS-Non Delegated,E.On Energy Solutions,27/06/2019,330.00,Other Transfer Payments-Leaving Care Grants,Misc-Unknown,GPC
18/06/19 to 17/07/19,C&YPS-Non Delegated,East Midlands Trains,25/06/2019,174.50,Client/Volunteers-General,Misc-Unknown,GPC
18/06/19 to 17/07/19,C&YPS-Non Delegated,Eb *gang Awareness Lev,26/06/2019,132.34,Training Expenses-General,Misc-Unknown,GPC
18/06/19 to 17/07/19,C&YPS-Non Delegated,Eb *refund To Buyer,26/06/2019,112.91,Other Expenditure-General,Misc-Unknown,GPC
18/06/19 to 17/07/19,C&YPS-Non Delegated,Eb *refund To Buyer,04/07/2019,65.00,Other Recoverable Charges-General,Business Services-Not Elsewhere Classified,GPC
18/06/19 to 17/07/19,C&YPS-Non Delegated,Eb *refund To Buyer,04/07/2019,195.00,Other Recoverable Charges-General,Business Services-Not Elsewhere Classified,GPC
18/06/19 to 17/07/19,C&YPS-Non Delegated,Eb *refund To Buyer,04/07/2019,60.93,Other Recoverable Charges-General,Business Services-Not Elsewhere Classified,GPC
18/06/19 to 17/07/19,C&YPS-Non Delegated,Emmaus Leicestershire,08/07/2019,87.50,Other Transfer Payments-Leaving Care Grants,Charitable and Social Service Organizations,GPC
18/06/19 to 17/07/19,C&YPS-Non Delegated,Enderby Leisure Ce,04/07/2019,244.00,Other Transfer Payments-Section 23 Grants,"Membership Clubs (Sports, Recreation, Athletic), C",GPC
18/06/19 to 17/07/19,C&YPS-Non Delegated,Fast Key Services Limi,16/07/2019,50.01,IT Equipment-General,Business Services-Not Elsewhere Classified,GPC
18/06/19 to 17/07/19,C&YPS-Non Delegated,Flybe Kwdguw,25/06/2019,107.74,Casual/Essential-General,Misc-Unknown,GPC
18/06/19 to 17/07/19,C&YPS-Non Delegated,Flybe.Com U7ioh6,12/07/2019,71.45,Public Transport -  Staff-General,"Air Carriers, Airlines",GPC
18/06/19 to 17/07/19,C&YPS-Non Delegated,Flybe.Com Vco8kv,03/07/2019,165.62,Public Transport -  Staff-General,"Air Carriers, Airlines",GPC
18/06/19 to 17/07/19,C&YPS-Non Delegated,Flybe.Com Vdur96,03/07/2019,77.28,Public Transport -  Staff-General,"Air Carriers, Airlines",GPC
18/06/19 to 17/07/19,C&YPS-Non Delegated,Future Inns Plymouth,18/06/2019,109.00,Other Transfer Payments-Section 23 Grants,"Lodging-Hotels, Motels, Resorts",GPC
18/06/19 to 17/07/19,C&YPS-Non Delegated,Future Inns Plymouth,25/06/2019,123.00,Other Transfer Payments-Section 23 Grants,Misc-Unknown,GPC
18/06/19 to 17/07/19,C&YPS-Non Delegated,Future Inns Plymouth,02/07/2019,128.00,Other Transfer Payments-Section 23 Grants,"Lodging-Hotels, Motels, Resorts",GPC
18/06/19 to 17/07/19,C&YPS-Non Delegated,Future Inns Plymouth,09/07/2019,119.00,Other Transfer Payments-Section 23 Grants,"Lodging-Hotels, Motels, Resorts",GPC
18/06/19 to 17/07/19,C&YPS-Non Delegated,Gen Register Office,28/05/2019,-7.50,Other Expenditure-General,Misc-Unknown,GPC
18/06/19 to 17/07/19,C&YPS-Non Delegated,Gen Register Office,01/07/2019,38.00,Other Transfer Payments-General,Government Services-Not Elsewhere Classified,GPC
18/06/19 to 17/07/19,C&YPS-Non Delegated,Gen Register Office,01/07/2019,-31.50,Other Transfer Payments-General,Government Services-Not Elsewhere Classified,GPC
18/06/19 to 17/07/19,C&YPS-Non Delegated,Gen Register Office,07/05/2019,-7.50,Other Transfer Payments-Section 23 Grants,Government Services-Not Elsewhere Classified,GPC
18/06/19 to 17/07/19,C&YPS-Non Delegated,Gen Register Office,26/06/2019,36.00,Other Transfer Payments-Section 23 Grants,Government Services-Not Elsewhere Classified,GPC
18/06/19 to 17/07/19,C&YPS-Non Delegated,Gen Register Office,28/06/2019,42.00,Other Transfer Payments-Section 23 Grants,Misc-Unknown,GPC
18/06/19 to 17/07/19,C&YPS-Non Delegated,Gen Register Office,15/07/2019,14.00,Other Transfer Payments-Section 23 Grants,Government Services-Not Elsewhere Classified,GPC
18/06/19 to 17/07/19,C&YPS-Non Delegated,Gen Register Office,02/07/2019,45.25,Other Transfer Payments-Section 24,Government Services-Not Elsewhere Classified,GPC
18/06/19 to 17/07/19,C&YPS-Non Delegated,George Eliot Hospital Nh,24/06/2019,2.50,Other Transfer Payments-General,Automobile Parking Lots and Garages,GPC
18/06/19 to 17/07/19,C&YPS-Non Delegated,Gillys Sandwich Bar,26/06/2019,8.90,Other Transfer Payments-Section 24,Misc-Unknown,GPC
18/06/19 to 17/07/19,C&YPS-Non Delegated,Gillys Sandwich Bar,10/07/2019,12.70,Subsistence-General,"Eating Places, Restaurants",GPC
18/06/19 to 17/07/19,C&YPS-Non Delegated,Give US A Break Window,03/07/2019,152.86,Provisions-General,"Glass, Paint, Wallpaper Stores",GPC
18/06/19 to 17/07/19,C&YPS-Non Delegated,Grants Online,10/07/2019,225.00,Subscriptions-General,Continuity/Subscription Merchants,GPC
18/06/19 to 17/07/19,C&YPS-Non Delegated,Gynsills Farm (Glenfie,18/06/2019,8.37,Other Transfer Payments-General,"Drinking Places (Alcoholic Beverages)-Bars, Tavern",GPC
18/06/19 to 17/07/19,C&YPS-Non Delegated,H & Bbc Payment,04/07/2019,97.93,Other Transfer Payments-General,Government Services-Not Elsewhere Classified,GPC
18/06/19 to 17/07/19,C&YPS-Non Delegated,Hamilton Hilltop Nurse,02/07/2019,387.00,Other Transfer Payments-Section 23 Grants,Schools and Educational Services-Not Elsewhere Cla,GPC
18/06/19 to 17/07/19,C&YPS-Non Delegated,Heath End News 3110188,24/06/2019,2.24,Other Transfer Payments-General,Misc-Unknown,GPC
18/06/19 to 17/07/19,C&YPS-Non Delegated,Helloprint,01/07/2019,26.90,Other Expenditure-General,Quick Copy and Reproduction Services,GPC
18/06/19 to 17/07/19,C&YPS-Non Delegated,Hermitage Leisure Centre,04/07/2019,4.30,Subscriptions-General,"Membership Clubs (Sports, Recreation, Athletic), C",GPC
18/06/19 to 17/07/19,C&YPS-Non Delegated,Highstreetvouchers,08/07/2019,1250.00,Public Transport -  Staff-General,"Civic, Social, and Fraternal Associations",GPC
18/06/19 to 17/07/19,C&YPS-Non Delegated,Hinckley & Distric,16/07/2019,40.00,Other Transfer Payments-Leaving Care Grants,Charitable and Social Service Organizations,GPC
18/06/19 to 17/07/19,C&YPS-Non Delegated,Hm Passport Office,24/06/2019,85.00,Other Transfer Payments-Section 23 Grants,Government Services-Not Elsewhere Classified,GPC
18/06/19 to 17/07/19,C&YPS-Non Delegated,Hm Passport Office,25/06/2019,58.50,Other Transfer Payments-Section 23 Grants,Government Services-Not Elsewhere Classified,GPC
18/06/19 to 17/07/19,C&YPS-Non Delegated,Hm Passport Office,25/06/2019,58.50,Other Transfer Payments-Section 23 Grants,Government Services-Not Elsewhere Classified,GPC
18/06/19 to 17/07/19,C&YPS-Non Delegated,Hm Passport Office,04/07/2019,63.50,Other Transfer Payments-Section 23 Grants,Government Services-Not Elsewhere Classified,GPC
18/06/19 to 17/07/19,C&YPS-Non Delegated,Hmcourts-Service.G,01/07/2019,20.00,Other Transfer Payments-Section 23 Grants,Fines,GPC
18/06/19 to 17/07/19,C&YPS-Non Delegated,Home Bargains Coalvill,25/06/2019,3.99,Cleaning Materials-General,Misc-Unknown,GPC
18/06/19 to 17/07/19,C&YPS-Non Delegated,Home Bargains Coalvill,28/06/2019,6.93,Provisions-General,Misc-Unknown,GPC
18/06/19 to 17/07/19,C&YPS-Non Delegated,Home Outlet Limited,27/06/2019,599.96,Other Transfer Payments-Leaving Care Grants,Misc-Unknown,GPC
18/06/19 to 17/07/19,C&YPS-Non Delegated,Hotel On Booking.Com Vict,12/07/2019,104.17,Other Transfer Payments-Section 23 Grants,"Lodging-Hotels, Motels, Resorts",GPC
18/06/19 to 17/07/19,C&YPS-Non Delegated,Hotelscom{posorn},16/07/2019,80.00,Other Transfer Payments-Section 23 Grants,Travel Agencies,GPC
18/06/19 to 17/07/19,C&YPS-Non Delegated,Iceland,16/07/2019,10.69,Other Transfer Payments-General,"Grocery Stores, Supermarkets",GPC
18/06/19 to 17/07/19,C&YPS-Non Delegated,Ips Peterborough Conta,27/06/2019,85.00,Other Transfer Payments-Section 24,Misc-Unknown,GPC
18/06/19 to 17/07/19,C&YPS-Non Delegated,Itunes.Com/Bill,12/07/2019,166.66,IT Equipment-General,Record Shops,GPC
18/06/19 to 17/07/19,C&YPS-Non Delegated,Iz *key Ventures,10/07/2019,3.60,Other Expenditure-Assist/Conts to Schemes,"Eating Places, Restaurants",GPC
18/06/19 to 17/07/19,C&YPS-Non Delegated,Just Eat,18/06/2019,24.50,Other Transfer Payments-General,Fast-Food Restaurants (Quick Payment Service Pilot,GPC
18/06/19 to 17/07/19,C&YPS-Non Delegated,Kfc Newark Dt,16/07/2019,16.99,Subsistence-General,Fast-Food Restaurants (Quick Payment Service Pilot,GPC
18/06/19 to 17/07/19,C&YPS-Non Delegated,Kimcoh Property Manage,25/06/2019,346.67,Other Transfer Payments-Section 24,Professional Services-Not Elsewhere Classified,GPC
18/06/19 to 17/07/19,C&YPS-Non Delegated,Klarna *abakusdirect C,16/07/2019,269.99,Other Transfer Payments-Leaving Care Grants,"Furniture, Home Furnishings and Equipment Stores,",GPC
18/06/19 to 17/07/19,C&YPS-Non Delegated,Kokoro Leicester,28/06/2019,12.40,Other Transfer Payments-General,Misc-Unknown,GPC
18/06/19 to 17/07/19,C&YPS-Non Delegated,Leeds Marriott Hotel Foh,08/07/2019,8.33,Other Expenditure-General,Marriott Hotels,GPC
18/06/19 to 17/07/19,C&YPS-Non Delegated,Leeds Marriott Hotel Foh,21/06/2019,90.83,Other Transfer Payments-General,Misc-Unknown,GPC
18/06/19 to 17/07/19,C&YPS-Non Delegated,Leic City Council,24/06/2019,11.00,Other Transfer Payments-General,Government Services-Not Elsewhere Classified,GPC
18/06/19 to 17/07/19,C&YPS-Non Delegated,Leic City Council,17/06/2019,12.00,Other Transfer Payments-Section 23 Grants,Government Services-Not Elsewhere Classified,GPC
18/06/19 to 17/07/19,C&YPS-Non Delegated,Leic City Council,17/06/2019,12.00,Other Transfer Payments-Section 23 Grants,Government Services-Not Elsewhere Classified,GPC
18/06/19 to 17/07/19,C&YPS-Non Delegated,Leic City Council,18/06/2019,12.00,Other Transfer Payments-Section 23 Grants,Government Services-Not Elsewhere Classified,GPC
18/06/19 to 17/07/19,C&YPS-Non Delegated,Leic City Council,19/06/2019,12.00,Other Transfer Payments-Section 23 Grants,Government Services-Not Elsewhere Classified,GPC
18/06/19 to 17/07/19,C&YPS-Non Delegated,Leic City Council,20/06/2019,12.00,Other Transfer Payments-Section 23 Grants,Government Services-Not Elsewhere Classified,GPC
18/06/19 to 17/07/19,C&YPS-Non Delegated,Leic City Council,21/06/2019,12.00,Other Transfer Payments-Section 23 Grants,Government Services-Not Elsewhere Classified,GPC
18/06/19 to 17/07/19,C&YPS-Non Delegated,Leic City Council,03/07/2019,12.00,Other Transfer Payments-Section 23 Grants,Government Services-Not Elsewhere Classified,GPC
18/06/19 to 17/07/19,C&YPS-Non Delegated,Leic City Council,03/07/2019,12.00,Other Transfer Payments-Section 23 Grants,Government Services-Not Elsewhere Classified,GPC
18/06/19 to 17/07/19,C&YPS-Non Delegated,Leic City Council,04/07/2019,14.00,Other Transfer Payments-Section 23 Grants,Government Services-Not Elsewhere Classified,GPC
18/06/19 to 17/07/19,C&YPS-Non Delegated,Leic City Council,09/07/2019,23.00,Other Transfer Payments-Section 23 Grants,Government Services-Not Elsewhere Classified,GPC
18/06/19 to 17/07/19,C&YPS-Non Delegated,Leic City Council,10/07/2019,12.00,Other Transfer Payments-Section 23 Grants,Government Services-Not Elsewhere Classified,GPC
18/06/19 to 17/07/19,C&YPS-Non Delegated,Leic City Council,10/07/2019,12.00,Other Transfer Payments-Section 23 Grants,Government Services-Not Elsewhere Classified,GPC
18/06/19 to 17/07/19,C&YPS-Non Delegated,Leic City Council,10/07/2019,23.00,Other Transfer Payments-Section 23 Grants,Government Services-Not Elsewhere Classified,GPC
18/06/19 to 17/07/19,C&YPS-Non Delegated,Leic City Council,03/07/2019,12.00,Other Transfer Payments-Sector 17- Other,Government Services-Not Elsewhere Classified,GPC
18/06/19 to 17/07/19,C&YPS-Non Delegated,Loughborough Sst,02/07/2019,6.20,Client/Volunteers-General,Passenger Railways,GPC
18/06/19 to 17/07/19,C&YPS-Non Delegated,Lymington Sean Water Bath,09/07/2019,4.90,Other Expenditure-Assist/Conts to Schemes,"Eating Places, Restaurants",GPC
18/06/19 to 17/07/19,C&YPS-Non Delegated,Lymington Sean Water Bath,09/07/2019,50.50,Other Expenditure-Assist/Conts to Schemes,"Eating Places, Restaurants",GPC
18/06/19 to 17/07/19,C&YPS-Non Delegated,M6 Toll,02/07/2019,5.33,Casual/Essential-Casual,"Bridge and Road Fees, Tolls",GPC
18/06/19 to 17/07/19,C&YPS-Non Delegated,M6 Toll,02/07/2019,3.92,Casual/Essential-Casual,"Bridge and Road Fees, Tolls",GPC
18/06/19 to 17/07/19,C&YPS-Non Delegated,Max Spielmann Ltd,05/07/2019,9.99,Other Transfer Payments-Section 24,Photographic Studios,GPC
18/06/19 to 17/07/19,C&YPS-Non Delegated,McDonalds,08/07/2019,3.73,Other Expenditure-Assist/Conts to Schemes,Fast-Food Restaurants (Quick Payment Service Pilot,GPC
18/06/19 to 17/07/19,C&YPS-Non Delegated,McDonalds,12/07/2019,31.01,Other Expenditure-Assist/Conts to Schemes,Fast-Food Restaurants (Quick Payment Service Pilot,GPC
18/06/19 to 17/07/19,C&YPS-Non Delegated,McDonalds,17/06/2019,4.15,Other Expenditure-General,Fast-Food Restaurants (Quick Payment Service Pilot,GPC
18/06/19 to 17/07/19,C&YPS-Non Delegated,McDonalds,18/06/2019,11.10,Other Expenditure-General,"Eating Places, Restaurants",GPC
18/06/19 to 17/07/19,C&YPS-Non Delegated,McDonalds,05/07/2019,10.68,Other Transfer Payments-General,Fast-Food Restaurants (Quick Payment Service Pilot,GPC
18/06/19 to 17/07/19,C&YPS-Non Delegated,McDonalds,26/06/2019,5.51,Other Transfer Payments-Section 23 Grants,Misc-Unknown,GPC
18/06/19 to 17/07/19,C&YPS-Non Delegated,McDonalds,01/07/2019,6.98,Other Transfer Payments-Section 23 Grants,Fast-Food Restaurants (Quick Payment Service Pilot,GPC
18/06/19 to 17/07/19,C&YPS-Non Delegated,McDonalds,10/07/2019,6.22,Other Transfer Payments-Section 23 Grants,Fast-Food Restaurants (Quick Payment Service Pilot,GPC
18/06/19 to 17/07/19,C&YPS-Non Delegated,McDonalds,16/07/2019,3.38,Other Transfer Payments-Section 23 Grants,"Eating Places, Restaurants",GPC
18/06/19 to 17/07/19,C&YPS-Non Delegated,McDonalds,21/06/2019,3.41,Other Transfer Payments-Section 24,Misc-Unknown,GPC
18/06/19 to 17/07/19,C&YPS-Non Delegated,McDonalds,21/06/2019,9.55,Other Transfer Payments-Section 24,Misc-Unknown,GPC
18/06/19 to 17/07/19,C&YPS-Non Delegated,McDonalds,04/07/2019,4.07,Other Transfer Payments-Section 24,Fast-Food Restaurants (Quick Payment Service Pilot,GPC
18/06/19 to 17/07/19,C&YPS-Non Delegated,McDonalds,16/07/2019,3.73,Other Transfer Payments-Section 24,Fast-Food Restaurants (Quick Payment Service Pilot,GPC
18/06/19 to 17/07/19,C&YPS-Non Delegated,McDonalds,20/06/2019,4.56,Provisions-General,"Eating Places, Restaurants",GPC
18/06/19 to 17/07/19,C&YPS-Non Delegated,McDonalds,25/06/2019,2.33,Provisions-General,Misc-Unknown,GPC
18/06/19 to 17/07/19,C&YPS-Non Delegated,McDonalds,27/06/2019,4.57,Provisions-General,Misc-Unknown,GPC
18/06/19 to 17/07/19,C&YPS-Non Delegated,McDonalds,05/07/2019,3.93,Provisions-General,Fast-Food Restaurants (Quick Payment Service Pilot,GPC
18/06/19 to 17/07/19,C&YPS-Non Delegated,McDonalds,09/07/2019,3.99,Provisions-General,"Eating Places, Restaurants",GPC
18/06/19 to 17/07/19,C&YPS-Non Delegated,McDonalds,04/07/2019,11.78,Subsistence-General,Fast-Food Restaurants (Quick Payment Service Pilot,GPC
18/06/19 to 17/07/19,C&YPS-Non Delegated,McDonalds,11/07/2019,12.89,Subsistence-General,"Eating Places, Restaurants",GPC
18/06/19 to 17/07/19,C&YPS-Non Delegated,Mike Bs Security Locksmit,20/06/2019,5.83,R & M of Buildings-General,Business Services-Not Elsewhere Classified,GPC
18/06/19 to 17/07/19,C&YPS-Non Delegated,Milk&more,10/07/2019,20.72,Provisions-General,Dairy Products Stores,GPC
18/06/19 to 17/07/19,C&YPS-Non Delegated,Moonpiguk,09/07/2019,30.17,Materials-General,"Gift, Card, Novelty, and Souvenir Shops",GPC
18/06/19 to 17/07/19,C&YPS-Non Delegated,Nas Uk,27/06/2019,175.00,Training Expenses-General,Misc-Unknown,GPC
18/06/19 to 17/07/19,C&YPS-Non Delegated,National Youth Agency,25/06/2019,30.00,Training Expenses-General,Charitable and Social Service Organizations,GPC
18/06/19 to 17/07/19,C&YPS-Non Delegated,Navigationb,27/06/2019,39.49,Books-General,Misc-Unknown,GPC
18/06/19 to 17/07/19,C&YPS-Non Delegated,Navigationb,27/06/2019,39.49,Books-General,Misc-Unknown,GPC
18/06/19 to 17/07/19,C&YPS-Non Delegated,Ncc Card Payment Inter,18/06/2019,12.00,Other Transfer Payments-Section 23 Grants,Government Services-Not Elsewhere Classified,GPC
18/06/19 to 17/07/19,C&YPS-Non Delegated,Ncc Card Payment Inter,28/06/2019,34.00,Other Transfer Payments-Section 23 Grants,Misc-Unknown,GPC
18/06/19 to 17/07/19,C&YPS-Non Delegated,Ncc Card Payment Inter,02/07/2019,12.00,Other Transfer Payments-Section 23 Grants,Government Services-Not Elsewhere Classified,GPC
18/06/19 to 17/07/19,C&YPS-Non Delegated,Ncc Card Payment Inter,09/07/2019,12.00,Other Transfer Payments-Section 23 Grants,Government Services-Not Elsewhere Classified,GPC
18/06/19 to 17/07/19,C&YPS-Non Delegated,Ncc Card Payment Inter,09/07/2019,36.00,Other Transfer Payments-Section 23 Grants,Government Services-Not Elsewhere Classified,GPC
18/06/19 to 17/07/19,C&YPS-Non Delegated,Ncc Card Payment Inter,09/07/2019,12.00,Other Transfer Payments-Section 23 Grants,Government Services-Not Elsewhere Classified,GPC
18/06/19 to 17/07/19,C&YPS-Non Delegated,Ncc Card Payment Inter,10/07/2019,23.00,Other Transfer Payments-Section 23 Grants,Government Services-Not Elsewhere Classified,GPC
18/06/19 to 17/07/19,C&YPS-Non Delegated,Ncp Limited,19/06/2019,1.50,Other Transfer Payments-General,Automobile Parking Lots and Garages,GPC
18/06/19 to 17/07/19,C&YPS-Non Delegated,Ncp Limited,09/07/2019,6.67,Other Transfer Payments-General,Automobile Parking Lots and Garages,GPC
18/06/19 to 17/07/19,C&YPS-Non Delegated,Next Retail Ltd,10/07/2019,107.00,Other Transfer Payments-Section 24,Family Clothing Stores,GPC
18/06/19 to 17/07/19,C&YPS-Non Delegated,Notts County Council,08/07/2019,33.00,Other Transfer Payments-Section 23 Grants,Government Services-Not Elsewhere Classified,GPC
18/06/19 to 17/07/19,C&YPS-Non Delegated,Notts County Council,09/07/2019,-33.00,Other Transfer Payments-Section 23 Grants,Government Services-Not Elsewhere Classified,GPC
18/06/19 to 17/07/19,C&YPS-Non Delegated,Officialrecordcouk,17/06/2019,19.98,Other Transfer Payments-Section 23 Grants,"Management, Consulting and Public Relations Servic",GPC
18/06/19 to 17/07/19,C&YPS-Non Delegated,On A Roll,24/06/2019,5.10,Other Transfer Payments-General,Misc-Unknown,GPC
18/06/19 to 17/07/19,C&YPS-Non Delegated,One Stop6378,20/06/2019,20.00,Other Transfer Payments-General,Misc-Unknown,GPC
18/06/19 to 17/07/19,C&YPS-Non Delegated,Paypal *ao Retail,27/06/2019,199.00,Other Transfer Payments-Leaving Care Grants,Misc-Unknown,GPC
18/06/19 to 17/07/19,C&YPS-Non Delegated,Paypal *argos Ebay,27/06/2019,189.99,Materials-General,Misc-Unknown,GPC
18/06/19 to 17/07/19,C&YPS-Non Delegated,Paypal *bonusaccess,27/06/2019,184.00,Other Transfer Payments-Leaving Care Grants,Misc-Unknown,GPC
18/06/19 to 17/07/19,C&YPS-Non Delegated,Paypal *cheaponline,04/07/2019,439.00,Other Transfer Payments-Leaving Care Grants,Antique Shops,GPC
18/06/19 to 17/07/19,C&YPS-Non Delegated,Paypal *dsgretailli,24/06/2019,359.00,Other Transfer Payments-Leaving Care Grants,Misc-Unknown,GPC
18/06/19 to 17/07/19,C&YPS-Non Delegated,Paypal *incentivepl,11/07/2019,157.40,Materials-General,Variety Stores,GPC
18/06/19 to 17/07/19,C&YPS-Non Delegated,Paypal *spareremote,02/07/2019,5.99,Other Transfer Payments-Leaving Care Grants,"RADIO, TELEVISION, AND STEREO STORES (ELECTRONIC STORES)",GPC
18/06/19 to 17/07/19,C&YPS-Non Delegated,Paypal *vasp,20/06/2019,-4.45,Provisions-General,Miscellaneous House Furnishing Specialty Shops,GPC
18/06/19 to 17/07/19,C&YPS-Non Delegated,Photo Me International Pl,02/07/2019,6.00,Other Expenditure-General,"Photofinishing Laboratories, Photo Developing",GPC
18/06/19 to 17/07/19,C&YPS-Non Delegated,Photo Me International Pl,10/07/2019,7.00,Other Transfer Payments-Section 23 Grants,"Photofinishing Laboratories, Photo Developing",GPC
18/06/19 to 17/07/19,C&YPS-Non Delegated,Post Office Counter,28/06/2019,7.40,Other Expenditure-General,Misc-Unknown,GPC
18/06/19 to 17/07/19,C&YPS-Non Delegated,Post Office Counter,21/06/2019,9.10,Other Transfer Payments-General,Postage Stamps,GPC
18/06/19 to 17/07/19,C&YPS-Non Delegated,Post Office Counter,25/06/2019,45.00,Postal Services-General,Postage Stamps,GPC
18/06/19 to 17/07/19,C&YPS-Non Delegated,Poundland Ltd,03/07/2019,15.10,Other Transfer Payments-General,Discount Stores,GPC
18/06/19 to 17/07/19,C&YPS-Non Delegated,Poundland Ltd,02/07/2019,10.92,Provisions-General,Discount Stores,GPC
18/06/19 to 17/07/19,C&YPS-Non Delegated,Poundstretcher 791,19/06/2019,6.08,Other Transfer Payments-General,Variety Stores,GPC
18/06/19 to 17/07/19,C&YPS-Non Delegated,Pp*one Stop Shoerepair,18/06/2019,9.00,Other Equipment & Materials-General,Variety Stores,GPC
18/06/19 to 17/07/19,C&YPS-Non Delegated,Ppl Prs Ltd,11/07/2019,174.30,Provisions-General,Membership Organizations-Not Elsewhere Classified,GPC
18/06/19 to 17/07/19,C&YPS-Non Delegated,Premier Inn44027550,04/07/2019,79.00,Other Transfer Payments-General,PREMIER TRAVEL,GPC
18/06/19 to 17/07/19,C&YPS-Non Delegated,Premier Inn44521130,25/06/2019,116.67,Casual/Essential-Casual,Misc-Unknown,GPC
18/06/19 to 17/07/19,C&YPS-Non Delegated,Rose Garden Cafe,04/07/2019,7.50,Other Transfer Payments-General,"Eating Places, Restaurants",GPC
18/06/19 to 17/07/19,C&YPS-Non Delegated,Sainsburys S/mkt,15/07/2019,6.35,Other Equipment & Materials-General,"Grocery Stores, Supermarkets",GPC
18/06/19 to 17/07/19,C&YPS-Non Delegated,Sainsburys S/mkt,26/06/2019,7.00,Stationery-General,Misc-Unknown,GPC
18/06/19 to 17/07/19,C&YPS-Non Delegated,Sainsburys S/mkts,18/06/2019,19.08,Other Equipment & Materials-General,"Grocery Stores, Supermarkets",GPC
18/06/19 to 17/07/19,C&YPS-Non Delegated,Sainsburys S/mkts,25/06/2019,8.60,Other Equipment & Materials-General,Misc-Unknown,GPC
18/06/19 to 17/07/19,C&YPS-Non Delegated,Sainsburys S/mkts,08/07/2019,95.00,Other Transfer Payments-Leaving Care Grants,"Grocery Stores, Supermarkets",GPC
18/06/19 to 17/07/19,C&YPS-Non Delegated,Sainsburys S/mkts,20/06/2019,73.20,Postal Services-General,Misc-Unknown,GPC
18/06/19 to 17/07/19,C&YPS-Non Delegated,Scs 100154,01/07/2019,394.00,Other Transfer Payments-Leaving Care Grants,"Furniture, Home Furnishings and Equipment Stores,",GPC
18/06/19 to 17/07/19,C&YPS-Non Delegated,Spar Market Harborough,19/06/2019,4.15,Cleaning Materials-General,"Grocery Stores, Supermarkets",GPC
18/06/19 to 17/07/19,C&YPS-Non Delegated,Sportsdirect 274,21/06/2019,100.00,Provisions-General,Sporting Goods Stores,GPC
18/06/19 to 17/07/19,C&YPS-Non Delegated,St Johns Self Storage,15/07/2019,58.33,Private Contractors-General,"Motor Freight Carriers, and Trucking",GPC
18/06/19 to 17/07/19,C&YPS-Non Delegated,Staples.Co.Uk,22/06/2019,94.40,Stationery-General,Misc-Unknown,GPC
18/06/19 to 17/07/19,C&YPS-Non Delegated,Stgeorgesnursery.Com,05/07/2019,487.50,Other Transfer Payments-Section 23 Grants,Schools and Educational Services-Not Elsewhere Cla,GPC
18/06/19 to 17/07/19,C&YPS-Non Delegated,Stoneygate Hotel Limited,15/07/2019,32.40,Other Transfer Payments-Section 23 Grants,"Lodging-Hotels, Motels, Resorts",GPC
18/06/19 to 17/07/19,C&YPS-Non Delegated,Stoneygate Hotel Limited,15/07/2019,27.00,Other Transfer Payments-Section 23 Grants,"Lodging-Hotels, Motels, Resorts",GPC
18/06/19 to 17/07/19,C&YPS-Non Delegated,Storage Giant Ltd,24/06/2019,56.00,Other Transfer Payments-General,Misc-Unknown,GPC
18/06/19 to 17/07/19,C&YPS-Non Delegated,Storage Giant Ltd,24/06/2019,-30.71,Other Transfer Payments-General,Misc-Unknown,GPC
18/06/19 to 17/07/19,C&YPS-Non Delegated,Storage Giant Ltd,03/07/2019,129.58,Other Transfer Payments-General,Public Warehousing,GPC
18/06/19 to 17/07/19,C&YPS-Non Delegated,Storagemart UK A-Faeeaef2,01/07/2019,152.03,Other Transfer Payments-Section 24,"Motor Freight Carriers, and Trucking",GPC
18/06/19 to 17/07/19,C&YPS-Non Delegated,Subway,12/07/2019,4.88,Provisions-General,Fast-Food Restaurants (Quick Payment Service Pilot,GPC
18/06/19 to 17/07/19,C&YPS-Non Delegated,Subway Allendale,18/06/2019,3.92,Provisions-General,"Eating Places, Restaurants",GPC
18/06/19 to 17/07/19,C&YPS-Non Delegated,Subway Allendale,05/07/2019,4.19,Provisions-General,"Eating Places, Restaurants",GPC
18/06/19 to 17/07/19,C&YPS-Non Delegated,Sunway Stores Ltd,16/07/2019,20.50,Other Transfer Payments-General,News Dealers and Newsstands,GPC
18/06/19 to 17/07/19,C&YPS-Non Delegated,T K Maxx,04/07/2019,4.99,Other Transfer Payments-Leaving Care Grants,Variety Stores,GPC
18/06/19 to 17/07/19,C&YPS-Non Delegated,T K Maxx,09/07/2019,16.09,Other Transfer Payments-Leaving Care Grants,Variety Stores,GPC
18/06/19 to 17/07/19,C&YPS-Non Delegated,Tesco Store 2846,21/06/2019,116.85,Materials-General,Misc-Unknown,GPC
18/06/19 to 17/07/19,C&YPS-Non Delegated,Tesco Store 2846,22/06/2019,72.64,Materials-General,Misc-Unknown,GPC
18/06/19 to 17/07/19,C&YPS-Non Delegated,Tesco Store 2846,24/06/2019,110.37,Materials-General,Misc-Unknown,GPC
18/06/19 to 17/07/19,C&YPS-Non Delegated,Tesco Store 2849,26/06/2019,16.10,Materials-General,Misc-Unknown,GPC
18/06/19 to 17/07/19,C&YPS-Non Delegated,Tesco Store 2849,20/06/2019,6.70,Other Equipment & Materials-General,Misc-Unknown,GPC
18/06/19 to 17/07/19,C&YPS-Non Delegated,Tesco Store 2849,03/07/2019,9.89,Other Equipment & Materials-General,"Grocery Stores, Supermarkets",GPC
18/06/19 to 17/07/19,C&YPS-Non Delegated,Tesco Store 2849,10/07/2019,19.52,Other Equipment & Materials-General,"Grocery Stores, Supermarkets",GPC
18/06/19 to 17/07/19,C&YPS-Non Delegated,Tesco Store 2849,01/07/2019,12.49,Other Expenditure-General,"Grocery Stores, Supermarkets",GPC
18/06/19 to 17/07/19,C&YPS-Non Delegated,Tesco Stores 5182,26/06/2019,13.02,Materials-General,Misc-Unknown,GPC
18/06/19 to 17/07/19,C&YPS-Non Delegated,Tesco Stores 5182,01/07/2019,22.23,Other Equipment & Materials-General,"Grocery Stores, Supermarkets",GPC
18/06/19 to 17/07/19,C&YPS-Non Delegated,Tesco Stores 5837,12/07/2019,1.90,Other Expenditure-Assist/Conts to Schemes,"Grocery Stores, Supermarkets",GPC
18/06/19 to 17/07/19,C&YPS-Non Delegated,Tesco Stores 5902,24/06/2019,46.53,Provisions-General,Misc-Unknown,GPC
18/06/19 to 17/07/19,C&YPS-Non Delegated,Tesco Stores 6136,10/07/2019,2.08,Other Expenditure-Assist/Conts to Schemes,"Grocery Stores, Supermarkets",GPC
18/06/19 to 17/07/19,C&YPS-Non Delegated,Tesco Stores 6300,01/07/2019,2.42,Provisions-General,"Grocery Stores, Supermarkets",GPC
18/06/19 to 17/07/19,C&YPS-Non Delegated,Tesco Stores 6418,17/06/2019,38.15,Other Expenditure-General,"Grocery Stores, Supermarkets",GPC
18/06/19 to 17/07/19,C&YPS-Non Delegated,Tfl Visitor Shop,27/06/2019,29.10,Training Expenses-General,Misc-Unknown,GPC
18/06/19 to 17/07/19,C&YPS-Non Delegated,The Book People,25/06/2019,103.84,Books-General,Misc-Unknown,GPC
18/06/19 to 17/07/19,C&YPS-Non Delegated,The Book People,27/06/2019,78.89,Books-General,Misc-Unknown,GPC
18/06/19 to 17/07/19,C&YPS-Non Delegated,The Book People,09/07/2019,144.74,Books-General,Book Stores,GPC
18/06/19 to 17/07/19,C&YPS-Non Delegated,The Post Office,09/07/2019,122.00,Other Equipment & Materials-General,Postage Stamps,GPC
18/06/19 to 17/07/19,C&YPS-Non Delegated,The Post Office,19/06/2019,6.60,Other Transfer Payments-Section 23 Grants,Postage Stamps,GPC
18/06/19 to 17/07/19,C&YPS-Non Delegated,The Post Office,21/06/2019,6.60,Other Transfer Payments-Section 23 Grants,Postage Stamps,GPC
18/06/19 to 17/07/19,C&YPS-Non Delegated,The Post Office,21/06/2019,6.60,Other Transfer Payments-Section 23 Grants,Postage Stamps,GPC
18/06/19 to 17/07/19,C&YPS-Non Delegated,The Post Office,29/06/2019,6.60,Other Transfer Payments-Section 23 Grants,Misc-Unknown,GPC
18/06/19 to 17/07/19,C&YPS-Non Delegated,The Post Office,04/07/2019,73.25,Other Transfer Payments-Section 23 Grants,Postage Stamps,GPC
18/06/19 to 17/07/19,C&YPS-Non Delegated,The Post Office,11/07/2019,9.75,Other Transfer Payments-Section 23 Grants,Postage Stamps,GPC
18/06/19 to 17/07/19,C&YPS-Non Delegated,The Post Office,01/07/2019,90.00,Recruitment Advertising-General,Postage Stamps,GPC
18/06/19 to 17/07/19,C&YPS-Non Delegated,The Post Office,01/07/2019,75.00,Recruitment Advertising-General,Postage Stamps,GPC
18/06/19 to 17/07/19,C&YPS-Non Delegated,The Post Office,01/07/2019,75.00,Recruitment Advertising-General,Postage Stamps,GPC
18/06/19 to 17/07/19,C&YPS-Non Delegated,The Post Office,01/07/2019,75.00,Recruitment Advertising-General,Postage Stamps,GPC
18/06/19 to 17/07/19,C&YPS-Non Delegated,The Post Office,01/07/2019,120.00,Recruitment Advertising-General,Postage Stamps,GPC
18/06/19 to 17/07/19,C&YPS-Non Delegated,The Range,10/07/2019,10.00,Other Equipment & Materials-General,Department Stores,GPC
18/06/19 to 17/07/19,C&YPS-Non Delegated,The Store Room,27/06/2019,122.68,Other Transfer Payments-General,Misc-Unknown,GPC
18/06/19 to 17/07/19,C&YPS-Non Delegated,The Store Room,27/06/2019,123.08,Other Transfer Payments-General,Misc-Unknown,GPC
18/06/19 to 17/07/19,C&YPS-Non Delegated,The Suncare Shop,02/07/2019,46.63,General Equipment-General,Health and Beauty Spas,GPC
18/06/19 to 17/07/19,C&YPS-Non Delegated,The Works,04/07/2019,6.67,Other Transfer Payments-Leaving Care Grants,Discount Stores,GPC
18/06/19 to 17/07/19,C&YPS-Non Delegated,The Works,24/06/2019,2.50,Other Transfer Payments-Section 23 Grants,Misc-Unknown,GPC
18/06/19 to 17/07/19,C&YPS-Non Delegated,Tinseltown,03/07/2019,11.18,Other Transfer Payments-Section 23 Grants,"Eating Places, Restaurants",GPC
18/06/19 to 17/07/19,C&YPS-Non Delegated,Trainline,20/06/2019,191.20,Training Expenses-General,Misc-Unknown,GPC
18/06/19 to 17/07/19,C&YPS-Non Delegated,Trainline.Com,29/06/2019,149.50,Other Equipment & Materials-General,Misc-Unknown,GPC
18/06/19 to 17/07/19,C&YPS-Non Delegated,Trainline.Com,12/07/2019,189.67,Other Expenditure-General,Passenger Railways,GPC
18/06/19 to 17/07/19,C&YPS-Non Delegated,Trainline.Com,08/07/2019,104.24,Other Transfer Payments-Section 23 Grants,Passenger Railways,GPC
18/06/19 to 17/07/19,C&YPS-Non Delegated,Trainline.Com,08/07/2019,77.80,Other Transfer Payments-Sector 17- Other,Passenger Railways,GPC
18/06/19 to 17/07/19,C&YPS-Non Delegated,Travelodge Gb0000,25/06/2019,68.74,Other Expenditure-General,Misc-Unknown,GPC
18/06/19 to 17/07/19,C&YPS-Non Delegated,Travelodge Gb0000,18/06/2019,54.00,Other Transfer Payments-Section 23 Grants,Misc-Unknown,GPC
18/06/19 to 17/07/19,C&YPS-Non Delegated,Travelodge Gb0000,03/07/2019,83.75,Other Transfer Payments-Section 23 Grants,Travelodge,GPC
18/06/19 to 17/07/19,C&YPS-Non Delegated,Tvlicensing.Co.Uk,26/06/2019,154.50,Other Transfer Payments-Leaving Care Grants,Misc-Unknown,GPC
18/06/19 to 17/07/19,C&YPS-Non Delegated,Tvlicensing.Co.Uk,03/07/2019,154.50,Other Transfer Payments-Leaving Care Grants,"Management, Consulting and Public Relations Servic",GPC
18/06/19 to 17/07/19,C&YPS-Non Delegated,Tvlicensing.Co.Uk,10/07/2019,154.50,Other Transfer Payments-Leaving Care Grants,"Management, Consulting and Public Relations Servic",GPC
18/06/19 to 17/07/19,C&YPS-Non Delegated,Tvlicensing.Co.Uk,12/07/2019,154.50,Other Transfer Payments-Leaving Care Grants,"Management, Consulting and Public Relations Servic",GPC
18/06/19 to 17/07/19,C&YPS-Non Delegated,Twinlakespark.Com,15/07/2019,125.00,Other Equipment & Materials-General,"Amusement Parks, Circuses, Carnivals, Fortune Tell",GPC
18/06/19 to 17/07/19,C&YPS-Non Delegated,Twinlakespark.Com,15/07/2019,95.00,Other Equipment & Materials-General,"Amusement Parks, Circuses, Carnivals, Fortune Tell",GPC
18/06/19 to 17/07/19,C&YPS-Non Delegated,Twycross Zoo-East Midl,04/07/2019,38.90,Other Transfer Payments-General,Tourist Attractions and Exhibits,GPC
18/06/19 to 17/07/19,C&YPS-Non Delegated,Ukvi Application S,27/06/2019,60.00,Other Expenditure-General,Misc-Unknown,GPC
18/06/19 to 17/07/19,C&YPS-Non Delegated,Welcome B/waitrose Lfe,20/06/2019,3.90,Other Expenditure-General,Misc-Unknown,GPC
18/06/19 to 17/07/19,C&YPS-Non Delegated,Westminster Forum,17/06/2019,230.00,Training Expenses-General,"Management, Consulting and Public Relations Servic",GPC
18/06/19 to 17/07/19,C&YPS-Non Delegated,Wilko Retail Limit,16/07/2019,3.33,General Equipment-General,Household Appliance Stores,GPC
18/06/19 to 17/07/19,C&YPS-Non Delegated,Wilko Retail Limit,02/07/2019,56.30,Materials-General,Household Appliance Stores,GPC
18/06/19 to 17/07/19,C&YPS-Non Delegated,Wilko Retail Limit,19/06/2019,10.00,Other Equipment & Materials-General,Household Appliance Stores,GPC
18/06/19 to 17/07/19,C&YPS-Non Delegated,Wilko Retail Limit,10/07/2019,82.30,Other Transfer Payments-Leaving Care Grants,Household Appliance Stores,GPC
18/06/19 to 17/07/19,C&YPS-Non Delegated,Wly*completesave.Co.Uk,02/07/2019,-15.00,Other Transfer Payments-General,Continuity/Subscription Merchants,GPC
18/06/19 to 17/07/19,C&YPS-Non Delegated,Wm Morrisons Store,12/07/2019,3.33,General Equipment-General,"Grocery Stores, Supermarkets",GPC
18/06/19 to 17/07/19,C&YPS-Non Delegated,Wm Morrisons Store,20/06/2019,6.30,Hospitality-General,Misc-Unknown,GPC
18/06/19 to 17/07/19,C&YPS-Non Delegated,Worthing Pier Amus,11/07/2019,5.40,Other Expenditure-Assist/Conts to Schemes,"Eating Places, Restaurants",GPC
18/06/19 to 17/07/19,C&YPS-Non Delegated,Wp-Warwickshire Co,11/07/2019,11.00,Other Transfer Payments-Section 23 Grants,Government Services-Not Elsewhere Classified,GPC
18/06/19 to 17/07/19,C&YPS-Non Delegated,Www.Argos.Co.Uk,05/07/2019,18.94,Materials-General,Discount Stores,GPC
18/06/19 to 17/07/19,C&YPS-Non Delegated,Www.Argos.Co.Uk,05/07/2019,34.99,Materials-General,Discount Stores,GPC
18/06/19 to 17/07/19,C&YPS-Non Delegated,Www.Argos.Co.Uk,18/06/2019,100.94,Other Transfer Payments-Leaving Care Grants,Discount Stores,GPC
18/06/19 to 17/07/19,C&YPS-Non Delegated,Www.Argos.Co.Uk,26/06/2019,103.94,Other Transfer Payments-Leaving Care Grants,Misc-Unknown,GPC
18/06/19 to 17/07/19,C&YPS-Non Delegated,Www.Argos.Co.Uk,27/06/2019,37.95,Other Transfer Payments-Leaving Care Grants,Misc-Unknown,GPC
18/06/19 to 17/07/19,C&YPS-Non Delegated,Www.Argos.Co.Uk,27/06/2019,11.93,Other Transfer Payments-Leaving Care Grants,Misc-Unknown,GPC
18/06/19 to 17/07/19,C&YPS-Non Delegated,Www.Argos.Co.Uk,27/06/2019,175.95,Other Transfer Payments-Leaving Care Grants,Misc-Unknown,GPC
18/06/19 to 17/07/19,C&YPS-Non Delegated,Www.Beds.Co.Uk,18/06/2019,208.00,Other Transfer Payments-Leaving Care Grants,"Furniture, Home Furnishings and Equipment Stores,",GPC
18/06/19 to 17/07/19,C&YPS-Non Delegated,Www.Coram.Org.Uk,15/07/2019,59.30,Other Services-General,Charitable and Social Service Organizations,GPC
18/06/19 to 17/07/19,C&YPS-Non Delegated,Www.Coventry.Gov.Uk,15/07/2019,10.42,Other Transfer Payments-Section 23 Grants,RECREATION SERVICES--NOT ELSEWHERE CLASSIFIED,GPC
18/06/19 to 17/07/19,C&YPS-Non Delegated,Www.Everyoneactive.Com,04/07/2019,40.00,Other Transfer Payments-General,Sporting and Recreational Camps,GPC
18/06/19 to 17/07/19,C&YPS-Non Delegated,Www.Ikea.Com,16/07/2019,111.67,Other Transfer Payments-Leaving Care Grants,"Furniture, Home Furnishings and Equipment Stores,",GPC
18/06/19 to 17/07/19,C&YPS-Non Delegated,Www.Leicestershire.Gov,18/06/2019,11.00,Other Transfer Payments-Section 23 Grants,Government Services-Not Elsewhere Classified,GPC
18/06/19 to 17/07/19,C&YPS-Non Delegated,Www.Leicestershire.Gov,18/06/2019,11.00,Other Transfer Payments-Section 23 Grants,Government Services-Not Elsewhere Classified,GPC
18/06/19 to 17/07/19,C&YPS-Non Delegated,Www.Leicestershire.Gov,16/07/2019,11.00,Other Transfer Payments-Section 23 Grants,Government Services-Not Elsewhere Classified,GPC
18/06/19 to 17/07/19,C&YPS-Non Delegated,Www.Lexhaminsurance.Co,27/06/2019,86.33,Other Transfer Payments-General,Misc-Unknown,GPC
18/06/19 to 17/07/19,C&YPS-Non Delegated,Www.Lincolnshire,03/07/2019,11.00,Other Transfer Payments-Section 23 Grants,Government Services-Not Elsewhere Classified,GPC
18/06/19 to 17/07/19,C&YPS-Non Delegated,Www.Partybagsrus.Com/I,15/07/2019,59.63,Other Equipment & Materials-General,Miscellaneous and Specialty Retail Stores,GPC
18/06/19 to 17/07/19,C&YPS-Non Delegated,Www.Prestigeflowers.Co.U,11/07/2019,44.78,Other Expenditure-General,"Florists Supplies, Nursery Stock, and Flowers",GPC
18/06/19 to 17/07/19,C&YPS-Non Delegated,Www.Tts-Groups.Co.Uk,16/07/2019,47.73,Other Equipment & Materials-General,"Stationery, Office, and School Supply Stores",GPC
18/06/19 to 17/07/19,C&YPS-Non Delegated,Zara Leicester 12496,21/06/2019,22.98,Other Transfer Payments-General,Misc-Unknown,GPC
18/06/19 to 17/07/19,C&YPS-Non Delegated,,28/06/2019,1.09,Books-General,Misc-Unknown,GPC
18/06/19 to 17/07/19,C&YPS-Non Delegated,,28/06/2019,1.09,Books-General,Misc-Unknown,GPC
18/06/19 to 17/07/19,C&YPS-Non Delegated,,14/06/2019,-15.00,Other Transfer Payments-General,Misc-Unknown,GPC
18/06/19 to 17/07/19,C&YPS-Schools,Aldi 16 772,19/06/2019,2.07,Materials-General,"Grocery Stores, Supermarkets",GPC
18/06/19 to 17/07/19,C&YPS-Schools,Aldi 16 772,26/06/2019,7.31,Materials-General,Misc-Unknown,GPC
18/06/19 to 17/07/19,C&YPS-Schools,Aldi 16 772,01/07/2019,1.98,Materials-General,"Grocery Stores, Supermarkets",GPC
18/06/19 to 17/07/19,C&YPS-Schools,Aldi 16 772,17/06/2019,66.01,Provisions-General,"Grocery Stores, Supermarkets",GPC
18/06/19 to 17/07/19,C&YPS-Schools,Aldi 16 772,19/06/2019,5.67,Provisions-General,"Grocery Stores, Supermarkets",GPC
18/06/19 to 17/07/19,C&YPS-Schools,Aldi 16 772,24/06/2019,28.16,Provisions-General,Misc-Unknown,GPC
18/06/19 to 17/07/19,C&YPS-Schools,Aldi 16 772,01/07/2019,59.60,Provisions-General,"Grocery Stores, Supermarkets",GPC
18/06/19 to 17/07/19,C&YPS-Schools,Aldi 16 772,04/07/2019,3.00,Provisions-General,"Grocery Stores, Supermarkets",GPC
18/06/19 to 17/07/19,C&YPS-Schools,Aldi 16 772,10/07/2019,15.47,Provisions-General,"Grocery Stores, Supermarkets",GPC
18/06/19 to 17/07/19,C&YPS-Schools,Aldi 47 772,15/07/2019,10.61,Materials-General,"Grocery Stores, Supermarkets",GPC
18/06/19 to 17/07/19,C&YPS-Schools,Amazon.Co.Uk*m61li3pi4 Am,19/06/2019,6.76,Materials-General,Miscellaneous and Specialty Retail Stores,GPC
18/06/19 to 17/07/19,C&YPS-Schools,Amznmktplace Amazon.Co.Uk,19/06/2019,3.64,Materials-General,Miscellaneous and Specialty Retail Stores,GPC
18/06/19 to 17/07/19,C&YPS-Schools,Amznmktplace Amazon.Co.Uk,19/06/2019,26.65,Materials-General,Miscellaneous and Specialty Retail Stores,GPC
18/06/19 to 17/07/19,C&YPS-Schools,Cherry Lane - Glebe,03/07/2019,33.32,Materials-General,Discount Stores,GPC
18/06/19 to 17/07/19,C&YPS-Schools,Eb *aet Good Autism Pr,08/07/2019,210.00,Training Expenses-General,Business Services-Not Elsewhere Classified,GPC
18/06/19 to 17/07/19,C&YPS-Schools,Espo,05/07/2019,61.74,Materials-General,Government Services-Not Elsewhere Classified,GPC
18/06/19 to 17/07/19,C&YPS-Schools,Espo,05/07/2019,26.00,Other Expenditure-General,Government Services-Not Elsewhere Classified,GPC
18/06/19 to 17/07/19,C&YPS-Schools,Espo,25/06/2019,99.18,R & M of Buildings-General,Government Services-Not Elsewhere Classified,GPC
18/06/19 to 17/07/19,C&YPS-Schools,Espo,20/06/2019,45.73,Stationery-General,Government Services-Not Elsewhere Classified,GPC
18/06/19 to 17/07/19,C&YPS-Schools,Espo,05/07/2019,22.58,Stationery-General,Government Services-Not Elsewhere Classified,GPC
18/06/19 to 17/07/19,C&YPS-Schools,Hhcc Health Centre Pha,04/07/2019,10.15,R & M of Buildings-General,"Drug Stores, Pharmacies",GPC
18/06/19 to 17/07/19,C&YPS-Schools,Iz *tonya Treats,11/07/2019,133.00,Materials-General,Miscellaneous and Specialty Retail Stores,GPC
18/06/19 to 17/07/19,C&YPS-Schools,Tesco Stores 5182,08/07/2019,169.65,Materials-General,"Grocery Stores, Supermarkets",GPC
18/06/19 to 17/07/19,C&YPS-Schools,Tesco Stores 6857,03/07/2019,7.16,Materials-General,"Grocery Stores, Supermarkets",GPC
18/06/19 to 17/07/19,C&YPS-Schools,Vue Cinema,05/07/2019,16.63,Materials-General,Motion Picture Theatres,GPC
18/06/19 to 17/07/19,Central Items,Holiday Inn Manchester,03/07/2019,129.00,Administration Expenses-General,Holiday Inns,GPC
18/06/19 to 17/07/19,Chief Executive,Amazon Prime*mh0ih6cp4,14/07/2019,6.66,Other Expenditure-General,Continuity/Subscription Merchants,GPC
18/06/19 to 17/07/19,Chief Executive,Amazon.Co.Uk*m60xk0e54 Am,16/06/2019,38.48,Stationery-General,Miscellaneous and Specialty Retail Stores,GPC
18/06/19 to 17/07/19,Chief Executive,Amazon.Co.Uk*m617s6h14,30/06/2019,8.54,IT Equipment-Purchase - Hardware,Misc-Unknown,GPC
18/06/19 to 17/07/19,Chief Executive,Amazon.Co.Uk*m62s54eo4 Am,16/06/2019,50.00,Books-General,Miscellaneous and Specialty Retail Stores,GPC
18/06/19 to 17/07/19,Chief Executive,Amazon.Co.Uk*m668d2ml4,25/06/2019,74.99,Other Expenditure-General,Misc-Unknown,GPC
18/06/19 to 17/07/19,Chief Executive,Amazon.Co.Uk*m66l73hz4 Am,26/06/2019,65.68,Materials-General,Misc-Unknown,GPC
18/06/19 to 17/07/19,Chief Executive,Amz*amazon.Co.Uk,28/06/2019,-89.99,Other Expenditure-General,Misc-Unknown,GPC
18/06/19 to 17/07/19,Chief Executive,Amznmktplace,19/06/2019,31.99,Materials-General,Miscellaneous and Specialty Retail Stores,GPC
18/06/19 to 17/07/19,Chief Executive,Amznmktplace,09/07/2019,7.67,Materials-General,Miscellaneous and Specialty Retail Stores,GPC
18/06/19 to 17/07/19,Chief Executive,Amznmktplace Amazon.Co.Uk,26/06/2019,9.85,Materials-General,Misc-Unknown,GPC
18/06/19 to 17/07/19,Chief Executive,Amznmktplace Amazon.Co.Uk,27/06/2019,19.48,Materials-General,Misc-Unknown,GPC
18/06/19 to 17/07/19,Chief Executive,Amznmktplace Amazon.Co.Uk,27/06/2019,12.92,Materials-General,Misc-Unknown,GPC
18/06/19 to 17/07/19,Chief Executive,Amznmktplace Amazon.Co.Uk,03/07/2019,2.37,Materials-General,Miscellaneous and Specialty Retail Stores,GPC
18/06/19 to 17/07/19,Chief Executive,Amznmktplace Amazon.Co.Uk,09/07/2019,8.48,Materials-General,Miscellaneous and Specialty Retail Stores,GPC
18/06/19 to 17/07/19,Chief Executive,Amznmktplace Amazon.Co.Uk,14/07/2019,9.98,Other Expenditure-General,Miscellaneous and Specialty Retail Stores,GPC
18/06/19 to 17/07/19,Chief Executive,Arco Ltd,03/07/2019,35.66,Materials-General,Industrial Supplies Not Elsewhere Classified,GPC
18/06/19 to 17/07/19,Chief Executive,Arco Ltd,03/07/2019,37.16,Materials-General,Industrial Supplies Not Elsewhere Classified,GPC
18/06/19 to 17/07/19,Chief Executive,Arco Ltd,03/07/2019,-35.66,Other Equipment & Materials-General,Industrial Supplies Not Elsewhere Classified,GPC
18/06/19 to 17/07/19,Chief Executive,B & Q 1012,01/07/2019,41.69,R & M of Buildings-General,"Building Materials, Lumber Stores",GPC
18/06/19 to 17/07/19,Chief Executive,B & Q 1299,19/06/2019,23.20,Other Expenditure-General,"Building Materials, Lumber Stores",GPC
18/06/19 to 17/07/19,Chief Executive,Holiday Inn Leicester Wig,25/06/2019,666.67,Other Expenditure-General,Misc-Unknown,GPC
18/06/19 to 17/07/19,Chief Executive,Http://pmse.Ofcom.Org.,01/07/2019,135.00,Other Expenditure-General,Professional Services-Not Elsewhere Classified,GPC
18/06/19 to 17/07/19,Chief Executive,Makro Self Service Leices,06/07/2019,32.42,Materials-General,Wholesale Clubs,GPC
18/06/19 to 17/07/19,Chief Executive,Man.Airport Revenue Of,15/07/2019,75.00,Other Agency & Cont Services-General,"Airports, Airport Terminals, Flying Fields",GPC
18/06/19 to 17/07/19,Chief Executive,Name Plate Holders Lim,25/06/2019,253.40,Other Expenditure-General,Misc-Unknown,GPC
18/06/19 to 17/07/19,Chief Executive,Ncp Limited,20/06/2019,10.83,Casual/Essential-General,Automobile Parking Lots and Garages,GPC
18/06/19 to 17/07/19,Chief Executive,Paypal *cifa,16/07/2019,100.00,Recruitment Advertising-General,Membership Organizations-Not Elsewhere Classified,GPC
18/06/19 to 17/07/19,Chief Executive,Paypal *ruralservic,12/07/2019,211.14,Training Expenses-General,"Civic, Social, and Fraternal Associations",GPC
18/06/19 to 17/07/19,Chief Executive,Premier Inn 44537080,12/07/2019,95.50,Training Expenses-General,PREMIER TRAVEL,GPC
18/06/19 to 17/07/19,Chief Executive,Ramada Loughborough,19/06/2019,673.33,Other Expenditure-General,Misc-Unknown,GPC
18/06/19 to 17/07/19,Chief Executive,Staples.Co.Uk,04/07/2019,18.88,Stationery-General,"Stationery, Office, and School Supply Stores",GPC
18/06/19 to 17/07/19,Chief Executive,Tesco Store 2849,22/06/2019,5.00,Materials-General,Misc-Unknown,GPC
18/06/19 to 17/07/19,Chief Executive,The Post Office,16/07/2019,70.00,Postal Services-General,Postage Stamps,GPC
18/06/19 to 17/07/19,Chief Executive,The Solicitors Group,19/06/2019,118.00,Training Expenses-General,Business and Secretarial Schools,GPC
18/06/19 to 17/07/19,Chief Executive,Times Newspapers Ltd,28/06/2019,26.00,Subscriptions-General,Misc-Unknown,GPC
18/06/19 to 17/07/19,Chief Executive,Trainline.Com,01/07/2019,14.19,Casual/Essential-General,Passenger Railways,GPC
18/06/19 to 17/07/19,Chief Executive,Tramlink Nottingham Limit,17/06/2019,4.00,Casual/Essential-General,Local and Suburban Commuter Pass Trans,GPC
18/06/19 to 17/07/19,Chief Executive,Vodafone Ps,08/07/2019,30.00,Telephones-General,Telecommunication Service Including Local and Long,GPC
18/06/19 to 17/07/19,Chief Executive,Www.Ico.Gov.Uk,21/06/2019,60.00,Other Expenditure-General,Government Services-Not Elsewhere Classified,GPC
18/06/19 to 17/07/19,Corporate Resources,3000 Gas Ltd,24/06/2019,6.00,R&M of Vehicles-Non Contract-General,Misc-Unknown,GPC
18/06/19 to 17/07/19,Corporate Resources,Aldi 101 772,06/07/2019,73.46,Materials-General,"Grocery Stores, Supermarkets",GPC
18/06/19 to 17/07/19,Corporate Resources,Aldi 50 772,29/06/2019,2.97,Operational Equipment-General,Misc-Unknown,GPC
18/06/19 to 17/07/19,Corporate Resources,Aldi 50 772,04/07/2019,10.37,Other Services-General,"Grocery Stores, Supermarkets",GPC
18/06/19 to 17/07/19,Corporate Resources,Amazon.Co.Uk*m60o74gr4,20/06/2019,19.17,Other Expenditure-General,Direct Marketers - Other,GPC
18/06/19 to 17/07/19,Corporate Resources,Amazon.Co.Uk*m60v28m74,24/06/2019,27.99,Other Expenditure-General,Misc-Unknown,GPC
18/06/19 to 17/07/19,Corporate Resources,Amazon.Co.Uk*m62428i34,09/07/2019,17.41,Other Expenditure-General,Direct Marketers - Other,GPC
18/06/19 to 17/07/19,Corporate Resources,Amazon.Co.Uk*m625z1ri4,09/07/2019,17.41,Other Expenditure-General,Direct Marketers - Other,GPC
18/06/19 to 17/07/19,Corporate Resources,Amazon.Co.Uk*m62b72gb4,20/06/2019,38.33,Other Expenditure-General,Direct Marketers - Other,GPC
18/06/19 to 17/07/19,Corporate Resources,Amazon.Co.Uk*m62lr2rk4,09/07/2019,17.41,Other Expenditure-General,Direct Marketers - Other,GPC
18/06/19 to 17/07/19,Corporate Resources,Amazon.Co.Uk*m62rz5ip4,09/07/2019,17.40,Other Expenditure-General,Direct Marketers - Other,GPC
18/06/19 to 17/07/19,Corporate Resources,Amazon.Co.Uk*m62v65634,01/07/2019,31.97,Other Expenditure-General,Direct Marketers - Other,GPC
18/06/19 to 17/07/19,Corporate Resources,Amazon.Co.Uk*m63090ih4,09/07/2019,28.77,IT Equipment-Purchase - Hardware,Direct Marketers - Other,GPC
18/06/19 to 17/07/19,Corporate Resources,Amazon.Co.Uk*m63mm3qx4,30/06/2019,33.36,Other Expenditure-General,Misc-Unknown,GPC
18/06/19 to 17/07/19,Corporate Resources,Amazon.Co.Uk*m647529t4,07/07/2019,12.49,Other Expenditure-General,Direct Marketers - Other,GPC
18/06/19 to 17/07/19,Corporate Resources,Amazon.Co.Uk*m648h95j4,26/06/2019,29.33,General Equipment-General,Misc-Unknown,GPC
18/06/19 to 17/07/19,Corporate Resources,Amazon.Co.Uk*m653f4sd4,02/07/2019,23.63,Other Expenditure-General,Direct Marketers - Other,GPC
18/06/19 to 17/07/19,Corporate Resources,Amazon.Co.Uk*m658b7si4,03/07/2019,6.95,Other Expenditure-General,Direct Marketers - Other,GPC
18/06/19 to 17/07/19,Corporate Resources,Amazon.Co.Uk*m67bm6uz4,07/07/2019,19.58,Catering Equipment-General,Direct Marketers - Other,GPC
18/06/19 to 17/07/19,Corporate Resources,Amazon.Co.Uk*m680m9iw4,09/07/2019,17.41,Other Expenditure-General,Direct Marketers - Other,GPC
18/06/19 to 17/07/19,Corporate Resources,Amz*amazon.Co.Uk,09/07/2019,-1.99,Other Expenditure-General,Direct Marketers - Other,GPC
18/06/19 to 17/07/19,Corporate Resources,Amz*hsd Online,18/06/2019,59.98,Operational Equipment-General,Advertising Services,GPC
18/06/19 to 17/07/19,Corporate Resources,Amz*radmoreandtucker,24/06/2019,100.42,Protective Clothing & Uniforms-General,Misc-Unknown,GPC
18/06/19 to 17/07/19,Corporate Resources,Amznmktplace,25/06/2019,33.40,Catering Equipment-General,Misc-Unknown,GPC
18/06/19 to 17/07/19,Corporate Resources,Amznmktplace,02/07/2019,45.88,Catering Equipment-General,Miscellaneous and Specialty Retail Stores,GPC
18/06/19 to 17/07/19,Corporate Resources,Amznmktplace,03/07/2019,61.09,Catering Equipment-General,Miscellaneous and Specialty Retail Stores,GPC
18/06/19 to 17/07/19,Corporate Resources,Amznmktplace,25/06/2019,21.98,IT Equipment-Purchase - Hardware,Misc-Unknown,GPC
18/06/19 to 17/07/19,Corporate Resources,Amznmktplace,27/06/2019,21.63,IT Equipment-Purchase - Hardware,Misc-Unknown,GPC
18/06/19 to 17/07/19,Corporate Resources,Amznmktplace,07/07/2019,19.02,IT Equipment-Purchase - Hardware,Miscellaneous and Specialty Retail Stores,GPC
18/06/19 to 17/07/19,Corporate Resources,Amznmktplace,18/06/2019,58.95,Materials-General,Miscellaneous and Specialty Retail Stores,GPC
18/06/19 to 17/07/19,Corporate Resources,Amznmktplace,18/06/2019,15.44,Materials-General,Miscellaneous and Specialty Retail Stores,GPC
18/06/19 to 17/07/19,Corporate Resources,Amznmktplace,18/06/2019,26.52,Materials-General,Miscellaneous and Specialty Retail Stores,GPC
18/06/19 to 17/07/19,Corporate Resources,Amznmktplace,21/06/2019,18.19,Materials-General,Miscellaneous and Specialty Retail Stores,GPC
18/06/19 to 17/07/19,Corporate Resources,Amznmktplace,24/06/2019,18.49,Materials-General,Misc-Unknown,GPC
18/06/19 to 17/07/19,Corporate Resources,Amznmktplace,28/06/2019,4.99,Materials-General,Misc-Unknown,GPC
18/06/19 to 17/07/19,Corporate Resources,Amznmktplace,30/06/2019,44.97,Materials-General,Misc-Unknown,GPC
18/06/19 to 17/07/19,Corporate Resources,Amznmktplace,03/07/2019,16.69,Materials-General,Miscellaneous and Specialty Retail Stores,GPC
18/06/19 to 17/07/19,Corporate Resources,Amznmktplace,03/07/2019,55.33,Materials-General,Miscellaneous and Specialty Retail Stores,GPC
18/06/19 to 17/07/19,Corporate Resources,Amznmktplace,04/07/2019,29.87,Materials-General,Miscellaneous and Specialty Retail Stores,GPC
18/06/19 to 17/07/19,Corporate Resources,Amznmktplace,07/07/2019,16.00,Materials-General,Miscellaneous and Specialty Retail Stores,GPC
18/06/19 to 17/07/19,Corporate Resources,Amznmktplace,07/07/2019,13.32,Materials-General,Miscellaneous and Specialty Retail Stores,GPC
18/06/19 to 17/07/19,Corporate Resources,Amznmktplace,08/07/2019,9.16,Materials-General,Miscellaneous and Specialty Retail Stores,GPC
18/06/19 to 17/07/19,Corporate Resources,Amznmktplace,10/07/2019,75.77,Materials-General,Miscellaneous and Specialty Retail Stores,GPC
18/06/19 to 17/07/19,Corporate Resources,Amznmktplace,15/07/2019,14.16,Materials-General,Miscellaneous and Specialty Retail Stores,GPC
18/06/19 to 17/07/19,Corporate Resources,Amznmktplace,09/07/2019,1.90,Other Services-General,Miscellaneous and Specialty Retail Stores,GPC
18/06/19 to 17/07/19,Corporate Resources,Amznmktplace,19/06/2019,39.30,Protective Clothing & Uniforms-General,Miscellaneous and Specialty Retail Stores,GPC
18/06/19 to 17/07/19,Corporate Resources,Amznmktplace,19/06/2019,32.00,Protective Clothing & Uniforms-General,Miscellaneous and Specialty Retail Stores,GPC
18/06/19 to 17/07/19,Corporate Resources,Amznmktplace Amazon.Co.Uk,18/06/2019,21.00,General Equipment-General,Miscellaneous and Specialty Retail Stores,GPC
18/06/19 to 17/07/19,Corporate Resources,Amznmktplace Amazon.Co.Uk,19/06/2019,59.08,General Equipment-General,Miscellaneous and Specialty Retail Stores,GPC
18/06/19 to 17/07/19,Corporate Resources,Amznmktplace Amazon.Co.Uk,30/06/2019,38.36,Materials-General,Misc-Unknown,GPC
18/06/19 to 17/07/19,Corporate Resources,Amznmktplace Amazon.Co.Uk,01/07/2019,13.32,Materials-General,Miscellaneous and Specialty Retail Stores,GPC
18/06/19 to 17/07/19,Corporate Resources,Amznmktplace Amazon.Co.Uk,01/07/2019,12.75,Materials-General,Miscellaneous and Specialty Retail Stores,GPC
18/06/19 to 17/07/19,Corporate Resources,Amznmktplace Amazon.Co.Uk,09/07/2019,49.08,Materials-General,Miscellaneous and Specialty Retail Stores,GPC
18/06/19 to 17/07/19,Corporate Resources,Amznmktplace Amazon.Co.Uk,09/07/2019,13.74,Materials-General,Miscellaneous and Specialty Retail Stores,GPC
18/06/19 to 17/07/19,Corporate Resources,Amznmktplace Amazon.Co.Uk,09/07/2019,13.74,Materials-General,Miscellaneous and Specialty Retail Stores,GPC
18/06/19 to 17/07/19,Corporate Resources,Amznmktplace Amazon.Co.Uk,11/07/2019,2.66,Materials-General,Miscellaneous and Specialty Retail Stores,GPC
18/06/19 to 17/07/19,Corporate Resources,Amznmktplace Amazon.Co.Uk,01/07/2019,28.45,Other Expenditure-General,Miscellaneous and Specialty Retail Stores,GPC
18/06/19 to 17/07/19,Corporate Resources,Amznmktplace Amazon.Co.Uk,18/06/2019,8.75,Stationery-General,Miscellaneous and Specialty Retail Stores,GPC
18/06/19 to 17/07/19,Corporate Resources,Amznmktplace Amazon.Co.Uk,27/06/2019,39.98,Stationery-General,Misc-Unknown,GPC
18/06/19 to 17/07/19,Corporate Resources,Animal Reception Centre,05/07/2019,60.00,General Equipment-General,Professional Services-Not Elsewhere Classified,GPC
18/06/19 to 17/07/19,Corporate Resources,Argos Helston Insi,15/07/2019,69.99,Operational Equipment-General,Discount Stores,GPC
18/06/19 to 17/07/19,Corporate Resources,Asda Stores,13/07/2019,7.62,Other Expenditure-General,"Grocery Stores, Supermarkets",GPC
18/06/19 to 17/07/19,Corporate Resources,Asda Stores,16/07/2019,18.90,Other Expenditure-General,"Grocery Stores, Supermarkets",GPC
18/06/19 to 17/07/19,Corporate Resources,Asda Stores 4477,19/06/2019,9.58,Materials-General,"Grocery Stores, Supermarkets",GPC
18/06/19 to 17/07/19,Corporate Resources,Asda Stores 4477,02/07/2019,62.90,Materials-General,"Grocery Stores, Supermarkets",GPC
18/06/19 to 17/07/19,Corporate Resources,Asda Stores 4477,05/07/2019,21.00,Materials-General,"Grocery Stores, Supermarkets",GPC
18/06/19 to 17/07/19,Corporate Resources,Asda Stores 4477,19/06/2019,12.89,Other Expenditure-General,"Grocery Stores, Supermarkets",GPC
18/06/19 to 17/07/19,Corporate Resources,Asda Stores 4477,19/06/2019,6.19,Other Expenditure-General,"Grocery Stores, Supermarkets",GPC
18/06/19 to 17/07/19,Corporate Resources,Asda Stores 4477,24/06/2019,1.34,Other Expenditure-General,Misc-Unknown,GPC
18/06/19 to 17/07/19,Corporate Resources,Asda Stores 4477,29/06/2019,9.59,Other Expenditure-General,Misc-Unknown,GPC
18/06/19 to 17/07/19,Corporate Resources,Asda Stores 4477,01/07/2019,2.94,Other Expenditure-General,"Grocery Stores, Supermarkets",GPC
18/06/19 to 17/07/19,Corporate Resources,Asda Stores 4477,03/07/2019,5.40,Other Expenditure-General,"Grocery Stores, Supermarkets",GPC
18/06/19 to 17/07/19,Corporate Resources,Asda Stores 4477,05/07/2019,40.00,Other Expenditure-General,"Grocery Stores, Supermarkets",GPC
18/06/19 to 17/07/19,Corporate Resources,Asda Stores 4477,11/07/2019,5.65,Other Services-General,"Grocery Stores, Supermarkets",GPC
18/06/19 to 17/07/19,Corporate Resources,Asda Stores 4477,11/07/2019,26.07,Provisions-General,"Grocery Stores, Supermarkets",GPC
18/06/19 to 17/07/19,Corporate Resources,Asda Superstore,06/07/2019,21.80,Materials-General,"Grocery Stores, Supermarkets",GPC
18/06/19 to 17/07/19,Corporate Resources,Ashby Decorator Centre,20/06/2019,44.48,Other Services-General,Misc-Unknown,GPC
18/06/19 to 17/07/19,Corporate Resources,Avongard Ltd,10/07/2019,148.95,Operational Equipment-General,Commercial Equipment Not Elsewhere Classified,GPC
18/06/19 to 17/07/19,Corporate Resources,B & Q 1052,29/06/2019,22.20,Operational Equipment-General,Misc-Unknown,GPC
18/06/19 to 17/07/19,Corporate Resources,B & Q 1052,19/06/2019,23.78,R & M of Buildings-General,"Building Materials, Lumber Stores",GPC
18/06/19 to 17/07/19,Corporate Resources,B&c Fruit & Veg,26/06/2019,30.00,Provisions-General,Misc-Unknown,GPC
18/06/19 to 17/07/19,Corporate Resources,B&c Fruit & Veg,27/06/2019,20.00,Provisions-General,Misc-Unknown,GPC
18/06/19 to 17/07/19,Corporate Resources,B&c Fruit & Veg,27/06/2019,50.00,Provisions-General,Misc-Unknown,GPC
18/06/19 to 17/07/19,Corporate Resources,B&c Fruit & Veg,28/06/2019,12.00,Provisions-General,Misc-Unknown,GPC
18/06/19 to 17/07/19,Corporate Resources,B&q Direct,24/06/2019,56.00,Materials-General,Misc-Unknown,GPC
18/06/19 to 17/07/19,Corporate Resources,Bls*monday.Com,19/06/2019,30.00,Recruitment Advertising-General,Business Services-Not Elsewhere Classified,GPC
18/06/19 to 17/07/19,Corporate Resources,Central Eng Coop,23/06/2019,8.25,Other Expenditure-General,Misc-Unknown,GPC
18/06/19 to 17/07/19,Corporate Resources,Central Eng Coop,03/07/2019,3.94,Other Expenditure-General,Department Stores,GPC
18/06/19 to 17/07/19,Corporate Resources,Central Eng Coop R,22/06/2019,16.06,Materials-General,Misc-Unknown,GPC
18/06/19 to 17/07/19,Corporate Resources,Central Eng Coop R,06/07/2019,17.30,Materials-General,"Grocery Stores, Supermarkets",GPC
18/06/19 to 17/07/19,Corporate Resources,Central Source Ltd,16/07/2019,387.20,R & M of Buildings-General,Misc-Unknown,GPC
18/06/19 to 17/07/19,Corporate Resources,Cipfa Finance,19/06/2019,200.00,Training Expenses-General,Miscellaneous and Specialty Retail Stores,GPC
18/06/19 to 17/07/19,Corporate Resources,Coalville Signs Ltd,01/07/2019,24.00,R & M of Buildings-General,"Typesetting, Plate Making, and Related Services",GPC
18/06/19 to 17/07/19,Corporate Resources,Cooks Farm Shop,28/06/2019,32.95,Other Expenditure-Public Enquiry fees,Misc-Unknown,GPC
18/06/19 to 17/07/19,Corporate Resources,Co-Op Group 070412,25/06/2019,23.80,Other Expenditure-General,Misc-Unknown,GPC
18/06/19 to 17/07/19,Corporate Resources,Co-Op Group 070412,02/07/2019,18.05,Other Expenditure-General,"Grocery Stores, Supermarkets",GPC
18/06/19 to 17/07/19,Corporate Resources,Co-Op Late Shop,01/07/2019,6.00,Other Expenditure-General,"Grocery Stores, Supermarkets",GPC
18/06/19 to 17/07/19,Corporate Resources,Co-Op Late Shop,05/07/2019,11.55,Provisions-General,"Grocery Stores, Supermarkets",GPC
18/06/19 to 17/07/19,Corporate Resources,Currys,15/07/2019,328.00,Materials-General,"RADIO, TELEVISION, AND STEREO STORES (ELECTRONIC STORES)",GPC
18/06/19 to 17/07/19,Corporate Resources,Dilips Multi Store,02/07/2019,2.99,Operational Equipment-General,"Grocery Stores, Supermarkets",GPC
18/06/19 to 17/07/19,Corporate Resources,Disclosure And Barring,26/06/2019,25.00,Other Expenditure-General,Government Services-Not Elsewhere Classified,GPC
18/06/19 to 17/07/19,Corporate Resources,Dj & Mb Howe,24/06/2019,41.67,Catering Equipment-General,Misc-Unknown,GPC
18/06/19 to 17/07/19,Corporate Resources,Dlm Distribution Ltd,20/06/2019,353.50,Publicity/Marketing-General,Misc-Unknown,GPC
18/06/19 to 17/07/19,Corporate Resources,Eb *apea Midlands Bran,20/06/2019,20.00,Training Expenses-General,Business Services-Not Elsewhere Classified,GPC
18/06/19 to 17/07/19,Corporate Resources,Eb *icon Acr Conferenc,03/07/2019,80.00,Training Expenses-General,Business Services-Not Elsewhere Classified,GPC
18/06/19 to 17/07/19,Corporate Resources,Eb *lighting Cpd At Th,19/06/2019,19.80,Other Equipment & Materials-General,Business Services-Not Elsewhere Classified,GPC
18/06/19 to 17/07/19,Corporate Resources,Eb *lighting Cpd At Th,19/06/2019,16.50,Training Expenses-General,Business Services-Not Elsewhere Classified,GPC
18/06/19 to 17/07/19,Corporate Resources,Eb *pay Planning For 2,25/06/2019,330.00,Training Expenses-General,Business Services-Not Elsewhere Classified,GPC
18/06/19 to 17/07/19,Corporate Resources,Eclipse Networking Lim,24/06/2019,10.79,Other Expenditure-General,Misc-Unknown,GPC
18/06/19 to 17/07/19,Corporate Resources,Fabulous Partyware,27/06/2019,15.80,Materials-General,Misc-Unknown,GPC
18/06/19 to 17/07/19,Corporate Resources,Facebk *d9em9le672,30/06/2019,42.89,Publicity/Marketing-General,Misc-Unknown,GPC
18/06/19 to 17/07/19,Corporate Resources,Facebk *ycaghmnte2,30/06/2019,288.25,Publicity/Marketing-General,Misc-Unknown,GPC
18/06/19 to 17/07/19,Corporate Resources,Facebk 2v42tsal52,15/07/2019,495.00,Publicity/Marketing-General,Advertising Services,GPC
18/06/19 to 17/07/19,Corporate Resources,Facebk D48k3m2ug2,18/06/2019,20.00,Publicity/Marketing-General,Advertising Services,GPC
18/06/19 to 17/07/19,Corporate Resources,Facebk Dq425lwl52,30/06/2019,409.69,Publicity/Marketing-General,Misc-Unknown,GPC
18/06/19 to 17/07/19,Corporate Resources,Facebk Mp7ehm24k2,30/06/2019,25.00,Publicity/Marketing-General,Misc-Unknown,GPC
18/06/19 to 17/07/19,Corporate Resources,Facebk Ztt7gm2vg2,30/06/2019,11.03,Publicity/Marketing-General,Misc-Unknown,GPC
18/06/19 to 17/07/19,Corporate Resources,Future Pmo,15/07/2019,345.00,Other Services-General,Membership Organizations-Not Elsewhere Classified,GPC
18/06/19 to 17/07/19,Corporate Resources,George Walker Ltd,27/06/2019,28.40,Operational Equipment-General,Misc-Unknown,GPC
18/06/19 to 17/07/19,Corporate Resources,George Walker Ltd,11/07/2019,71.70,Operational Equipment-General,"Building Materials, Lumber Stores",GPC
18/06/19 to 17/07/19,Corporate Resources,George Walker Ltd,02/07/2019,36.00,Other Services-General,"Building Materials, Lumber Stores",GPC
18/06/19 to 17/07/19,Corporate Resources,Google *ads3070599614,03/07/2019,500.00,Publicity/Marketing-General,Continuity/Subscription Merchants,GPC
18/06/19 to 17/07/19,Corporate Resources,Hancock Cash And Carry Lt,27/06/2019,252.67,Materials-General,Misc-Unknown,GPC
18/06/19 to 17/07/19,Corporate Resources,Hancock Cash And Carry Lt,02/07/2019,195.48,Materials-General,Wholesale Clubs,GPC
18/06/19 to 17/07/19,Corporate Resources,Hancock Cash And Carry Lt,15/07/2019,225.88,Materials-General,Wholesale Clubs,GPC
18/06/19 to 17/07/19,Corporate Resources,Harlow Bros Ltd,03/07/2019,34.42,Other Services-General,"Building Materials, Lumber Stores",GPC
18/06/19 to 17/07/19,Corporate Resources,Harvest Forecast,29/06/2019,39.50,IT Equipment-Purchase - Hardware,Misc-Unknown,GPC
18/06/19 to 17/07/19,Corporate Resources,Heart Of England Nhs,20/06/2019,98.00,Other Services-General,Membership Organizations-Not Elsewhere Classified,GPC
18/06/19 to 17/07/19,Corporate Resources,Himan & Company,21/06/2019,30.00,R & M of Buildings-General,Business Services-Not Elsewhere Classified,GPC
18/06/19 to 17/07/19,Corporate Resources,Himan & Company,08/07/2019,12.50,R & M of Buildings-General,Business Services-Not Elsewhere Classified,GPC
18/06/19 to 17/07/19,Corporate Resources,Homebase Ltd 041,20/06/2019,25.99,Other Services-General,Misc-Unknown,GPC
18/06/19 to 17/07/19,Corporate Resources,Hoo*hootsuite Inc,23/06/2019,93.65,Publicity/Marketing-General,Business Services-Not Elsewhere Classified,GPC
18/06/19 to 17/07/19,Corporate Resources,Hoo*hootsuite Inc,30/06/2019,8.84,Publicity/Marketing-General,Misc-Unknown,GPC
18/06/19 to 17/07/19,Corporate Resources,Http://www.Derbyshire.,12/07/2019,160.00,Other Expenditure-General,Government Services-Not Elsewhere Classified,GPC
18/06/19 to 17/07/19,Corporate Resources,Indeed,01/07/2019,172.69,Other Equipment & Materials-General,Business Services-Not Elsewhere Classified,GPC
18/06/19 to 17/07/19,Corporate Resources,Lcc Catering Services,18/06/2019,6.25,Hospitality-General,Government Services-Not Elsewhere Classified,GPC
18/06/19 to 17/07/19,Corporate Resources,Lcc Tithe Barn,05/07/2019,2.55,Other Services-General,"Eating Places, Restaurants",GPC
18/06/19 to 17/07/19,Corporate Resources,Linkedin 3909043486 Lnkd.,01/07/2019,43.48,Publicity/Marketing-General,Continuity/Subscription Merchants,GPC
18/06/19 to 17/07/19,Corporate Resources,Linkedin-387*7882046,17/06/2019,109.00,Publicity/Marketing-General,Continuity/Subscription Merchants,GPC
18/06/19 to 17/07/19,Corporate Resources,Linkedin-389*1494626,23/06/2019,96.54,Publicity/Marketing-General,Misc-Unknown,GPC
18/06/19 to 17/07/19,Corporate Resources,Linkedin-390*5720236,29/06/2019,102.32,Publicity/Marketing-General,Misc-Unknown,GPC
18/06/19 to 17/07/19,Corporate Resources,Linkedin-392*1335616,07/07/2019,83.27,Publicity/Marketing-General,Continuity/Subscription Merchants,GPC
18/06/19 to 17/07/19,Corporate Resources,Linkedin-393*5631806,13/07/2019,57.96,Publicity/Marketing-General,Continuity/Subscription Merchants,GPC
18/06/19 to 17/07/19,Corporate Resources,M C R Systems,08/07/2019,41.67,Operational Equipment-Repairs,Electrical Parts and Equipment,GPC
18/06/19 to 17/07/19,Corporate Resources,M C R Systems,08/07/2019,41.67,Operational Equipment-Repairs,Electrical Parts and Equipment,GPC
18/06/19 to 17/07/19,Corporate Resources,M C R Systems,08/07/2019,41.67,Operational Equipment-Repairs,Electrical Parts and Equipment,GPC
18/06/19 to 17/07/19,Corporate Resources,Marshall Fleet,16/07/2019,481.69,R&M of Vehicles-Non Contract-General,Automotive Repair Shops (non-dealer),GPC
18/06/19 to 17/07/19,Corporate Resources,Martin McColls,20/06/2019,1.25,Other Services-General,"Miscellaneous Food Stores-Convenience Stores, Mark",GPC
18/06/19 to 17/07/19,Corporate Resources,Matalan,19/06/2019,5.83,Protective Clothing & Uniforms-General,Men's And Women's Clothing Stores,GPC
18/06/19 to 17/07/19,Corporate Resources,Mentimeter,03/07/2019,114.57,IT Equipment-General,"Computers, Computer Peripheral Equipment, Software",GPC
18/06/19 to 17/07/19,Corporate Resources,Merlin Archery Limited,19/06/2019,105.10,Materials-General,Sporting Goods Stores,GPC
18/06/19 to 17/07/19,Corporate Resources,Mhfa England Cic Ltd,21/06/2019,683.33,Training Expenses-General,Charitable and Social Service Organizations,GPC
18/06/19 to 17/07/19,Corporate Resources,Morgans Locksmiths,03/07/2019,67.30,Operational Equipment-General,"Shoe Repair Shops, Shoe Shine Parlors, Hat Cleanin",GPC
18/06/19 to 17/07/19,Corporate Resources,Msft *<e02008eeir>,30/06/2019,560.51,IT Equipment-Software,Misc-Unknown,GPC
18/06/19 to 17/07/19,Corporate Resources,Oldroyd Publishing Gro,25/06/2019,55.00,Publicity/Marketing-General,Advertising Services,GPC
18/06/19 to 17/07/19,Corporate Resources,Paypal *bijoux,10/07/2019,162.00,Materials-General,Women's Ready to Wear Shoes,GPC
18/06/19 to 17/07/19,Corporate Resources,Paypal *kpmmedialtd,12/07/2019,250.00,Recruitment Advertising-General,Misc-Unknown,GPC
18/06/19 to 17/07/19,Corporate Resources,Paypal *successinsc,15/07/2019,149.97,Training Expenses-General,"Management, Consulting and Public Relations Servic",GPC
18/06/19 to 17/07/19,Corporate Resources,Poundland Ltd 1219,01/07/2019,1.67,Provisions-General,Discount Stores,GPC
18/06/19 to 17/07/19,Corporate Resources,Premier Inn44028660,15/07/2019,150.42,Training Expenses-General,PREMIER TRAVEL,GPC
18/06/19 to 17/07/19,Corporate Resources,Public Health England,09/07/2019,130.00,Publicity/Marketing-General,"Medical Services, Health Practitioners-Not Elsewhe",GPC
18/06/19 to 17/07/19,Corporate Resources,Rose & Radish,21/06/2019,10.90,Materials-General,Florists,GPC
18/06/19 to 17/07/19,Corporate Resources,Ryman,11/07/2019,74.98,R & M of Buildings-General,"Stationery, Office, and School Supply Stores",GPC
18/06/19 to 17/07/19,Corporate Resources,Sainsburys S/mkts,19/06/2019,36.00,Materials-General,"Grocery Stores, Supermarkets",GPC
18/06/19 to 17/07/19,Corporate Resources,Sainsburys S/mkts,22/06/2019,23.20,Materials-General,Misc-Unknown,GPC
18/06/19 to 17/07/19,Corporate Resources,Sainsburys S/mkts,05/07/2019,30.00,Materials-General,"Grocery Stores, Supermarkets",GPC
18/06/19 to 17/07/19,Corporate Resources,School Library Associa,12/07/2019,355.00,Training Expenses-General,Schools and Educational Services-Not Elsewhere Cla,GPC
18/06/19 to 17/07/19,Corporate Resources,Screwfix Coalville,24/06/2019,12.64,Other Expenditure-General,Misc-Unknown,GPC
18/06/19 to 17/07/19,Corporate Resources,Screwfix Direct,09/07/2019,99.99,Materials-General,Home Supply Warehouse,GPC
18/06/19 to 17/07/19,Corporate Resources,Shepshed Auto Spares L,17/06/2019,52.07,Operational Equipment-General,"Automotive Parts, Accessories Stores",GPC
18/06/19 to 17/07/19,Corporate Resources,Shepshed Auto Spares L,17/06/2019,66.95,Operational Equipment-General,"Automotive Parts, Accessories Stores",GPC
18/06/19 to 17/07/19,Corporate Resources,Shepshed Auto Spares L,12/07/2019,8.63,Other Services-General,"Automotive Parts, Accessories Stores",GPC
18/06/19 to 17/07/19,Corporate Resources,Sig,28/06/2019,71.43,R & M of Buildings-General,Misc-Unknown,GPC
18/06/19 to 17/07/19,Corporate Resources,Slb Supplies,25/06/2019,77.60,Other Services-General,Misc-Unknown,GPC
18/06/19 to 17/07/19,Corporate Resources,Slb Supplies,09/07/2019,50.25,Other Services-General,Pet Shops-Pet Food and Supplies,GPC
18/06/19 to 17/07/19,Corporate Resources,T W Kempton(Corporate,03/07/2019,139.32,Protective Clothing & Uniforms-General,Men's and Boy's Clothing and Furnishings Store,GPC
18/06/19 to 17/07/19,Corporate Resources,Tesco Store 2849,06/07/2019,82.31,Materials-General,"Grocery Stores, Supermarkets",GPC
18/06/19 to 17/07/19,Corporate Resources,Tesco Stores 2044,25/06/2019,26.85,Other Expenditure-General,Misc-Unknown,GPC
18/06/19 to 17/07/19,Corporate Resources,Tesco Stores 5182,01/07/2019,16.60,Materials-General,"Grocery Stores, Supermarkets",GPC
18/06/19 to 17/07/19,Corporate Resources,Tesco Stores 6857,29/06/2019,16.67,R & M of Buildings-General,Misc-Unknown,GPC
18/06/19 to 17/07/19,Corporate Resources,Tp Coalville,24/06/2019,2.84,Other Expenditure-General,Misc-Unknown,GPC
18/06/19 to 17/07/19,Corporate Resources,Tp Melton Mowbray,09/07/2019,36.90,R & M of Buildings-General,"Building Materials, Lumber Stores",GPC
18/06/19 to 17/07/19,Corporate Resources,Trainline,27/06/2019,21.20,Publicity/Marketing-General,Misc-Unknown,GPC
18/06/19 to 17/07/19,Corporate Resources,Trainline,27/06/2019,19.37,Publicity/Marketing-General,Misc-Unknown,GPC
18/06/19 to 17/07/19,Corporate Resources,Travelodge Gb0000,15/07/2019,452.67,Contract Hire-General,Misc-Unknown,GPC
18/06/19 to 17/07/19,Corporate Resources,Tru Plastics Loughboro,28/06/2019,14.78,R & M of Buildings-General,Misc-Unknown,GPC
18/06/19 to 17/07/19,Corporate Resources,Up And Under/Inet,26/06/2019,372.88,Materials-General,Misc-Unknown,GPC
18/06/19 to 17/07/19,Corporate Resources,Verifone (U.K.) Limite,17/06/2019,96.97,IT Equipment-General,Computer and Data Processing Services,GPC
18/06/19 to 17/07/19,Corporate Resources,Wickes Ashby De La Zouch,20/06/2019,32.08,Other Services-General,Misc-Unknown,GPC
18/06/19 to 17/07/19,Corporate Resources,Wickes Ashby De La Zouch,25/06/2019,18.39,Other Services-General,Misc-Unknown,GPC
18/06/19 to 17/07/19,Corporate Resources,Wickes Ashby De La Zouch,17/06/2019,10.08,R & M of Buildings-General,"Building Materials, Lumber Stores",GPC
18/06/19 to 17/07/19,Corporate Resources,Wickes Thurmaston,18/06/2019,38.33,Operational Equipment-General,"Building Materials, Lumber Stores",GPC
18/06/19 to 17/07/19,Corporate Resources,Wilko Retail Limit,04/07/2019,20.00,Operational Equipment-General,Household Appliance Stores,GPC
18/06/19 to 17/07/19,Corporate Resources,Willow Select Coffee S,21/06/2019,41.67,Provisions-General,"Engineering, Architectural, and Surveying Services",GPC
18/06/19 to 17/07/19,Corporate Resources,Willow Select Coffee S,21/06/2019,40.08,Provisions-General,"Engineering, Architectural, and Surveying Services",GPC
18/06/19 to 17/07/19,Corporate Resources,Willow Select Coffee S,02/07/2019,4.25,Provisions-General,"Engineering, Architectural, and Surveying Services",GPC
18/06/19 to 17/07/19,Corporate Resources,Willow Select Coffee S,02/07/2019,50.00,Provisions-General,"Engineering, Architectural, and Surveying Services",GPC
18/06/19 to 17/07/19,Corporate Resources,Wm Morrisons Store,27/06/2019,29.22,Materials-General,Misc-Unknown,GPC
18/06/19 to 17/07/19,Corporate Resources,Wm Morrisons Store,22/06/2019,14.42,Other Expenditure-General,Misc-Unknown,GPC
18/06/19 to 17/07/19,Corporate Resources,Wm Morrisons Store,06/07/2019,33.24,Other Expenditure-General,"Grocery Stores, Supermarkets",GPC
18/06/19 to 17/07/19,Corporate Resources,Wm Morrisons Store,28/06/2019,18.04,Provisions-General,Misc-Unknown,GPC
18/06/19 to 17/07/19,Corporate Resources,Workwear Express Ltd,24/06/2019,241.66,Catering Equipment-General,Misc-Unknown,GPC
18/06/19 to 17/07/19,Corporate Resources,Workwear Express Ltd,24/06/2019,250.00,Catering Equipment-General,Misc-Unknown,GPC
18/06/19 to 17/07/19,Corporate Resources,Workwear Express Ltd,24/06/2019,189.44,Catering Equipment-General,Misc-Unknown,GPC
18/06/19 to 17/07/19,Corporate Resources,Workwear Express Ltd,24/06/2019,166.67,Catering Equipment-General,Misc-Unknown,GPC
18/06/19 to 17/07/19,Corporate Resources,Www.Gov.Uk,28/06/2019,10.00,Other Expenditure-Legal Expenses,Misc-Unknown,GPC
18/06/19 to 17/07/19,Corporate Resources,Www.Ilxgroup.Com,27/06/2019,240.00,Training Expenses-General,Misc-Unknown,GPC
18/06/19 to 17/07/19,Corporate Resources,Www.Ilxgroup.Com,01/07/2019,480.00,Training Expenses-General,"Colleges, Universities, Professional Schools, and",GPC
18/06/19 to 17/07/19,Corporate Resources,Www.Karden-Water.Co.Uk,17/06/2019,79.00,Operational Equipment-General,"Utilities-Electric, Gas, Sanitary, Water",GPC
18/06/19 to 17/07/19,Corporate Resources,Www.Petprescription.Co,30/06/2019,12.11,Other Services-General,Misc-Unknown,GPC
18/06/19 to 17/07/19,Corporate Resources,Www.Safetyliftingear.C,25/06/2019,151.79,Other Equipment & Materials-General,"Equipment Rental and Leasing Services, Tool Rental",GPC
18/06/19 to 17/07/19,Corporate Resources,Www.Trees.Org.Uk,21/06/2019,210.00,Other Expenditure-General,Charitable and Social Service Organizations,GPC
18/06/19 to 17/07/19,Corporate Resources,Www.Ukaggregatesltd,10/07/2019,74.95,Operational Equipment-General,"Building Materials, Lumber Stores",GPC
18/06/19 to 17/07/19,Corporate Resources,Www.Ukaggregatesltd,10/07/2019,74.95,Other Services-General,"Building Materials, Lumber Stores",GPC
18/06/19 to 17/07/19,Corporate Resources,Www.Yorkshiretrading.C,19/06/2019,11.99,Operational Equipment-General,Variety Stores,GPC
18/06/19 to 17/07/19,Corporate Resources,,24/06/2019,3.26,Publicity/Marketing-General,Misc-Unknown,GPC
18/06/19 to 17/07/19,Corporate Resources,,01/07/2019,1.09,Publicity/Marketing-General,Misc-Unknown,GPC
18/06/19 to 17/07/19,Corporate Resources,,01/07/2019,0.33,Publicity/Marketing-General,Misc-Unknown,GPC
18/06/19 to 17/07/19,Corporate Resources,,04/07/2019,3.15,Training Expenses-General,Misc-Unknown,GPC
18/06/19 to 17/07/19,E&T,4imprint,26/06/2019,168.95,Other Expenditure-General,Misc-Unknown,GPC
18/06/19 to 17/07/19,E&T,Amazon.Co.Uk*m67wi8gv4 Am,20/06/2019,10.40,General Equipment-General,Miscellaneous and Specialty Retail Stores,GPC
18/06/19 to 17/07/19,E&T,Amazon.Co.Uk*m68fl05l4,26/06/2019,76.90,Operational Equipment-General,Misc-Unknown,GPC
18/06/19 to 17/07/19,E&T,Amz*biz-E-Bee,10/07/2019,-8.99,Materials-General,Miscellaneous and Specialty Retail Stores,GPC
18/06/19 to 17/07/19,E&T,Amz*capuano Musica,06/07/2019,-70.83,Materials-General,Miscellaneous and Specialty Retail Stores,GPC
18/06/19 to 17/07/19,E&T,Amz*motionperformance,10/07/2019,-2.24,Materials-General,Miscellaneous and Specialty Retail Stores,GPC
18/06/19 to 17/07/19,E&T,Amznmktplace,04/07/2019,199.90,Materials-General,Miscellaneous and Specialty Retail Stores,GPC
18/06/19 to 17/07/19,E&T,Amznmktplace,04/07/2019,24.41,Materials-General,Miscellaneous and Specialty Retail Stores,GPC
18/06/19 to 17/07/19,E&T,Amznmktplace,09/07/2019,23.32,Materials-General,Miscellaneous and Specialty Retail Stores,GPC
18/06/19 to 17/07/19,E&T,Amznmktplace,09/07/2019,10.82,Materials-General,Miscellaneous and Specialty Retail Stores,GPC
18/06/19 to 17/07/19,E&T,Amznmktplace Amazon.Co.Uk,24/06/2019,33.99,IT Equipment-Purchase - Hardware,Misc-Unknown,GPC
18/06/19 to 17/07/19,E&T,Amznmktplace Amazon.Co.Uk,21/06/2019,24.99,Materials-General,Miscellaneous and Specialty Retail Stores,GPC
18/06/19 to 17/07/19,E&T,Amznmktplace Amazon.Co.Uk,11/07/2019,9.47,Materials-General,Miscellaneous and Specialty Retail Stores,GPC
18/06/19 to 17/07/19,E&T,Amznmktplace Amazon.Co.Uk,12/07/2019,7.07,Materials-General,Miscellaneous and Specialty Retail Stores,GPC
18/06/19 to 17/07/19,E&T,Amznmktplace Amazon.Co.Uk,14/07/2019,15.78,Materials-General,Miscellaneous and Specialty Retail Stores,GPC
18/06/19 to 17/07/19,E&T,Amznmktplace Amazon.Co.Uk,30/06/2019,34.46,Operational Equipment-General,Misc-Unknown,GPC
18/06/19 to 17/07/19,E&T,Amznmktplace Amazon.Co.Uk,30/06/2019,13.48,Other Expenditure-General,Misc-Unknown,GPC
18/06/19 to 17/07/19,E&T,Amznmktplace Amazon.Co.Uk,26/06/2019,25.98,Stationery-General,Misc-Unknown,GPC
18/06/19 to 17/07/19,E&T,Barrier 2 Go,20/06/2019,268.80,Other Premises Expenses-General,Misc-Unknown,GPC
18/06/19 to 17/07/19,E&T,Bateson Trailers,24/06/2019,45.00,R&M of Vehicles-Non Contract-General,Misc-Unknown,GPC
18/06/19 to 17/07/19,E&T,Dvla Vehicle Tax,21/06/2019,628.10,Road Licences-General,Government Services-Not Elsewhere Classified,GPC
18/06/19 to 17/07/19,E&T,Dvla Vehicle Tax,26/06/2019,628.10,Road Licences-General,Government Services-Not Elsewhere Classified,GPC
18/06/19 to 17/07/19,E&T,Dvla Vehicle Tax,08/07/2019,167.50,Road Licences-General,Government Services-Not Elsewhere Classified,GPC
18/06/19 to 17/07/19,E&T,Dvla Vehicle Tax,08/07/2019,167.50,Road Licences-General,Government Services-Not Elsewhere Classified,GPC
18/06/19 to 17/07/19,E&T,Dvla Vehicle Tax,08/07/2019,167.50,Road Licences-General,Government Services-Not Elsewhere Classified,GPC
18/06/19 to 17/07/19,E&T,Dvla Vehicle Tax,08/07/2019,167.50,Road Licences-General,Government Services-Not Elsewhere Classified,GPC
18/06/19 to 17/07/19,E&T,Dvla Vehicle Tax,08/07/2019,167.50,Road Licences-General,Government Services-Not Elsewhere Classified,GPC
18/06/19 to 17/07/19,E&T,Dvla Vehicle Tax,08/07/2019,262.50,Road Licences-General,Government Services-Not Elsewhere Classified,GPC
18/06/19 to 17/07/19,E&T,Dvla Vehicle Tax,08/07/2019,167.50,Road Licences-General,Government Services-Not Elsewhere Classified,GPC
18/06/19 to 17/07/19,E&T,Dvla Vehicle Tax,08/07/2019,167.50,Road Licences-General,Government Services-Not Elsewhere Classified,GPC
18/06/19 to 17/07/19,E&T,Dvla Vehicle Tax,08/07/2019,167.50,Road Licences-General,Government Services-Not Elsewhere Classified,GPC
18/06/19 to 17/07/19,E&T,Dvla Vehicle Tax,08/07/2019,167.50,Road Licences-General,Government Services-Not Elsewhere Classified,GPC
18/06/19 to 17/07/19,E&T,Dvla Vehicle Tax,08/07/2019,167.50,Road Licences-General,Government Services-Not Elsewhere Classified,GPC
18/06/19 to 17/07/19,E&T,Dvla Vehicle Tax,08/07/2019,262.50,Road Licences-General,Government Services-Not Elsewhere Classified,GPC
18/06/19 to 17/07/19,E&T,Dvla Vehicle Tax,08/07/2019,167.50,Road Licences-General,Government Services-Not Elsewhere Classified,GPC
18/06/19 to 17/07/19,E&T,Dvla Vehicle Tax,08/07/2019,167.50,Road Licences-General,Government Services-Not Elsewhere Classified,GPC
18/06/19 to 17/07/19,E&T,Dvla Vehicle Tax,08/07/2019,167.50,Road Licences-General,Government Services-Not Elsewhere Classified,GPC
18/06/19 to 17/07/19,E&T,Dvla Vehicle Tax,08/07/2019,262.50,Road Licences-General,Government Services-Not Elsewhere Classified,GPC
18/06/19 to 17/07/19,E&T,Dvla Vehicle Tax,09/07/2019,167.50,Road Licences-General,Government Services-Not Elsewhere Classified,GPC
18/06/19 to 17/07/19,E&T,Dvla Vehicle Tax,09/07/2019,167.50,Road Licences-General,Government Services-Not Elsewhere Classified,GPC
18/06/19 to 17/07/19,E&T,Dvla Vehicle Tax,09/07/2019,167.50,Road Licences-General,Government Services-Not Elsewhere Classified,GPC
18/06/19 to 17/07/19,E&T,Dvla Vehicle Tax,09/07/2019,167.50,Road Licences-General,Government Services-Not Elsewhere Classified,GPC
18/06/19 to 17/07/19,E&T,Dvla Vehicle Tax,09/07/2019,167.50,Road Licences-General,Government Services-Not Elsewhere Classified,GPC
18/06/19 to 17/07/19,E&T,Dvla Vehicle Tax,09/07/2019,167.50,Road Licences-General,Government Services-Not Elsewhere Classified,GPC
18/06/19 to 17/07/19,E&T,Dvla Vehicle Tax,09/07/2019,167.50,Road Licences-General,Government Services-Not Elsewhere Classified,GPC
18/06/19 to 17/07/19,E&T,Dvla Vehicle Tax,09/07/2019,167.50,Road Licences-General,Government Services-Not Elsewhere Classified,GPC
18/06/19 to 17/07/19,E&T,Dvla Vehicle Tax,11/07/2019,167.50,Road Licences-General,Government Services-Not Elsewhere Classified,GPC
18/06/19 to 17/07/19,E&T,East Midlands Trains,17/06/2019,32.05,Public Transport -  Staff-General,Passenger Railways,GPC
18/06/19 to 17/07/19,E&T,East Midlands Trains,17/06/2019,174.50,Public Transport -  Staff-General,Passenger Railways,GPC
18/06/19 to 17/07/19,E&T,East Midlands Trains,17/06/2019,188.50,Public Transport -  Staff-General,Passenger Railways,GPC
18/06/19 to 17/07/19,E&T,East Midlands Trains,18/06/2019,122.00,Public Transport -  Staff-General,Passenger Railways,GPC
18/06/19 to 17/07/19,E&T,East Midlands Trains,18/06/2019,-178.50,Public Transport -  Staff-General,Passenger Railways,GPC
18/06/19 to 17/07/19,E&T,East Midlands Trains,18/06/2019,194.50,Public Transport -  Staff-General,Passenger Railways,GPC
18/06/19 to 17/07/19,E&T,East Midlands Trains,19/06/2019,38.05,Public Transport -  Staff-General,Misc-Unknown,GPC
18/06/19 to 17/07/19,E&T,East Midlands Trains,08/07/2019,136.00,Public Transport -  Staff-General,Passenger Railways,GPC
18/06/19 to 17/07/19,E&T,East Midlands Trains,08/07/2019,94.10,Public Transport -  Staff-General,Passenger Railways,GPC
18/06/19 to 17/07/19,E&T,Firstaid4less.Co.Uk,08/07/2019,20.45,Materials-General,Miscellaneous and Specialty Retail Stores,GPC
18/06/19 to 17/07/19,E&T,Firstaid4less.Co.Uk,11/07/2019,64.14,Materials-General,Miscellaneous and Specialty Retail Stores,GPC
18/06/19 to 17/07/19,E&T,Marshall Fleet,04/07/2019,300.00,R&M of Vehicles-Non Contract-General,Automotive Repair Shops (non-dealer),GPC
18/06/19 to 17/07/19,E&T,Marshall Fleet,08/07/2019,-72.47,R&M of Vehicles-Non Contract-General,Automotive Repair Shops (non-dealer),GPC
18/06/19 to 17/07/19,E&T,Marshall Fleet,10/07/2019,542.56,R&M of Vehicles-Non Contract-General,Automotive Repair Shops (non-dealer),GPC
18/06/19 to 17/07/19,E&T,Mitchell Storage&distr,19/06/2019,12.50,Private Contractors-General,Misc-Unknown,GPC
18/06/19 to 17/07/19,E&T,Paypal *qdp Printin,18/06/2019,200.00,Printing-General,Advertising Services,GPC
18/06/19 to 17/07/19,E&T,Premier Inn 44033690,16/06/2019,278.00,Subsistence-General,PREMIER TRAVEL,GPC
18/06/19 to 17/07/19,E&T,Safetyspecs Co Uk,26/06/2019,76.95,Materials-General,Misc-Unknown,GPC
18/06/19 to 17/07/19,E&T,Screwfix Direct,02/07/2019,20.83,Other Expenditure-General,Home Supply Warehouse,GPC
18/06/19 to 17/07/19,E&T,Severn Trent Water,18/06/2019,224.98,Electricity-General,"Utilities-Electric, Gas, Sanitary, Water",GPC
18/06/19 to 17/07/19,E&T,Sjasuplies,12/07/2019,220.00,Other Services-General,Charitable and Social Service Organizations,GPC
18/06/19 to 17/07/19,E&T,Snowbee (UK) Ltd,28/06/2019,99.98,Materials-General,Misc-Unknown,GPC
18/06/19 to 17/07/19,E&T,Totaljobs Group Ltd,27/06/2019,300.00,Recruitment Advertising-General,Misc-Unknown,GPC
18/06/19 to 17/07/19,E&T,Trainline,25/06/2019,19.42,Public Transport -  Staff-General,Misc-Unknown,GPC
18/06/19 to 17/07/19,E&T,Trainline,26/06/2019,51.36,Public Transport -  Staff-General,Misc-Unknown,GPC
18/06/19 to 17/07/19,E&T,Trainline,27/06/2019,18.56,Public Transport -  Staff-General,Misc-Unknown,GPC
18/06/19 to 17/07/19,E&T,Trainline.Com,24/06/2019,33.36,Public Transport -  Staff-General,Misc-Unknown,GPC
18/06/19 to 17/07/19,E&T,Trainline.Com,12/07/2019,82.73,Public Transport -  Staff-General,Passenger Railways,GPC
18/06/19 to 17/07/19,E&T,Uberkids,03/07/2019,761.83,Operational Equipment-Purchase,Children's and Infants' Wear Stores,GPC
18/06/19 to 17/07/19,E&T,Www.Protecdirect.Co.Uk,20/06/2019,35.20,Protective Clothing & Uniforms-General,Misc-Unknown,GPC
18/06/19 to 17/07/19,E&T,Www.Safetyfirstaid.Co.,02/07/2019,43.60,Other Equipment & Materials-General,Industrial Supplies Not Elsewhere Classified,GPC
18/06/19 to 17/07/19,Public Health,3c_*blaby District Cou,19/06/2019,0.50,Subsistence-General,Automobile Parking Lots and Garages,GPC
18/06/19 to 17/07/19,Public Health,Amazon.Co.Uk*m66046k64,04/07/2019,11.23,Other Expenditure-General,Direct Marketers - Other,GPC
18/06/19 to 17/07/19,Public Health,Amazon.Co.Uk*m67hv3du4,01/07/2019,47.48,IT Equipment-Purchase - Hardware,Direct Marketers - Other,GPC
18/06/19 to 17/07/19,Public Health,Amznmktplace,18/06/2019,27.49,Materials-General,Miscellaneous and Specialty Retail Stores,GPC
18/06/19 to 17/07/19,Public Health,Amznmktplace,03/07/2019,12.48,Materials-General,Miscellaneous and Specialty Retail Stores,GPC
18/06/19 to 17/07/19,Public Health,Amznmktplace,04/07/2019,24.99,Materials-General,Miscellaneous and Specialty Retail Stores,GPC
18/06/19 to 17/07/19,Public Health,Amznmktplace,01/07/2019,2.82,Other Equipment & Materials-General,Miscellaneous and Specialty Retail Stores,GPC
18/06/19 to 17/07/19,Public Health,Amznmktplace,06/07/2019,38.00,Other Equipment & Materials-General,Miscellaneous and Specialty Retail Stores,GPC
18/06/19 to 17/07/19,Public Health,Amznmktplace Amazon.Co.Uk,30/06/2019,21.48,Materials-General,Misc-Unknown,GPC
18/06/19 to 17/07/19,Public Health,Brian Bowles,15/07/2019,250.00,Contract Hire-General,Automotive Body and Repair Shops,GPC
18/06/19 to 17/07/19,Public Health,Brian Bowles,15/07/2019,232.65,Contract Hire-General,Automotive Body and Repair Shops,GPC
18/06/19 to 17/07/19,Public Health,Cycle Trax,04/07/2019,78.00,Operational Equipment-Maintenance,Bicycle Shops-Sales and Service,GPC
18/06/19 to 17/07/19,Public Health,Facebk *qlyd6l6w32,10/07/2019,6.16,Advertising-General,Advertising Services,GPC
18/06/19 to 17/07/19,Public Health,Harvester,04/07/2019,10.00,Contract Catering-General,"Eating Places, Restaurants",GPC
18/06/19 to 17/07/19,Public Health,Makro Self Service,25/06/2019,28.77,Provisions-General,Misc-Unknown,GPC
18/06/19 to 17/07/19,Public Health,Marks&spencer Plc,19/06/2019,60.00,Other Equipment & Materials-General,"Grocery Stores, Supermarkets",GPC
18/06/19 to 17/07/19,Public Health,Spotify Uk,10/07/2019,9.99,Publicity/Marketing-General,"Digital Goods - Media, Books, Movies, Music",GPC
18/06/19 to 17/07/19,Public Health,St John Ambulance,08/07/2019,135.00,Course Fees-General,Charitable and Social Service Organizations,GPC
18/06/19 to 17/07/19,Public Health,Tesco Stores 6781,17/06/2019,33.70,Provisions-General,"Grocery Stores, Supermarkets",GPC
18/06/19 to 17/07/19,Public Health,Trainline,25/06/2019,108.82,Casual/Essential-General,Misc-Unknown,GPC
18/06/19 to 17/07/19,Public Health,Trainline.Com,17/06/2019,10.22,Casual/Essential-General,Passenger Railways,GPC
18/06/19 to 17/07/19,Public Health,Trainline.Com,24/06/2019,-6.30,Casual/Essential-General,Misc-Unknown,GPC
18/06/19 to 17/07/19,Public Health,Viking Uk,26/06/2019,33.98,Stationery-General,Misc-Unknown,GPC
18/06/19 to 17/07/19,Public Health,Vodafone Ltd,28/06/2019,3.00,Telephones-Mobile Phones,Misc-Unknown,GPC
18/06/19 to 17/07/19,Public Health,W M Morrison Petro,28/06/2019,46.50,Contract Hire-General,Misc-Unknown,GPC
18/06/19 to 17/07/19,Public Health,Www.Lboro.Ac.Uk,15/07/2019,87.50,Conference-General,"Colleges, Universities, Professional Schools, and",GPC
18/06/19 to 17/07/19,Public Health,Yarrington (Moto),03/07/2019,350.00,Course Fees-General,Advertising Services,GPC
"**Amounts stated are net of VAT, except where VAT has not been recovered.",,,,,,,
